{"text_format":"1","workbook":"xlsx","n_sheets":30,"sheets":["Macro","A Instructions - artistique","B Collections etc","C1 Programmation - antérieure ","C2 Programmation - en cours","C3 Programmation - à venir","D1 Rayonnement - antérieur","D2 Rayonnement - en cours","D3 Rayonnement - à venir","E Instructions - diffuseur","F1 Programmation - antérieure ","F2 Programmation - en cours","F3 Programmation - à venir","G1 Rayonnement - antérieur","G2 Rayonnement - en cours","G3 Rayonnement - à venir","H Instructions - soutien","I1 Activités antérieures","I2 Activités en cours","I3 Activités à venir","J Instructions - éditeurs","K Budget revues électroniques","L Budget revues imprimées","M Budget éditeurs livres","N Instructions éditeurs livres","O Rapport revues electroniques","P Rapport revues imprimées","Q Rapport éditeurs livres","Sheet1","Sheet2"],"not_rendered":{"charts":0,"images":8,"macros":1,"external_links":1,"defined_names":56,"comments":0,"pivot_tables":0},"unopened":[],"bounds":{"document_bytes":16777216,"sheet_cells":100000,"rows_first":2000,"rows_last":500,"rows_between":2000,"halvings":0,"cell_chars":16384,"cell_head_chars":4096},"cells_cut":0,"cells_raw":0,"read":"whole","date_system":"1900"}

{"sheet":"Macro","index":0,"n_rows":41,"n_cols":2,"rows_kept":41,"cut":false,"hidden":false,"merged":[[40,1,41,15],[1,1,1,11],[33,1,33,11],[4,1,4,15],[3,1,3,15],[25,1,25,15],[28,1,28,15],[6,1,8,15],[35,1,35,15],[16,1,17,15],[19,1,19,15],[22,1,22,15],[37,1,38,15]]}
[]
[]
[]
[null,"Créer, connaître et partager"]
[null,"Organismes autochtones "]
[]
[null,"De nombreux types d’organismes font une demande pour cette composante et ont leur propre section d’onglets avec des pages de budget ou d’annexe. Ce document comprend une macro intégrée qui vous dirigera aux sections qui concernent votre organisme. Veuillez choisir le bouton pertinent ci-dessous pour votre type d’organisme. "]
[]
[]
[]
[]
[]
[]
[]
[]
[]
[null,"Si le paramétrage de votre logiciel ou ordinateur empêche le bon fonctionnement des boutons, vous verrez tous les onglets sur cette page. Choisissez l’onglet contenant des instructions pour votre type d’organisme. "]
[]
[]
[null,"Les organismes artistiques ou culturels qui créent et / ou produisent des œuvres :"]
[]
[]
[null,"Les organismes qui présentent une programmation, les festivals et les diffuseurs :"]
[]
[]
[null,"Les organismes de services et de soutien :"]
[]
[]
[null,"Les éditeurs :"]
[]
[]
[]
[]
[null,"1. Après avoir téléchargé le formulaire, sauvegardez-le sur votre ordinateur. Vous pouvez le sauvegarder sous un nom différent."]
[]
[null,"2. Chaque section a ses propres instructions. À la suite de ces instructions, chaque onglet contient une feuille distincte que vous devez compléter."]
[]
[null,"3. N’oubliez pas de sauvegarder à nouveau le document sur votre ordinateur. Lorsque vous cliquez sur « Sauvegarder », tous les onglets sont sauvegardés en même temps."]
[]
[]
[null,"4. Retournez au portail et téléversez le document complet à votre demande. Lorsque vous téléversez le document à votre formulaire de demande, tous les onglets y sont transférés ensemble."]

{"sheet":"A Instructions - artistique","index":1,"n_rows":83,"n_cols":5,"rows_kept":83,"cut":false,"hidden":false,"merged":[[80,1,80,14],[81,3,81,14],[24,1,24,15],[2,1,2,15],[66,1,68,15],[69,1,71,15],[72,1,74,15],[34,2,34,15],[40,2,40,15],[42,2,43,15],[65,1,65,15],[9,1,9,15],[50,2,51,15],[53,2,55,15],[56,2,57,15],[58,3,60,15],[61,3,62,15],[1,1,1,15],[25,2,25,15],[3,1,3,15],[5,1,5,15],[6,1,6,15],[4,1,4,15],[35,2,35,15],[41,2,41,15]]}
[null,"v.202305"]
[null,"Créer, connaître et partager : Organismes autochtones (organismes artistiques ou culturels)"]
[null,"Instructions pour remplir le document « Annexes »"]
[null,"Les organismes artistiques ou culturels qui créent et / ou produisent des œuvres doivent consulter les onglets A à D3."]
[null,"Les organismes qui présentent une programmation, les festivals et les diffuseurs doivent consulter l'onglet E."]
[null,"Les organismes de services et de soutien doivent consulter l'onglet H."]
[null,"Les éditeurs doivent consulter l'onglet J."]
[]
[]
[null,"Les organismes artistiques ou culturels qui créent et / ou produisent des œuvres "]
[]
[null,"Veuillez noter qu'au bas de la page se trouvent plusieurs onglets. Les organismes artistiques et culturels doivent utiliser les onglets suivants : "]
[null,"« A Instructions - artistique », « B Collections etc », « C1, C2 et C3 Programmation », et « D1, D2 et D3 Rayonnement »."]
[]
[]
[]
[]
[null,"À la suite de ces instructions, chaque onglet contient une feuille distincte que vous devez compléter."]
[null,"Lorsque vous cliquez sur « Sauvegarder », tous les onglets sont sauvegardés en même temps."]
[null,"Lorsque vous téléversez le document à votre formulaire de demande, tous les onglets y sont transférés ensemble. "]
[]
[]
[null,"1. Après avoir téléchargé le formulaire, sauvegardez-le sur votre ordinateur. Vous pouvez le sauvegarder sous un nom différent."]
[]
[null,"2. Musées et galeries d'art, et organismes des arts médiatiques seulement - Complétez l'onglet « B Collections etc »."]
[null,null," - Le terme « collection » signifie : les collections d'oeuvres d'arts médiatiques ou d'œuvres d'art visuel, l'équipement, les productions, les publications ou autres activités similaires."]
[null,null," - Veuillez inscrire les détails qui correspondent aux activités de votre organisme."]
[null,null," - À l'aide du menu déroulant, sélectionnez l'option qui correspond le mieux aux activités."]
[null,null," - Sur chaque ligne, veuillez inscrire les détails pertinents concernant la « collection » dans son ensemble."]
[null,null," - Dans l'espace prévu à la suite de la liste, veuillez fournir plus de détails au sujet des items qui font partie des collections."]
[]
[null,"3. Arts de la scène et arts visuels seulement - Complétez les onglets « C1, C2 et C3 Programmation »."]
[null,null," - Veuillez inscrire les renseignements qui correspondent aux activités de votre organisme."]
[null,null," - À chaque ligne, veuillez inscrire les renseignements pertinents concernant l'activité."]
[null,null," - C1 porte sur les activités antérieures, C2 sur l'année en cours, et C3 sur les activités futures."]
[null,null," Pour plus de renseignements, consultez la rubrique « Instructions détaillées pour les onglets  C1, C2, C3 et D1, D2, D3 »."]
[]
[null,"4.  Tous les organismes artistiques et culturels - Complétez les onglets D1, D2 et D3 « D Rayonnement »."]
[null,null," - Veuillez inscrire les renseignements qui correspondent aux activités de votre organisme."]
[null,null," - À chaque ligne, veuillez inscrire les renseignements pertinents concernant l'activité."]
[null,null," - D1 porte sur les activités antérieures, D2 sur l'année en cours, et D3 sur les activités futures. "]
[null,null,"Pour plus de renseignements, consultez la rubrique « Instructions détaillées pour les onglets  C1, C2, C3 et D1, D2, D3 »."]
[null,null," - Vous pouvez inclure les activités de développement professionnel et les conférences seulement lorsqu'elles sont organisées par votre organisme et qu'elles sont accessibles tant aux professionnels internes qu'externes."]
[]
[]
[null,"5. N’oubliez pas de sauvegarder à nouveau le document sur votre ordinateur."]
[null,"6. Retournez au portail et téléversez le document complet à votre demande."]
[]
[]
[null,"Formulaire financier CADAC"]
[null,null," - Veuillez inscrire à la ligne 5175 du formulaire financier CADAC (Éducation, développement de public et sensibilisation) les coûts liés à rendre le contenu artistique accessible aux membres de l'auditoire qui sont sourds ou handicapés."]
[]
[]
[null,null,"Si votre Profil de candidat approuvé dans le portail inclu l'auto-identification comme étant un organisme axé sur la pratique des artistes handicapés et sourds, vous pouvez soumettre une demande distincte au Soutien à l'accès aux services, lequel se trouve dans la section Fonds stratégiques de vos programmes disponibles."]
[]
[]
[null,null,"Si vous recevez un appui du Soutien à l’accès aux services pour vos activités, vous inscrirez dans vos budgets révisés et finaux, le montant qui vous a été accordé et les coûts couverts :"]
[]
[null,null,null," - Veuillez inscrire à la ligne 5190 du formulaire financier CADAC (Autres dépenses artistiques, de programmation, et de services) les coûts liés aux mesures de soutien et aux services nécessaires aux artistes et aux professionnels des arts sourds ou handicapés qui participent aux activités. "]
[]
[]
[null,null,null," - Veuillez inscrire à la ligne 4425 du formulaire financier CADAC (Autres subventions du Conseil des arts du Canada) le montant du Soutien à l'accès aux services."]
[]
[]
[]
[null,"Instructions détaillées pour les onglets  C1, C2, C3 et D1, D2, D3"]
[null,"C3 et D3 portent sur les activités qui ont lieu au cours des exercices financiers de votre organisme pour lesquels vous demandez un appui (le prochain cycle financier de subvention de 4 ans). Fournissez des détails concernant vos plans futurs, autant que vous les connaissez. La première année devrait être solide. Cependant, il est possible que, plus les années visées sont lointaines, moins vous aurez de détails à offrir."]
[]
[]
[null,"C2 et D2 portent sur les activités qui ont lieu au cours de l'exercice financier qui précède les années visées dans les onglets C3 et D3. Habituellement, ceci coïncide avec l'année où vous présentez votre demande et, si vous recevez déjà une subvention de base, ce sera aussi la dernière année de votre cycle de subvention en cours. "]
[]
[]
[null,"C1 et D1 portent sur les 2 dernières années complétées qui précèdent l'année en cours visée dans les onglets C2 et D2. Vous avez la possibilité de fournir des renseignements au sujet des 4 dernières années complétées afin de souligner des activités particulières ou de présenter une variété de votre programmation."]
[]
[]
[]
[]
[]
[]
[]
[]
[]
[null,null,null,null," "]

{"sheet":"B Collections etc","index":2,"n_rows":36,"n_cols":9,"rows_kept":36,"cut":false,"hidden":false,"merged":[[10,8,13,8],[3,2,3,8],[1,2,1,8],[5,2,7,8],[10,1,13,1],[10,2,13,2],[10,3,13,3],[10,4,13,4],[10,5,13,5],[10,6,13,6],[10,7,13,7]]}
[null,null,"v.202305"]
[null,null,"Créer, connaître et partager : Organismes autochtones (organismes artistiques ou culturels)"]
[]
[null,null,"Publications, collections, productions pour organismes collectionneurs : Musées et galeries d'art, et organismes des arts médiatiques seulement"]
[]
[null,null,"Utilisez l'espace ci-dessous pour répertorier un échantillon représentatif de votre activité de collecte (y compris l'équipement) au cours des 4 dernières années. Vos sélections doivent démontrer comment vos activités appuient votre vision artistique ou votre stratégie de collecte. Les organismes d'arts médiatiques doivent se concentrer uniquement sur les œuvres d'arts médiatiques indépendantes canadiennes. Les organismes d'arts visuels doivent mettre l'accent sur leurs collections d'art contemporain."]
[]
[]
[null,null,"Au besoin, regroupez les collections similaires. "]
[]
[null,null,"Activité récente\n(Veuillez utiliser le menu déroulant)","Titre / Nom de la publication, collection ou production\n(pour les collections, veuillez fournir des détails plus bas)","Arts médiatiques : détails\n(Veuillez utiliser le menu déroulant)","Arts visuels : détails\n(Veuillez utiliser le menu déroulant)","Artiste clé/collaborateur clé/participant clé\n(le cas échéant)","Rémunération\n(le cas échéant)","Commentaires"]
[]
[]
[]
[null,1,"SÉLECTIONNEZ",null,"SÉLECTIONNEZ","SÉLECTIONNEZ"]
[null,2,"SÉLECTIONNEZ",null,"SÉLECTIONNEZ","SÉLECTIONNEZ"]
[null,3,"SÉLECTIONNEZ",null,"SÉLECTIONNEZ","SÉLECTIONNEZ"]
[null,4,"SÉLECTIONNEZ",null,"SÉLECTIONNEZ","SÉLECTIONNEZ"]
[null,5,"SÉLECTIONNEZ",null,"SÉLECTIONNEZ","SÉLECTIONNEZ"]
[null,6,"SÉLECTIONNEZ",null,"SÉLECTIONNEZ","SÉLECTIONNEZ"]
[null,7,"SÉLECTIONNEZ",null,"SÉLECTIONNEZ","SÉLECTIONNEZ"]
[null,8,"SÉLECTIONNEZ",null,"SÉLECTIONNEZ","SÉLECTIONNEZ"]
[null,9,"SÉLECTIONNEZ",null,"SÉLECTIONNEZ","SÉLECTIONNEZ"]
[null,10,"SÉLECTIONNEZ",null,"SÉLECTIONNEZ","SÉLECTIONNEZ"]
[null,11,"SÉLECTIONNEZ",null,"SÉLECTIONNEZ","SÉLECTIONNEZ"]
[null,12,"SÉLECTIONNEZ",null,"SÉLECTIONNEZ","SÉLECTIONNEZ"]
[null,13,"SÉLECTIONNEZ",null,"SÉLECTIONNEZ","SÉLECTIONNEZ"]
[null,14,"SÉLECTIONNEZ",null,"SÉLECTIONNEZ","SÉLECTIONNEZ"]
[null,15,"SÉLECTIONNEZ",null,"SÉLECTIONNEZ","SÉLECTIONNEZ"]
[null,16,"SÉLECTIONNEZ",null,"SÉLECTIONNEZ","SÉLECTIONNEZ"]
[null,17,"SÉLECTIONNEZ",null,"SÉLECTIONNEZ","SÉLECTIONNEZ"]
[null,18,"SÉLECTIONNEZ",null,"SÉLECTIONNEZ","SÉLECTIONNEZ"]
[null,19,"SÉLECTIONNEZ",null,"SÉLECTIONNEZ","SÉLECTIONNEZ"]
[null,20,"SÉLECTIONNEZ",null,"SÉLECTIONNEZ","SÉLECTIONNEZ"]
[]
[null,null,"Pour les collections : Veuillez énumérer ci-dessous, les titres/travaux et artistes de chaque collection."]

{"sheet":"C1 Programmation - antérieure ","index":3,"n_rows":69,"n_cols":15,"rows_kept":69,"cut":false,"hidden":false,"merged":[[29,6,29,7],[29,9,29,10],[30,6,30,7],[30,9,30,10],[31,6,31,7],[31,9,31,10],[26,6,26,7],[26,9,26,10],[27,6,27,7],[27,9,27,10],[28,6,28,7],[28,9,28,10],[35,6,35,7],[35,9,35,10],[36,6,36,7],[36,9,36,10],[37,6,37,7],[37,9,37,10],[32,6,32,7],[32,9,32,10],[33,6,33,7],[33,9,33,10],[34,6,34,7],[34,9,34,10],[41,6,41,7],[41,9,41,10],[42,6,42,7],[42,9,42,10],[43,6,43,7],[43,9,43,10],[38,6,38,7],[38,9,38,10],[39,6,39,7],[39,9,39,10],[40,6,40,7],[40,9,40,10],[47,6,47,7],[47,9,47,10],[48,6,48,7],[48,9,48,10],[49,6,49,7],[49,9,49,10],[44,6,44,7],[44,9,44,10],[45,6,45,7],[45,9,45,10],[46,6,46,7],[46,9,46,10],[53,6,53,7],[53,9,53,10],[59,6,59,7],[59,9,59,10],[60,6,60,7],[60,9,60,10],[58,6,58,7],[58,9,58,10],[54,6,54,7],[54,9,54,10],[55,6,55,7],[55,9,55,10],[57,6,57,7],[57,9,57,10],[50,6,50,7],[50,9,50,10],[51,6,51,7],[51,9,51,10],[52,6,52,7],[52,9,52,10],[61,6,61,7],[61,9,61,10],[13,5,25,5],[13,13,25,13],[65,6,65,7],[65,9,65,10],[62,6,62,7],[62,9,62,10],[63,6,63,7],[63,9,63,10],[64,6,64,7],[64,9,64,10],[13,8,25,8],[13,9,25,10],[56,6,56,7],[56,9,56,10],[13,14,25,14],[13,6,25,7],[1,1,1,14],[4,1,5,14],[10,4,12,4],[10,5,12,5],[10,6,12,7],[10,8,12,14],[3,1,3,14],[8,1,8,14],[10,1,25,1],[10,2,25,2],[13,11,25,11],[13,12,25,12],[10,3,25,3],[13,4,25,4]]}
[null,"v.202305"]
[null,"Créer, connaître et partager : Organismes autochtones (organismes artistiques ou culturels)"]
[]
[null,"Programmation artistique pour les arts de la scène et les arts visuels seulement - pour les 2 dernières années complétées"]
[null,"(facultatif) Les demandeurs de subventions d'une durée de 4 ans peuvent fournir des renseignements au sujet des 4 dernières années complétées afin de souligner des activités particulières ou de présenter une variété de leur programmation."]
[]
[]
[null,"Remplissez une ligne pour chaque programme clé ou activité publique majeure réalisé(e) par votre organisme."]
[null,"Au besoin, regroupez les programmes ou activités similaires. Ne répétez pas les activités incluses dans les onglets « D Rayonnement »."]
[]
[null,null,"Mois/année ou Période de temps","Titre de l'œuvre, de la prestation, du programme, \nde l'exposition (expositions : veuillez fournir des détails plus bas)","Pour les arts visuels seulement","Personne artistique responsable\n(Nom et rôle)                                                                    ","Lieux de l'activité",null,"Pour les arts de la scène seulement"]
[]
[]
[null,null,null,null,"Précisez le type d'activité (indiquez tous les choix pertinents) :  \nC (contemporaine),\nCat (catalogue publié) \nR (rétrospective), \nI (interne), \nCO (coproduction avec un autre organisme), \nE (emprunté), \nIt (itinérante), \nMN (médias numériques)","Par ex., chorégraphe, conservateur, commissaire, compositeur, chef d'orchestre, chef de chœur, directeur, auteur dramatique, créateur, etc.","Villes, régions ou pays",null,"Nombre de prestations","Lieu de présentation\n(prestations locales seulement)",null," Capacité d'accueil du lieu\n(prestations locales seulement)","Nombre estimé de spectateurs :  % de la capacité \n(prestations locales seulement)","Cachets garantis","Recettes \n(si elles sont partagées, votre part seulement)"]
[]
[]
[]
[]
[]
[]
[]
[]
[]
[]
[]
[]
[null,1]
[null,2]
[null,3]
[null,4]
[null,5]
[null,6]
[null,7]
[null,8]
[null,9]
[null,10]
[null,11]
[null,12]
[null,13]
[null,14]
[null,15]
[null,16]
[null,17]
[null,18]
[null,19]
[null,20]
[null,21]
[null,22]
[null,23]
[null,24]
[null,25]
[null,26]
[null,27]
[null,28]
[null,29]
[null,30]
[null,31]
[null,32]
[null,33]
[null,34]
[null,35]
[null,36]
[null,37]
[null,38]
[null,39]
[null,40]
[]
[]
[null,null,"Pour les expositions  ̶  Veuillez énumérer dans l'espace ci-dessous les artistes clés de chacune des activités."]

{"sheet":"C2 Programmation - en cours","index":4,"n_rows":54,"n_cols":16,"rows_kept":54,"cut":false,"hidden":false,"merged":[[24,7,24,8],[24,10,24,11],[25,7,25,8],[25,10,25,11],[26,7,26,8],[26,10,26,11],[27,7,27,8],[27,10,27,11],[28,7,28,8],[28,10,28,11],[29,7,29,8],[29,10,29,11],[30,7,30,8],[30,10,30,11],[31,7,31,8],[31,10,31,11],[32,7,32,8],[32,10,32,11],[33,7,33,8],[33,10,33,11],[34,7,34,8],[34,10,34,11],[35,7,35,8],[35,10,35,11],[36,7,36,8],[36,10,36,11],[37,7,37,8],[37,10,37,11],[38,7,38,8],[38,10,38,11],[39,7,39,8],[39,10,39,11],[40,7,40,8],[40,10,40,11],[41,7,41,8],[41,10,41,11],[42,7,42,8],[42,10,42,11],[43,7,43,8],[43,10,43,11],[44,7,44,8],[44,10,44,11],[48,7,48,8],[48,10,48,11],[45,7,45,8],[45,10,45,11],[46,7,46,8],[46,10,46,11],[47,7,47,8],[47,10,47,11],[11,7,23,8],[1,1,1,14],[8,4,10,4],[8,5,10,5],[8,6,10,6],[8,7,10,8],[8,9,10,15],[3,1,3,15],[5,1,5,15],[6,1,6,15],[8,1,23,1],[8,2,23,2],[8,3,23,3],[11,4,23,4],[11,5,23,5],[11,6,23,6],[11,15,23,15],[11,9,23,9],[11,10,23,11],[11,12,23,12],[11,13,23,13],[11,14,23,14]]}
[null,"v.202305"]
[null,"Créer, connaître et partager : Organismes autochtones (organismes artistiques ou culturels)"]
[]
[null,"Programmation artistique pour les arts de la scène et les arts visuels seulement - pour l'année en cours (l'année précédant la première année visée par cette demande de subvention)"]
[]
[null,"Remplissez une ligne pour chaque programme clé ou activité publique majeure réalisé(e) par votre organisme. "]
[null,"Au besoin, regroupez les programmes ou activités similaires. Ne répétez pas les activités incluses dans l'onglet « D Rayonnement »."]
[]
[null,null,"Mois/année ou Période de temps","Titre de l'œuvre, de la prestation, du programme, \nde l'exposition (expositions : veuillez fournir des détails plus bas)","Statut             ","Pour les arts visuels seulement","Personne artistique responsable\n(Nom et rôle)                                                                    ","Lieux de l'activité",null,"Pour les arts de la scène seulement"]
[]
[]
[null,null,null,null,"Confirmé ou \nNon confirmé","Précisez le type d'activité (indiquez tous les choix pertinents):  \nC (contemporaine),\nCat (catalogue publié) \nR (rétrospective), \nI (interne), \nCO (coproduction avec un autre organisme), \nE (emprunté), \nIt (itinérante), \nMN (médias numériques)","Par ex., chorégraphe, conservateur, commissaire, compositeur, chef d'orchestre, chef de chœur, directeur, auteur dramatique, créateur, etc.","Villes, régions ou pays",null,"Nombre de prestations","Lieu de présentation\n(prestations locales seulement)",null," Capacité d'accueil du lieu\n(prestations locales seulement)","Nombre estimé de spectateurs :  % de la capacité \n(prestations locales seulement)","Cachets garantis","Recettes \n(si elles sont partagées, votre part seulement)"]
[]
[]
[]
[]
[]
[]
[]
[]
[]
[]
[]
[]
[null,1,null,null,"SÉLECTIONNEZ"]
[null,2,null,null,"SÉLECTIONNEZ"]
[null,3,null,null,"SÉLECTIONNEZ"]
[null,4,null,null,"SÉLECTIONNEZ"]
[null,5,null,null,"SÉLECTIONNEZ"]
[null,6,null,null,"SÉLECTIONNEZ"]
[null,7,null,null,"SÉLECTIONNEZ"]
[null,8,null,null,"SÉLECTIONNEZ"]
[null,9,null,null,"SÉLECTIONNEZ"]
[null,10,null,null,"SÉLECTIONNEZ"]
[null,11,null,null,"SÉLECTIONNEZ"]
[null,12,null,null,"SÉLECTIONNEZ"]
[null,13,null,null,"SÉLECTIONNEZ"]
[null,14,null,null,"SÉLECTIONNEZ"]
[null,15,null,null,"SÉLECTIONNEZ"]
[null,16,null,null,"SÉLECTIONNEZ"]
[null,17,null,null,"SÉLECTIONNEZ"]
[null,18,null,null,"SÉLECTIONNEZ"]
[null,19,null,null,"SÉLECTIONNEZ"]
[null,20,null,null,"SÉLECTIONNEZ"]
[null,21,null,null,"SÉLECTIONNEZ"]
[null,22,null,null,"SÉLECTIONNEZ"]
[null,23,null,null,"SÉLECTIONNEZ"]
[null,24,null,null,"SÉLECTIONNEZ"]
[null,25,null,null,"SÉLECTIONNEZ"]
[]
[]
[]
[]
[null,null,"Pour les expositions  ̶  Veuillez énumérer dans l'espace ci-dessous les artistes clés de chacune des activités."]

{"sheet":"C3 Programmation - à venir","index":5,"n_rows":67,"n_cols":16,"rows_kept":67,"cut":false,"hidden":false,"merged":[[8,4,10,4],[8,5,10,5],[8,6,10,6],[8,7,10,8],[8,9,10,15],[11,10,23,11],[11,12,23,12],[11,13,23,13],[1,1,1,15],[3,1,3,15],[5,1,5,15],[6,1,6,15],[8,1,23,1],[8,2,23,2],[8,3,23,3],[11,14,23,14],[11,15,23,15],[11,4,23,4],[26,7,26,8],[26,10,26,11],[33,7,33,8],[33,10,33,11],[28,7,28,8],[28,10,28,11],[11,5,23,5],[11,6,23,6],[11,7,23,8],[11,9,23,9],[29,7,29,8],[29,10,29,11],[24,7,24,8],[24,10,24,11],[25,7,25,8],[25,10,25,11],[27,7,27,8],[27,10,27,11],[34,7,34,8],[34,10,34,11],[35,7,35,8],[35,10,35,11],[30,7,30,8],[30,10,30,11],[31,7,31,8],[31,10,31,11],[32,7,32,8],[32,10,32,11],[47,7,47,8],[47,10,47,11],[36,7,36,8],[36,10,36,11],[37,7,37,8],[37,10,37,11],[38,7,38,8],[38,10,38,11],[39,7,39,8],[39,10,39,11],[40,7,40,8],[40,10,40,11],[41,7,41,8],[41,10,41,11],[42,7,42,8],[42,10,42,11],[43,7,43,8],[43,10,43,11],[44,7,44,8],[44,10,44,11],[45,7,45,8],[45,10,45,11],[46,7,46,8],[46,10,46,11],[48,7,48,8],[48,10,48,11],[49,7,49,8],[49,10,49,11],[50,7,50,8],[50,10,50,11],[56,10,56,11],[51,7,51,8],[51,10,51,11],[52,7,52,8],[52,10,52,11],[53,7,53,8],[53,10,53,11],[54,7,54,8],[54,10,54,11],[55,7,55,8],[57,7,57,8],[57,10,57,11],[58,7,58,8],[58,10,58,11],[59,7,59,8],[59,10,59,11],[55,10,55,11],[56,7,56,8],[63,7,63,8],[63,10,63,11],[60,7,60,8],[60,10,60,11],[61,7,61,8],[61,10,61,11],[62,7,62,8],[62,10,62,11]]}
[null,"v.202305"]
[null,"Créer, connaître et partager : Organismes autochtones (organismes artistiques ou culturels)"]
[]
[null,"Programmation artistique pour les arts de la scène et les arts visuels seulement - pour le prochain cycle de financement (les années visées par cette demande de subvention)"]
[]
[null,"Remplissez une ligne pour chaque programme clé ou activité publique majeure réalisé(e) par votre organisme. "]
[null,"Au besoin, regroupez les programmes ou activités similaires. Ne répétez pas les activités incluses dans l'onglet « D Rayonnement »."]
[]
[null,null,"Mois/année ou Période de temps","Titre de l'œuvre, de la prestation, du programme, \nde l'exposition (expositions : veuillez fournir des détails plus bas)","Statut             ","Pour les arts visuels seulement","Personne artistique responsable\n(Nom et rôle)                                                                    ","Lieux de l'activité",null,"Pour les arts de la scène seulement"]
[]
[]
[null,null,null,null,"Confirmé ou \nNon confirmé","Précisez le type d'activité (indiquez tous les choix pertinents):  \nC (contemporaine),\nCat (catalogue publié) \nR (rétrospective), \nI (interne), \nCO (coproduction avec un autre organisme), \nE (emprunté), \nIt (itinérante), \nMN (médias numériques)","Par ex., chorégraphe, conservateur, commissaire, compositeur, chef d'orchestre, chef de chœur, directeur, auteur dramatique, créateur, etc.","Villes, régions ou pays",null,"Nombre de prestations","Lieu de présentation\n(prestations locales seulement)",null," Capacité d'accueil du lieu\n(prestations locales seulement)","Nombre estimé de spectateurs :  % de la capacité \n(prestations locales seulement)","Cachets garantis","Recettes \n(si elles sont partagées, votre part seulement)"]
[]
[]
[]
[]
[]
[]
[]
[]
[]
[]
[]
[]
[null,1,null,null,"SÉLECTIONNEZ"]
[null,2,null,null,"SÉLECTIONNEZ"]
[null,3,null,null,"SÉLECTIONNEZ"]
[null,4,null,null,"SÉLECTIONNEZ"]
[null,5,null,null,"SÉLECTIONNEZ"]
[null,6,null,null,"SÉLECTIONNEZ"]
[null,7,null,null,"SÉLECTIONNEZ"]
[null,8,null,null,"SÉLECTIONNEZ"]
[null,9,null,null,"SÉLECTIONNEZ"]
[null,10,null,null,"SÉLECTIONNEZ"]
[null,11,null,null,"SÉLECTIONNEZ"]
[null,12,null,null,"SÉLECTIONNEZ"]
[null,13,null,null,"SÉLECTIONNEZ"]
[null,14,null,null,"SÉLECTIONNEZ"]
[null,15,null,null,"SÉLECTIONNEZ"]
[null,16,null,null,"SÉLECTIONNEZ"]
[null,17,null,null,"SÉLECTIONNEZ"]
[null,18,null,null,"SÉLECTIONNEZ"]
[null,19,null,null,"SÉLECTIONNEZ"]
[null,20,null,null,"SÉLECTIONNEZ"]
[null,21,null,null,"SÉLECTIONNEZ"]
[null,22,null,null,"SÉLECTIONNEZ"]
[null,23,null,null,"SÉLECTIONNEZ"]
[null,24,null,null,"SÉLECTIONNEZ"]
[null,25,null,null,"SÉLECTIONNEZ"]
[null,26,null,null,"SÉLECTIONNEZ"]
[null,27,null,null,"SÉLECTIONNEZ"]
[null,28,null,null,"SÉLECTIONNEZ"]
[null,29,null,null,"SÉLECTIONNEZ"]
[null,30,null,null,"SÉLECTIONNEZ"]
[null,31,null,null,"SÉLECTIONNEZ"]
[null,32,null,null,"SÉLECTIONNEZ"]
[null,33,null,null,"SÉLECTIONNEZ"]
[null,34,null,null,"SÉLECTIONNEZ"]
[null,35,null,null,"SÉLECTIONNEZ"]
[null,36,null,null,"SÉLECTIONNEZ"]
[null,37,null,null,"SÉLECTIONNEZ"]
[null,38,null,null,"SÉLECTIONNEZ"]
[null,39,null,null,"SÉLECTIONNEZ"]
[null,40,null,null,"SÉLECTIONNEZ"]
[]
[]
[null,null,"Pour les expositions  ̶  Veuillez énumérer dans l'espace ci-dessous les artistes clés de chacune des expositions."]

{"sheet":"D1 Rayonnement - antérieur","index":6,"n_rows":54,"n_cols":9,"rows_kept":54,"cut":false,"hidden":false,"merged":[[11,1,13,1],[11,2,13,2],[11,3,13,3],[11,4,13,4],[11,5,13,5],[1,2,1,8],[11,6,13,6],[11,7,13,7],[11,8,13,8],[3,2,3,8],[7,2,7,8],[8,2,8,8],[9,2,9,8],[4,2,5,8]]}
[null,null,"v.202305"]
[null,null,"Créer, connaître et partager : Organismes autochtones (organismes artistiques ou culturels)"]
[]
[null,null,"Projection/Visionnement d'œuvres, rayonnement public et programmation connexe - pour les 2 dernières années complétées"]
[null,null,"(facultatif) Les demandeurs de subventions d'une durée de 4 ans peuvent fournir des renseignements au sujet des 4 dernières années complétées afin de souligner des activités particulières ou de présenter une variété de leur programmation."]
[]
[]
[null,null,"Fournissez une liste représentative de vos activités de projection/visionnement d'œuvres, de rayonnement public ou de programmation connexe."]
[null,null,"Exemples d'activités à inclure : projection/visionnement d'œuvres, présentation d'un autre artiste, résidence, activité de développement de public, vitrine, causerie d'artistes, développement professionnel pour la communauté artistique, conférence, etc."]
[null,null,"Au besoin, regroupez les programmes ou activités similaires. Ne répétez pas les activités incluses dans les onglets « C Programmation »."]
[]
[null,null,"Mois/année ou Période de temps","Nom de l'événement","Type d'activité","Artiste clé/ collaborateur clé/ participant clé ","Autres collaborateurs clés","Public cible","Détails/Commentaires"]
[]
[]
[null,1]
[null,2]
[null,3]
[null,4]
[null,5]
[null,6]
[null,7]
[null,8]
[null,9]
[null,10]
[null,11]
[null,12]
[null,13]
[null,14]
[null,15]
[null,16]
[null,17]
[null,18]
[null,19]
[null,20]
[null,21]
[null,22]
[null,23]
[null,24]
[null,25]
[null,26]
[null,27]
[null,28]
[null,29]
[null,30]
[null,31]
[null,32]
[null,33]
[null,34]
[null,35]
[null,36]
[null,37]
[null,38]
[null,39]
[null,40]

{"sheet":"D2 Rayonnement - en cours","index":7,"n_rows":37,"n_cols":9,"rows_kept":37,"cut":false,"hidden":false,"merged":[[1,2,1,8],[9,6,11,6],[9,7,11,7],[9,8,11,8],[3,2,3,8],[5,2,5,8],[6,2,6,8],[7,2,7,8],[9,1,11,1],[9,2,11,2],[9,3,11,3],[9,4,11,4],[9,5,11,5]]}
[null,null,"v.202305"]
[null,null,"Créer, connaître et partager : Organismes autochtones (organismes artistiques ou culturels)"]
[]
[null,null,"Projection/Visionnement d'œuvres, rayonnement public et programmation connexe - pour l'année en cours (l'année précédant la première année visée par cette demande de subvention)"]
[]
[null,null,"Fournissez une liste représentative de vos activités de projection/visionnement d'œuvres, de rayonnement public ou de programmation connexe."]
[null,null,"Exemples d'activités à inclure : projection/visionnement d'œuvres, présentation d'un autre artiste, résidence, activité de développement de public, vitrine, causerie d'artistes, développement professionnel pour la communauté artistique, conférence, etc."]
[null,null,"Au besoin, regroupez les programmes ou activités similaires. Ne répétez pas les activités incluses dans les onglets « C Programmation »."]
[]
[null,null,"Mois/année ou Période de temps","Nom de l'événement","Type d'activité","Artiste clé/ collaborateur clé/ participant clé ","Autres collaborateurs clés","Public cible","Détails/Commentaires"]
[]
[]
[null,1]
[null,2]
[null,3]
[null,4]
[null,5]
[null,6]
[null,7]
[null,8]
[null,9]
[null,10]
[null,11]
[null,12]
[null,13]
[null,14]
[null,15]
[null,16]
[null,17]
[null,18]
[null,19]
[null,20]
[null,21]
[null,22]
[null,23]
[null,24]
[null,25]

{"sheet":"D3 Rayonnement - à venir","index":8,"n_rows":52,"n_cols":9,"rows_kept":52,"cut":false,"hidden":false,"merged":[[1,2,1,8],[9,6,11,6],[9,7,11,7],[9,8,11,8],[3,2,3,8],[5,2,5,8],[6,2,6,8],[7,2,7,8],[9,1,11,1],[9,2,11,2],[9,3,11,3],[9,4,11,4],[9,5,11,5]]}
[null,null,"v.202305"]
[null,null,"Créer, connaître et partager : Organismes autochtones (organismes artistiques ou culturels)"]
[]
[null,null,"Projection/Visionnement d'œuvres, rayonnement public et programmation connexe - pour le prochain cycle de financement (les années visées par cette demande de subvention)"]
[]
[null,null,"Fournissez une liste représentative de vos activités de projection/visionnement d'œuvres, de rayonnement public ou de programmation connexe."]
[null,null,"Exemples d'activités à inclure : projection/visionnement d'œuvres, présentation d'un autre artiste, résidence, activité de développement de public, vitrine, causerie d'artistes, développement professionnel pour la communauté artistique, conférence, etc."]
[null,null,"Au besoin, regroupez les programmes ou activités similaires. Ne répétez pas les activités incluses dans les onglets « C Programmation »."]
[]
[null,null,"Mois/année ou Période de temps","Nom de l'événement","Type d'activité","Artiste clé/ collaborateur clé/ participant clé ","Autres collaborateurs clés","Public cible","Détails/Commentaires"]
[]
[]
[null,1]
[null,2]
[null,3]
[null,4]
[null,5]
[null,6]
[null,7]
[null,8]
[null,9]
[null,10]
[null,11]
[null,12]
[null,13]
[null,14]
[null,15]
[null,16]
[null,17]
[null,18]
[null,19]
[null,20]
[null,21]
[null,22]
[null,23]
[null,24]
[null,25]
[null,26]
[null,27]
[null,28]
[null,29]
[null,30]
[null,31]
[null,32]
[null,33]
[null,34]
[null,35]
[null,36]
[null,37]
[null,38]
[null,39]
[null,40]

{"sheet":"E Instructions - diffuseur","index":9,"n_rows":75,"n_cols":5,"rows_kept":75,"cut":false,"hidden":false,"merged":[[57,1,57,15],[11,1,12,15],[28,2,28,15],[34,2,34,15],[53,3,54,15],[9,1,9,15],[42,2,43,15],[45,2,47,15],[48,2,49,15],[50,3,52,15],[35,2,35,15],[29,2,29,15],[1,1,1,15],[4,1,4,15],[5,1,5,15],[6,1,6,15],[3,1,3,15],[2,1,2,15],[58,1,60,15],[64,1,66,15],[61,1,63,15],[72,1,72,14],[73,3,73,14]]}
[null,"v.202305"]
[null,"Créer, connaître et partager : Organismes autochtones (organismes qui présentent une programmation, festivals et diffuseurs)"]
[null,"Instructions pour remplir le document « Annexes »"]
[null,"Les organismes qui présentent une programmation, les festivals et les diffuseurs doivent consulter les onglets de E à G3."]
[null,"Les organismes artistiques ou culturels qui créent ou produisent des œuvres doivent consulter l'onglet A."]
[null,"Les organismes de services et de soutien doivent consulter l'onglet H."]
[null,"Les éditeurs doivent consulter l'onglet J."]
[]
[]
[null,"Les organismes qui présentent une programmation, les festivals et les diffuseurs"]
[]
[null,"Veuillez noter qu'au bas de la page se trouvent plusieurs onglets. Les organismes qui présentent une programmation, les festivals et les diffuseurs doivent consulter les onglets suivants :"]
[]
[null,"« E Instructions - diffuseur », « F1, F2 et F3 Programmation » et « G1, G2 et G3 Rayonnement »."]
[]
[]
[]
[]
[null,"À la suite de ces instructions, chaque onglet contient une feuille distincte que vous devez compléter."]
[null,"Lorsque vous cliquez sur « Sauvegarder », tous les onglets sont sauvegardés en même temps."]
[null,"Lorsque vous téléversez le document à votre formulaire de demande, tous les onglets y sont transférés ensemble. "]
[]
[]
[null,"1. Après avoir téléchargé le formulaire, sauvegardez-le sur votre ordinateur. Vous pouvez le sauvegarder sous un nom différent."]
[]
[null,"2. Complétez les onglets  « F1, F2 et F3 Programmation » ."]
[null,null," - Veuillez inscrire les renseignements qui correspondent aux activités de votre organisme."]
[null,null," - À chaque ligne, veuillez inscrire les renseignements pertinents concernant l'activité."]
[null,null," - F1 porte sur les activités antérieures, F2 sur l'année en cours, et F3 sur les activités futures. "]
[null,null,"Pour plus de renseignements, consultez la rubrique « Instructions détaillées pour les onglets  F1, F2, F3 et G1, G2, G3 »."]
[]
[null,"3. Complétez les onglets « G1, G2 et G3 Rayonnement » ."]
[null,null," - Veuillez inscrire les renseignements qui correspondent aux activités de votre organisme."]
[null,null," - À chaque ligne, veuillez inscrire les renseignements pertinents concernant l'activité."]
[null,null," - G1 porte sur les activités antérieures, G2 sur l'année en cours, et G3 sur les activités futures. "]
[null,null,"Pour plus de renseignements, consultez la rubrique « Instructions détaillées pour les onglets  F1, F2, F3 et G1, G2, G3 »."]
[]
[null,"4. N’oubliez pas de sauvegarder à nouveau le document sur votre ordinateur."]
[null,"5. Retournez au portail et téléversez le document complet à votre demande."]
[]
[]
[null,"Formulaire financier CADAC"]
[null,null," - Veuillez inscrire à la ligne 5175 du formulaire financier CADAC (Éducation, développement de public et sensibilisation) les coûts liés à rendre le contenu artistique accessible aux membres de l'auditoire qui sont sourds ou handicapés."]
[]
[]
[null,null,"Si votre Profil de candidat approuvé dans le portail inclu l'auto-identification comme étant un organisme axé sur la pratique des artistes handicapés et sourds, vous pouvez soumettre une demande distincte au Soutien à l'accès aux services, lequel se trouve dans la section Fonds stratégiques de vos programmes disponibles."]
[]
[]
[null,null,"Si vous recevez un appui du Soutien à l’accès aux services pour vos activités, vous inscrirez dans vos budgets révisés et finaux, le montant qui vous a été accordé et les coûts couverts :"]
[]
[null,null,null," - Veuillez inscrire à la ligne 5190 du formulaire financier CADAC (Autres dépenses artistiques, de programmation, et de services) les coûts liés aux mesures de soutien et aux services nécessaires aux artistes et aux professionnels des arts sourds ou handicapés qui participent aux activités. "]
[]
[]
[null,null,null," - Veuillez inscrire à la ligne 4425 du formulaire financier CADAC (Autres subventions du Conseil des arts du Canada) le montant du Soutien à l'accès aux services."]
[]
[]
[]
[null,"Instructions détaillées pour les onglets  F1, F2, F3 et G1, G2, G3"]
[null,"F3 et G3 portent sur les activités qui ont lieu au cours des exercices financiers de votre organisme pour lesquels vous demandez un appui (le prochain cycle financier de subvention de 4 ans). Fournissez des détails concernant vos plans futurs, autant que vous les connaissez. La première année devrait être solide. Cependant, il est possible que, plus les années visées sont lointaines, moins vous aurez de détails à offrir."]
[]
[]
[null,"F2 et G2 portent sur les activités qui ont lieu au cours de l'exercice financier qui précède les années visées dans les onglets F3 et G3. Habituellement, ceci coïncide avec l'année où vous présentez votre demande et, si vous recevez déjà une subvention de base, ce sera aussi la dernière année de votre cycle de subvention en cours. "]
[]
[]
[null,"F1 et G1 portent sur les 2 dernières années complétées qui précèdent l'année en cours visée dans les onglets F2 et G2. Vous avez la possibilité de fournir des renseignements au sujet des 4 dernières années complétées afin de souligner des activités particulières ou de présenter une variété de votre programmation."]
[]
[]
[]
[]
[]
[]
[]
[]
[]
[null,null,null,null," "]

{"sheet":"F1 Programmation - antérieure ","index":10,"n_rows":92,"n_cols":14,"rows_kept":92,"cut":false,"hidden":false,"merged":[[10,1,18,1],[10,2,18,2],[10,3,18,3],[10,4,18,4],[10,5,18,5],[3,1,3,13],[6,1,6,13],[7,1,7,13],[4,1,4,13],[1,1,1,13],[10,6,18,6],[10,7,18,7],[10,8,18,8],[10,9,12,10],[10,11,12,13],[13,9,18,9],[13,10,18,10],[13,11,18,11],[13,12,18,12],[13,13,18,13]]}
[null,"v.202305"]
[null,"Créer, connaître et partager : Organismes autochtones (organismes qui présentent une programmation, festivals et diffuseurs)"]
[]
[null,"Programmation artistique - pour les 2 dernières années complétées"]
[null,"(facultatif) Vous pouvez fournir des renseignements au sujet des 4 dernières années complétées afin de souligner des activités particulières ou de présenter une variété de votre programmation."]
[]
[null,"Remplissez une ligne pour chaque programme clé ou activité publique majeure réalisé(e) par votre organisme. "]
[null,"Au besoin, regroupez les programmes ou activités similaires. Ne répétez pas les activités incluses dans l'onglet « G Rayonnement »."]
[]
[]
[null,null,"Mois/année ou Période de temps","Titre de l'œuvre, de la production, de l'exposition ou de l'activité présentée (présentations regroupées : veuillez fournir des détails à la suite de cette liste)","Nom du créateur,  réalisateur ou propriétaire de l'oeuvre, de la production, exposition ou activité.\n(p.ex., artiste, commissaire, conservateur, groupe ou organisme)","Champ de pratique, forme d'expression artistique ou genre","Lieu de présentation","Nombre estimé de spectateurs","Recettes ou ventes de billets","Pour les activités qui permettent au public de les accéder en tout temps",null,"Pour les activités ayant des horaires prévus pour la participation du public"]
[]
[]
[null,null,null,null,null,null,null,null,null,"# de jours que l'activité est disponible au public","Moyenne du nombre de spectacteurs par jour","Nombre de prestations","Capacité d'accueil du lieu (par prestation)","Nombre estimé de spectateurs en % de la capacité"]
[]
[]
[]
[]
[]
[null,1,null,null,null,null,null,null,null,null,{"$f":"IFERROR(H20/J20,0)","v":0},null,null,{"$f":"IFERROR(H20/(L20*M20),0)","v":0}]
[null,2,null,null,null,null,null,null,null,null,0,null,null,0]
[null,3,null,null,null,null,null,null,null,null,0,null,null,0]
[null,4,null,null,null,null,null,null,null,null,0,null,null,0]
[null,5,null,null,null,null,null,null,null,null,0,null,null,0]
[null,6,null,null,null,null,null,null,null,null,0,null,null,0]
[null,7,null,null,null,null,null,null,null,null,0,null,null,0]
[null,8,null,null,null,null,null,null,null,null,0,null,null,0]
[null,9,null,null,null,null,null,null,null,null,0,null,null,0]
[null,10,null,null,null,null,null,null,null,null,0,null,null,0]
[null,11,null,null,null,null,null,null,null,null,0,null,null,0]
[null,12,null,null,null,null,null,null,null,null,0,null,null,0]
[null,13,null,null,null,null,null,null,null,null,0,null,null,0]
[null,14,null,null,null,null,null,null,null,null,0,null,null,0]
[null,15,null,null,null,null,null,null,null,null,0,null,null,0]
[null,16,null,null,null,null,null,null,null,null,0,null,null,0]
[null,17,null,null,null,null,null,null,null,null,0,null,null,0]
[null,18,null,null,null,null,null,null,null,null,0,null,null,0]
[null,19,null,null,null,null,null,null,null,null,0,null,null,0]
[null,20,null,null,null,null,null,null,null,null,0,null,null,0]
[null,21,null,null,null,null,null,null,null,null,0,null,null,0]
[null,22,null,null,null,null,null,null,null,null,0,null,null,0]
[null,23,null,null,null,null,null,null,null,null,0,null,null,0]
[null,24,null,null,null,null,null,null,null,null,0,null,null,0]
[null,25,null,null,null,null,null,null,null,null,0,null,null,0]
[null,26,null,null,null,null,null,null,null,null,0,null,null,0]
[null,27,null,null,null,null,null,null,null,null,0,null,null,0]
[null,28,null,null,null,null,null,null,null,null,0,null,null,0]
[null,29,null,null,null,null,null,null,null,null,0,null,null,0]
[null,30,null,null,null,null,null,null,null,null,0,null,null,0]
[null,31,null,null,null,null,null,null,null,null,0,null,null,0]
[null,32,null,null,null,null,null,null,null,null,0,null,null,0]
[null,33,null,null,null,null,null,null,null,null,{"$f":"IFERROR(H52/J52,0)","v":0},null,null,{"$f":"IFERROR(H52/(L52*M52),0)","v":0}]
[null,34,null,null,null,null,null,null,null,null,0,null,null,0]
[null,35,null,null,null,null,null,null,null,null,0,null,null,0]
[null,36,null,null,null,null,null,null,null,null,0,null,null,0]
[null,37,null,null,null,null,null,null,null,null,0,null,null,0]
[null,38,null,null,null,null,null,null,null,null,0,null,null,0]
[null,39,null,null,null,null,null,null,null,null,0,null,null,0]
[null,40,null,null,null,null,null,null,null,null,0,null,null,0]
[null,41,null,null,null,null,null,null,null,null,0,null,null,0]
[null,42,null,null,null,null,null,null,null,null,0,null,null,0]
[null,43,null,null,null,null,null,null,null,null,0,null,null,0]
[null,44,null,null,null,null,null,null,null,null,0,null,null,0]
[null,45,null,null,null,null,null,null,null,null,0,null,null,0]
[null,46,null,null,null,null,null,null,null,null,0,null,null,0]
[null,47,null,null,null,null,null,null,null,null,0,null,null,0]
[null,48,null,null,null,null,null,null,null,null,0,null,null,0]
[null,49,null,null,null,null,null,null,null,null,0,null,null,0]
[null,50,null,null,null,null,null,null,null,null,0,null,null,0]
[null,51,null,null,null,null,null,null,null,null,0,null,null,0]
[null,52,null,null,null,null,null,null,null,null,0,null,null,0]
[null,53,null,null,null,null,null,null,null,null,0,null,null,0]
[null,54,null,null,null,null,null,null,null,null,0,null,null,0]
[null,55,null,null,null,null,null,null,null,null,0,null,null,0]
[null,56,null,null,null,null,null,null,null,null,0,null,null,0]
[null,57,null,null,null,null,null,null,null,null,0,null,null,0]
[null,58,null,null,null,null,null,null,null,null,0,null,null,0]
[null,59,null,null,null,null,null,null,null,null,0,null,null,0]
[null,60,null,null,null,null,null,null,null,null,0,null,null,0]
[null,61,null,null,null,null,null,null,null,null,0,null,null,0]
[null,62,null,null,null,null,null,null,null,null,0,null,null,0]
[null,63,null,null,null,null,null,null,null,null,0,null,null,0]
[null,64,null,null,null,null,null,null,null,null,0,null,null,0]
[null,65,null,null,null,null,null,null,null,null,{"$f":"IFERROR(H84/J84,0)","v":0},null,null,{"$f":"IFERROR(H84/(L84*M84),0)","v":0}]
[null,66,null,null,null,null,null,null,null,null,0,null,null,0]
[null,67,null,null,null,null,null,null,null,null,0,null,null,0]
[null,68,null,null,null,null,null,null,null,null,0,null,null,0]
[null,69,null,null,null,null,null,null,null,null,0,null,null,0]
[null,70,null,null,null,null,null,null,null,null,0,null,null,0]
[]
[]
[null,null,"Pour les représentations groupées   ̶  Veuillez énumérer dans l'espace ci-dessous les artistes clés de chacune des activité."]

{"sheet":"F2 Programmation - en cours","index":11,"n_rows":56,"n_cols":15,"rows_kept":56,"cut":false,"hidden":false,"merged":[[1,1,1,14],[9,1,17,1],[9,2,17,2],[9,3,17,3],[9,4,17,4],[3,1,3,14],[5,1,5,14],[6,1,6,14],[7,2,7,16],[9,12,11,14],[9,5,17,5],[9,6,17,6],[9,7,17,7],[9,8,17,8],[9,9,17,9],[12,11,17,11],[12,12,17,12],[12,13,17,13],[12,14,17,14],[9,10,11,11],[12,10,17,10]]}
[null,"v.202305"]
[null,"Créer, connaître et partager : Organismes autochtones (organismes qui présentent une programmation, festivals et diffuseurs)"]
[]
[null,"Programmation artistique - pour l'année en cours (l'année précédant la première année visée par cette demande de subvention)"]
[]
[null,"Remplissez une ligne pour chaque programme clé ou activité publique majeure réalisé(e) par votre organisme. "]
[null,"Au besoin, regroupez les programmes ou activités similaires. Ne répétez pas les activités incluses dans l'onglet « G Rayonnement »."]
[]
[]
[null,null,"Mois/année ou Période de temps","Titre de l'œuvre, de la production, de l'exposition ou de l'activité présentée (présentations regroupées : veuillez fournir des détails à la suite de cette liste)","Nom du créateur,  réalisateur ou propriétaire de l'oeuvre, de la production, exposition ou activité.\n(p.ex., artiste, commissaire, conservateur, groupe ou organisme)","Champ de pratique, forme d'expression artistique ou genre","Confirmé ou \nNon confirmé","Lieu de présentation","Nombre estimé de spectateurs","Recettes ou ventes de billets","Pour les activités qui permettent au public de les accéder en tout temps",null,"Pour les activités ayant des horaires prévus pour la participation du public"]
[]
[]
[null,null,null,null,null,null,null,null,null,null,"# de jours que l'activité est disponible au public","Moyenne du nombre de spectacteurs par jour","Nombre de prestations","Capacité d'accueil du lieu (par prestation)","Nombre estimé de spectateurs en % de la capacité"]
[]
[]
[]
[]
[]
[null,1,null,null,null,null,"SÉLECTIONNEZ",null,null,null,null,{"$f":"IFERROR(I19/K19,0)","v":0},null,null,{"$f":"IFERROR(I19/(M19*N19),0)","v":0}]
[null,2,null,null,null,null,"SÉLECTIONNEZ",null,null,null,null,0,null,null,0]
[null,3,null,null,null,null,"SÉLECTIONNEZ",null,null,null,null,0,null,null,0]
[null,4,null,null,null,null,"SÉLECTIONNEZ",null,null,null,null,0,null,null,0]
[null,5,null,null,null,null,"SÉLECTIONNEZ",null,null,null,null,0,null,null,0]
[null,6,null,null,null,null,"SÉLECTIONNEZ",null,null,null,null,0,null,null,0]
[null,7,null,null,null,null,"SÉLECTIONNEZ",null,null,null,null,0,null,null,0]
[null,8,null,null,null,null,"SÉLECTIONNEZ",null,null,null,null,0,null,null,0]
[null,9,null,null,null,null,"SÉLECTIONNEZ",null,null,null,null,0,null,null,0]
[null,10,null,null,null,null,"SÉLECTIONNEZ",null,null,null,null,0,null,null,0]
[null,11,null,null,null,null,"SÉLECTIONNEZ",null,null,null,null,0,null,null,0]
[null,12,null,null,null,null,"SÉLECTIONNEZ",null,null,null,null,0,null,null,0]
[null,13,null,null,null,null,"SÉLECTIONNEZ",null,null,null,null,0,null,null,0]
[null,14,null,null,null,null,"SÉLECTIONNEZ",null,null,null,null,0,null,null,0]
[null,15,null,null,null,null,"SÉLECTIONNEZ",null,null,null,null,0,null,null,0]
[null,16,null,null,null,null,"SÉLECTIONNEZ",null,null,null,null,0,null,null,0]
[null,17,null,null,null,null,"SÉLECTIONNEZ",null,null,null,null,0,null,null,0]
[null,18,null,null,null,null,"SÉLECTIONNEZ",null,null,null,null,0,null,null,0]
[null,19,null,null,null,null,"SÉLECTIONNEZ",null,null,null,null,0,null,null,0]
[null,20,null,null,null,null,"SÉLECTIONNEZ",null,null,null,null,0,null,null,0]
[null,21,null,null,null,null,"SÉLECTIONNEZ",null,null,null,null,0,null,null,0]
[null,22,null,null,null,null,"SÉLECTIONNEZ",null,null,null,null,0,null,null,0]
[null,23,null,null,null,null,"SÉLECTIONNEZ",null,null,null,null,0,null,null,0]
[null,24,null,null,null,null,"SÉLECTIONNEZ",null,null,null,null,0,null,null,0]
[null,25,null,null,null,null,"SÉLECTIONNEZ",null,null,null,null,0,null,null,0]
[null,26,null,null,null,null,"SÉLECTIONNEZ",null,null,null,null,0,null,null,0]
[null,27,null,null,null,null,"SÉLECTIONNEZ",null,null,null,null,0,null,null,0]
[null,28,null,null,null,null,"SÉLECTIONNEZ",null,null,null,null,0,null,null,0]
[null,29,null,null,null,null,"SÉLECTIONNEZ",null,null,null,null,0,null,null,0]
[null,30,null,null,null,null,"SÉLECTIONNEZ",null,null,null,null,0,null,null,0]
[null,31,null,null,null,null,"SÉLECTIONNEZ",null,null,null,null,0,null,null,0]
[null,32,null,null,null,null,"SÉLECTIONNEZ",null,null,null,null,0,null,null,0]
[null,33,null,null,null,null,"SÉLECTIONNEZ",null,null,null,null,0,null,null,0]
[null,34,null,null,null,null,"SÉLECTIONNEZ",null,null,null,null,0,null,null,0]
[null,35,null,null,null,null,"SÉLECTIONNEZ",null,null,null,null,0,null,null,0]
[]
[]
[null,null,"Pour les représentations groupées   ̶  Veuillez énumérer dans l'espace ci-dessous les artistes clés de chacune des activité."]

{"sheet":"F3 Programmation - à venir","index":12,"n_rows":91,"n_cols":15,"rows_kept":91,"cut":false,"hidden":false,"merged":[[9,5,17,5],[9,6,17,6],[9,7,17,7],[9,8,17,8],[3,1,3,14],[5,1,5,14],[6,1,6,14],[9,9,17,9],[1,1,1,14],[12,10,17,10],[12,11,17,11],[12,12,17,12],[12,13,17,13],[12,14,17,14],[9,10,11,11],[9,12,11,14],[9,1,17,1],[9,2,17,2],[9,3,17,3],[9,4,17,4]]}
[null,"v.202305"]
[null,"Créer, connaître et partager : Organismes autochtones (organismes qui présentent une programmation, festivals et diffuseurs)"]
[]
[null,"Programmation artistique - pour le prochain cycle de financement (les années visées par cette demande de subvention)"]
[]
[null,"Remplissez une ligne pour chaque programme clé ou activité publique majeure réalisé(e) par votre organisme. "]
[null,"Au besoin, regroupez les programmes ou activités similaires. Ne répétez pas les activités incluses dans l'onglet « G Rayonnement »."]
[]
[]
[null,null,"Mois/année ou Période de temps","Titre de l'œuvre, de la production, de l'exposition ou de l'activité présentée (présentations regroupées : veuillez fournir des détails à la suite de cette liste)","Nom du créateur,  réalisateur ou propriétaire de l'oeuvre, de la production, exposition ou activité.\n(p.ex., artiste, commissaire, conservateur, groupe ou organisme)","Champ de pratique, forme d'expression artistique ou genre","Confirmé ou \nNon confirmé","Lieu de présentation","Nombre estimé de spectateurs","Recettes ou ventes de billets","Pour les activités qui permettent au public de les accéder en tout temps",null,"Pour les activités ayant des horaires prévus pour la participation du public"]
[]
[]
[null,null,null,null,null,null,null,null,null,null,"# de jours que l'activité est disponible au public","Moyenne du nombre de spectacteurs par jour","Nombre de prestations","Capacité d'accueil du lieu (par prestation)","Nombre estimé de spectateurs en % de la capacité"]
[]
[]
[]
[]
[]
[null,1,null,null,null,null,"SÉLECTIONNEZ",null,null,null,null,{"$f":"IFERROR(I19/K19,0)","v":0},null,null,{"$f":"IFERROR(I19/(M19*N19),0)","v":0}]
[null,2,null,null,null,null,"SÉLECTIONNEZ",null,null,null,null,0,null,null,0]
[null,3,null,null,null,null,"SÉLECTIONNEZ",null,null,null,null,0,null,null,0]
[null,4,null,null,null,null,"SÉLECTIONNEZ",null,null,null,null,0,null,null,0]
[null,5,null,null,null,null,"SÉLECTIONNEZ",null,null,null,null,0,null,null,0]
[null,6,null,null,null,null,"SÉLECTIONNEZ",null,null,null,null,0,null,null,0]
[null,7,null,null,null,null,"SÉLECTIONNEZ",null,null,null,null,0,null,null,0]
[null,8,null,null,null,null,"SÉLECTIONNEZ",null,null,null,null,0,null,null,0]
[null,9,null,null,null,null,"SÉLECTIONNEZ",null,null,null,null,0,null,null,0]
[null,10,null,null,null,null,"SÉLECTIONNEZ",null,null,null,null,0,null,null,0]
[null,11,null,null,null,null,"SÉLECTIONNEZ",null,null,null,null,0,null,null,0]
[null,12,null,null,null,null,"SÉLECTIONNEZ",null,null,null,null,0,null,null,0]
[null,13,null,null,null,null,"SÉLECTIONNEZ",null,null,null,null,0,null,null,0]
[null,14,null,null,null,null,"SÉLECTIONNEZ",null,null,null,null,0,null,null,0]
[null,15,null,null,null,null,"SÉLECTIONNEZ",null,null,null,null,0,null,null,0]
[null,16,null,null,null,null,"SÉLECTIONNEZ",null,null,null,null,0,null,null,0]
[null,17,null,null,null,null,"SÉLECTIONNEZ",null,null,null,null,0,null,null,0]
[null,18,null,null,null,null,"SÉLECTIONNEZ",null,null,null,null,0,null,null,0]
[null,19,null,null,null,null,"SÉLECTIONNEZ",null,null,null,null,0,null,null,0]
[null,20,null,null,null,null,"SÉLECTIONNEZ",null,null,null,null,0,null,null,0]
[null,21,null,null,null,null,"SÉLECTIONNEZ",null,null,null,null,0,null,null,0]
[null,22,null,null,null,null,"SÉLECTIONNEZ",null,null,null,null,0,null,null,0]
[null,23,null,null,null,null,"SÉLECTIONNEZ",null,null,null,null,0,null,null,0]
[null,24,null,null,null,null,"SÉLECTIONNEZ",null,null,null,null,0,null,null,0]
[null,25,null,null,null,null,"SÉLECTIONNEZ",null,null,null,null,0,null,null,0]
[null,26,null,null,null,null,"SÉLECTIONNEZ",null,null,null,null,0,null,null,0]
[null,27,null,null,null,null,"SÉLECTIONNEZ",null,null,null,null,0,null,null,0]
[null,28,null,null,null,null,"SÉLECTIONNEZ",null,null,null,null,0,null,null,0]
[null,29,null,null,null,null,"SÉLECTIONNEZ",null,null,null,null,0,null,null,0]
[null,30,null,null,null,null,"SÉLECTIONNEZ",null,null,null,null,0,null,null,0]
[null,31,null,null,null,null,"SÉLECTIONNEZ",null,null,null,null,0,null,null,0]
[null,32,null,null,null,null,"SÉLECTIONNEZ",null,null,null,null,0,null,null,0]
[null,33,null,null,null,null,"SÉLECTIONNEZ",null,null,null,null,{"$f":"IFERROR(I51/K51,0)","v":0},null,null,{"$f":"IFERROR(I51/(M51*N51),0)","v":0}]
[null,34,null,null,null,null,"SÉLECTIONNEZ",null,null,null,null,0,null,null,0]
[null,35,null,null,null,null,"SÉLECTIONNEZ",null,null,null,null,0,null,null,0]
[null,36,null,null,null,null,"SÉLECTIONNEZ",null,null,null,null,0,null,null,0]
[null,37,null,null,null,null,"SÉLECTIONNEZ",null,null,null,null,0,null,null,0]
[null,38,null,null,null,null,"SÉLECTIONNEZ",null,null,null,null,0,null,null,0]
[null,39,null,null,null,null,"SÉLECTIONNEZ",null,null,null,null,0,null,null,0]
[null,40,null,null,null,null,"SÉLECTIONNEZ",null,null,null,null,0,null,null,0]
[null,41,null,null,null,null,"SÉLECTIONNEZ",null,null,null,null,0,null,null,0]
[null,42,null,null,null,null,"SÉLECTIONNEZ",null,null,null,null,0,null,null,0]
[null,43,null,null,null,null,"SÉLECTIONNEZ",null,null,null,null,0,null,null,0]
[null,44,null,null,null,null,"SÉLECTIONNEZ",null,null,null,null,0,null,null,0]
[null,45,null,null,null,null,"SÉLECTIONNEZ",null,null,null,null,0,null,null,0]
[null,46,null,null,null,null,"SÉLECTIONNEZ",null,null,null,null,0,null,null,0]
[null,47,null,null,null,null,"SÉLECTIONNEZ",null,null,null,null,0,null,null,0]
[null,48,null,null,null,null,"SÉLECTIONNEZ",null,null,null,null,0,null,null,0]
[null,49,null,null,null,null,"SÉLECTIONNEZ",null,null,null,null,0,null,null,0]
[null,50,null,null,null,null,"SÉLECTIONNEZ",null,null,null,null,0,null,null,0]
[null,51,null,null,null,null,"SÉLECTIONNEZ",null,null,null,null,0,null,null,0]
[null,52,null,null,null,null,"SÉLECTIONNEZ",null,null,null,null,0,null,null,0]
[null,53,null,null,null,null,"SÉLECTIONNEZ",null,null,null,null,0,null,null,0]
[null,54,null,null,null,null,"SÉLECTIONNEZ",null,null,null,null,0,null,null,0]
[null,55,null,null,null,null,"SÉLECTIONNEZ",null,null,null,null,0,null,null,0]
[null,56,null,null,null,null,"SÉLECTIONNEZ",null,null,null,null,0,null,null,0]
[null,57,null,null,null,null,"SÉLECTIONNEZ",null,null,null,null,0,null,null,0]
[null,58,null,null,null,null,"SÉLECTIONNEZ",null,null,null,null,0,null,null,0]
[null,59,null,null,null,null,"SÉLECTIONNEZ",null,null,null,null,0,null,null,0]
[null,60,null,null,null,null,"SÉLECTIONNEZ",null,null,null,null,0,null,null,0]
[null,61,null,null,null,null,"SÉLECTIONNEZ",null,null,null,null,0,null,null,0]
[null,62,null,null,null,null,"SÉLECTIONNEZ",null,null,null,null,0,null,null,0]
[null,63,null,null,null,null,"SÉLECTIONNEZ",null,null,null,null,0,null,null,0]
[null,64,null,null,null,null,"SÉLECTIONNEZ",null,null,null,null,0,null,null,0]
[null,65,null,null,null,null,"SÉLECTIONNEZ",null,null,null,null,{"$f":"IFERROR(I83/K83,0)","v":0},null,null,{"$f":"IFERROR(I83/(M83*N83),0)","v":0}]
[null,66,null,null,null,null,"SÉLECTIONNEZ",null,null,null,null,0,null,null,0]
[null,67,null,null,null,null,"SÉLECTIONNEZ",null,null,null,null,0,null,null,0]
[null,68,null,null,null,null,"SÉLECTIONNEZ",null,null,null,null,0,null,null,0]
[null,69,null,null,null,null,"SÉLECTIONNEZ",null,null,null,null,0,null,null,0]
[null,70,null,null,null,null,"SÉLECTIONNEZ",null,null,null,null,0,null,null,0]
[]
[]
[null,null,"Pour les représentations groupées   ̶  Veuillez énumérer dans l'espace ci-dessous les artistes clés de chacune des activité."]

{"sheet":"G1 Rayonnement - antérieur","index":13,"n_rows":54,"n_cols":9,"rows_kept":54,"cut":false,"hidden":false,"merged":[[10,1,13,1],[10,2,13,2],[10,3,13,3],[10,4,13,4],[10,5,13,5],[1,2,1,8],[10,6,13,6],[10,7,13,7],[10,8,13,8],[3,2,3,8],[6,2,6,8],[7,2,7,8],[8,2,8,8],[4,2,4,8]]}
[null,null,"v.202305"]
[null,null,"Créer, connaître et partager : Organismes autochtones (organismes qui présentent une programmation, festivals et diffuseurs)"]
[]
[null,null,"Rayonnement de public, développement de secteur et programmation connexe - pour les 2 dernières années complétées"]
[null,null,"(facultatif) Vous pouvez fournir des renseignements au sujet des 4 dernières années complétées afin de souligner des activités particulières ou de présenter une variété de votre programmation."]
[]
[null,null,"Fournissez une liste représentative de vos activités de rayonnement public, de développement du secteur ou de programmation connexe."]
[null,null,"Exemples d'activités à inclure : résidence, commande d'œuvre, appui à la coproduction, rayonnement de public, causerie d'artistes, ateliers professionnels, tables rondes, séance diffuseur-artiste, etc."]
[null,null,"Au besoin, regroupez les programmes ou activités similaires. Ne répétez pas les activités incluses dans les onglets « F Programmation »."]
[]
[null,null,"Mois/année ou Période de temps","Nom de l'événement\n(le cas échéant)","Type d'activité","Artiste clé/ collaborateur clé/  responsable de l'activité","Autres collaborateurs clés","Public ciblé ou principaux bénéficiaires","Détails/Commentaires"]
[]
[]
[]
[null,1]
[null,2]
[null,3]
[null,4]
[null,5]
[null,6]
[null,7]
[null,8]
[null,9]
[null,10]
[null,11]
[null,12]
[null,13]
[null,14]
[null,15]
[null,16]
[null,17]
[null,18]
[null,19]
[null,20]
[null,21]
[null,22]
[null,23]
[null,24]
[null,25]
[null,26]
[null,27]
[null,28]
[null,29]
[null,30]
[null,31]
[null,32]
[null,33]
[null,34]
[null,35]
[null,36]
[null,37]
[null,38]
[null,39]
[null,40]

{"sheet":"G2 Rayonnement - en cours","index":14,"n_rows":38,"n_cols":9,"rows_kept":38,"cut":false,"hidden":false,"merged":[[1,2,1,8],[9,1,12,1],[9,2,12,2],[9,3,12,3],[9,4,12,4],[9,5,12,5],[9,6,12,6],[9,7,12,7],[9,8,12,8],[3,2,3,8],[5,2,5,8],[6,2,6,8],[7,2,7,8]]}
[null,null,"v.202305"]
[null,null,"Créer, connaître et partager : Organismes autochtones (organismes qui présentent une programmation, festivals et diffuseurs)"]
[]
[null,null,"Rayonnement public, développement du secteur et programmation connexe - pour l'année en cours (l'année précédant la première année visée par cette demande de subvention)"]
[]
[null,null,"Fournissez une liste représentative de vos activités de rayonnement public, de développement du secteur ou de programmation connexe."]
[null,null,"Exemples d'activités à inclure : résidence, commande d'œuvre, appui à la coproduction, rayonnement de public, causerie d'artistes, ateliers professionnels, tables rondes, séance diffuseur-artiste, etc."]
[null,null,"Au besoin, regroupez les programmes ou activités similaires. Ne répétez pas les activités incluses dans les onglets « F Programmation »."]
[]
[null,null,"Mois/année ou Période de temps","Nom de l'événement\n(le cas échéant)","Type d'activité","Artiste clé/ collaborateur clé/  responsable de l'activité","Autres collaborateurs clés","Public ciblé ou principaux bénéficiaires","Détails/Commentaires"]
[]
[]
[]
[null,1]
[null,2]
[null,3]
[null,4]
[null,5]
[null,6]
[null,7]
[null,8]
[null,9]
[null,10]
[null,11]
[null,12]
[null,13]
[null,14]
[null,15]
[null,16]
[null,17]
[null,18]
[null,19]
[null,20]
[null,21]
[null,22]
[null,23]
[null,24]
[null,25]

{"sheet":"G3 Rayonnement - à venir","index":15,"n_rows":53,"n_cols":9,"rows_kept":53,"cut":false,"hidden":false,"merged":[[1,2,1,8],[9,1,12,1],[9,2,12,2],[9,3,12,3],[9,4,12,4],[9,5,12,5],[9,6,12,6],[9,7,12,7],[9,8,12,8],[3,2,3,8],[5,2,5,8],[6,2,6,8],[7,2,7,8]]}
[null,null,"v.202305"]
[null,null,"Créer, connaître et partager : Organismes autochtones (organismes qui présentent une programmation, festivals et diffuseurs)"]
[]
[null,null,"Rayonnement public, développement du secteur et programmation connexe - pour le prochain cycle de financement (les années visées par cette demande de subvention)"]
[]
[null,null,"Fournissez une liste représentative de vos activités de rayonnement public, de développement du secteur ou de programmation connexe."]
[null,null,"Exemples d'activités à inclure : résidence, commande d'œuvre, appui à la coproduction, rayonnement de public, causerie d'artistes, ateliers professionnels, tables rondes, séance diffuseur-artiste, etc."]
[null,null,"Au besoin, regroupez les programmes ou activités similaires. Ne répétez pas les activités incluses dans les onglets « F Programmation »."]
[]
[null,null,"Mois/année ou Période de temps","Nom de l'événement\n(le cas échéant)","Type d'activité","Artiste clé/ collaborateur clé/  responsable de l'activité","Autres collaborateurs clés","Public ciblé ou principaux bénéficiaires","Détails/Commentaires"]
[]
[]
[]
[null,1]
[null,2]
[null,3]
[null,4]
[null,5]
[null,6]
[null,7]
[null,8]
[null,9]
[null,10]
[null,11]
[null,12]
[null,13]
[null,14]
[null,15]
[null,16]
[null,17]
[null,18]
[null,19]
[null,20]
[null,21]
[null,22]
[null,23]
[null,24]
[null,25]
[null,26]
[null,27]
[null,28]
[null,29]
[null,30]
[null,31]
[null,32]
[null,33]
[null,34]
[null,35]
[null,36]
[null,37]
[null,38]
[null,39]
[null,40]

{"sheet":"H Instructions - soutien","index":16,"n_rows":62,"n_cols":5,"rows_kept":62,"cut":false,"hidden":false,"merged":[[50,1,52,15],[53,1,55,15],[26,2,26,15],[45,3,46,15],[59,1,59,14],[49,1,49,15],[56,1,58,15],[2,1,2,15],[1,1,1,15],[3,1,3,15],[4,1,4,15],[6,1,6,15],[5,1,5,15],[9,1,9,15],[34,2,35,15],[37,2,39,15],[40,2,41,15],[42,3,44,15],[27,2,27,15]]}
[null,"v.202305"]
[null,"Créer, connaître et partager : Organismes autochtones (organismes de services ou de soutien)"]
[null,"Instructions pour remplir le document « Annexes »"]
[null,"Les organismes de services ou de soutien doivent consulter les onglets H à I3 "]
[null,"Les organismes artistiques ou culturels qui créent ou produisent des œuvres doivent consulter l'onglet A."]
[null,"Les organismes qui présentent une programmation, les festivals et les diffuseurs doivent consulter l'onglet E."]
[null,"Les éditeurs doivent consulter l'onglet J."]
[]
[]
[null,"Les organismes de services ou de soutien"]
[]
[null,"Veuillez noter qu'au bas de la page se trouvent plusieurs onglets. Les organismes de services ou de soutien doivent consulter les onglets suivants :"]
[null,"« H Instructions - soutien », et « I1, I2, I3 Activités »."]
[]
[]
[]
[null,"À la suite de ces instructions, chaque onglet contient une feuille distincte que vous devez compléter."]
[null,"Lorsque vous cliquez sur « Sauvegarder », tous les onglets sont sauvegardés en même temps."]
[null,"Lorsque vous téléversez le document à votre formulaire de demande, tous les onglets y sont transférés ensemble. "]
[]
[]
[null,"1. Après avoir téléchargé le formulaire, sauvegardez-le sur votre ordinateur. Vous pouvez le sauvegarder sous un nom différent."]
[]
[null,"2. Complétez les onglets « I1, I2 et I3 Activités » ."]
[null,null," - Veuillez inscrire les renseignement qui correspondent aux activités de votre organisme."]
[null,null," - À chaque ligne, veuillez inscrire les renseignements pertinents concernant l'activité."]
[null,null," - I1 porte sur les activités antérieures, I2 sur l'année en cours, et I3 sur les activités futures. "]
[null,null,"Pour plus de renseignements, consultez la rubrique « Instructions détaillées pour les onglets I1, I2, et I3 »."]
[]
[null,"4. N’oubliez pas de sauvegarder à nouveau le document sur votre ordinateur."]
[null,"5. Retournez au portail et téléversez le document complet à votre demande."]
[]
[]
[null,"Formulaire financier CADAC"]
[null,null," - Veuillez inscrire à la ligne 5175 du formulaire financier CADAC (Éducation, développement de public et sensibilisation) les coûts liés à rendre le contenu artistique accessible aux membres de l'auditoire qui sont sourds ou handicapés."]
[]
[]
[null,null,"Si votre Profil de candidat approuvé dans le portail inclu l'auto-identification comme étant un organisme axé sur la pratique des artistes handicapés et sourds, vous pouvez soumettre une demande distincte au Soutien à l'accès aux services, lequel se trouve dans la section Fonds stratégiques de vos programmes disponibles."]
[]
[]
[null,null,"Si vous recevez un appui du Soutien à l’accès aux services pour vos activités, vous inscrirez dans vos budgets révisés et finaux, le montant qui vous a été accordé et les coûts couverts :"]
[]
[null,null,null," - Veuillez inscrire à la ligne 5190 du formulaire financier CADAC (Autres dépenses artistiques, de programmation, et de services) les coûts liés aux mesures de soutien et aux services nécessaires aux artistes et aux professionnels des arts sourds ou handicapés qui participent aux activités. "]
[]
[]
[null,null,null," - Veuillez inscrire à la ligne 4425 du formulaire financier CADAC (Autres subventions du Conseil des arts du Canada) le montant du Soutien à l'accès aux services."]
[]
[]
[]
[null,"Instructions détaillées pour les onglets I1, I2, et I3."]
[null,"I3 porte sur les activités qui ont lieu au cours des exercices financiers de votre organisme pour lesquels vous demandez un appui (le prochain cycle financier de subvention de 4 ans). Fournissez des détails concernant vos plans futurs, autant que vous les connaissez. La première année devrait être solide. Cependant, il est possible que, plus les années visées sont lointaines, moins vous aurez de détails à offrir."]
[]
[]
[null,"I2 porte sur les activités qui ont lieu au cours de l'exercice financier qui précède les années visées dans l'onglet I3. Habituellement, ceci coïncide avec l'année où vous présentez votre demande et, si vous recevez déjà une subvention de base, ce sera aussi la dernière année de votre cycle de subvention en cours. "]
[]
[]
[null,"I1 porte sur les 2 dernières années complétées qui précèdent l'année en cours visée dans l'onglet I2. Vous avez la possibilité de fournir des renseignements au sujet des 4 dernières années complétées afin de souligner des activités particulières ou de présenter une variété de votre programmation."]
[]
[]
[]
[]
[null,null,null,null," "]

{"sheet":"I1 Activités antérieures","index":17,"n_rows":52,"n_cols":9,"rows_kept":52,"cut":false,"hidden":false,"merged":[[9,6,11,6],[9,7,11,7],[9,8,11,8],[9,1,11,1],[9,2,11,2],[9,3,11,3],[9,4,11,4],[9,5,11,5],[1,2,1,8],[3,2,3,8],[5,2,5,8],[6,2,6,8],[7,2,7,8]]}
[null,null,"v.202305"]
[null,null,"Créer, connaître et partager : Organismes autochtones (organismes de services ou de soutien)"]
[]
[null,null,"Services, activités de soutien, événements publics et programmation connexe - pour les 2 dernières années complétées"]
[]
[null,null,"Fournissez une liste représentative de vos services, activités de soutien, événements publics ou programmation connexe."]
[null,null,"Exemples d'activités à inclure : résidence, vitrine, recherche, atelier pour artistes professionnels, conférence, etc."]
[null,null,"Au besoin, regroupez les programmes ou activités similaires. "]
[]
[null,null,"Mois/année ou Période de temps","Nom de l'événement\n(le cas échéant)","Type d'activité","Contributeur clé ou Responsable de l'activité","Autres collaborateurs clés","Principaux bénéficiaires","Détails/Commentaires"]
[]
[]
[null,1]
[null,2]
[null,3]
[null,4]
[null,5]
[null,6]
[null,7]
[null,8]
[null,9]
[null,10]
[null,11]
[null,12]
[null,13]
[null,14]
[null,15]
[null,16]
[null,17]
[null,18]
[null,19]
[null,20]
[null,21]
[null,22]
[null,23]
[null,24]
[null,25]
[null,26]
[null,27]
[null,28]
[null,29]
[null,30]
[null,31]
[null,32]
[null,33]
[null,34]
[null,35]
[null,36]
[null,37]
[null,38]
[null,39]
[null,40]

{"sheet":"I2 Activités en cours","index":18,"n_rows":37,"n_cols":9,"rows_kept":37,"cut":false,"hidden":false,"merged":[[9,6,11,6],[9,7,11,7],[9,8,11,8],[9,1,11,1],[9,2,11,2],[9,3,11,3],[9,4,11,4],[9,5,11,5],[1,2,1,8],[3,2,3,8],[5,2,5,8],[6,2,6,8],[7,2,7,8]]}
[null,null,"v.202305"]
[null,null,"Créer, connaître et partager : Organismes autochtones (organismes de services ou de soutien)"]
[]
[null,null,"Services, activités de soutien, événements publics et programmation connexe - pour l'année en cours (l'année précédant la première année visée par cette demande de subvention)"]
[]
[null,null,"Fournissez une liste représentative de vos services, activités de soutien, événements publics ou programmation connexe."]
[null,null,"Exemples d'activités à inclure : résidence, vitrine, recherche, atelier pour artistes professionnels, conférence, etc."]
[null,null,"Au besoin, regroupez les programmes ou activités similaires. "]
[]
[null,null,"Mois/année ou Période de temps","Nom de l'événement\n(le cas échéant)","Type d'activité","Contributeur clé ou Responsable de l'activité","Autres collaborateurs clés","Principaux bénéficiaires","Détails/Commentaires"]
[]
[]
[null,1]
[null,2]
[null,3]
[null,4]
[null,5]
[null,6]
[null,7]
[null,8]
[null,9]
[null,10]
[null,11]
[null,12]
[null,13]
[null,14]
[null,15]
[null,16]
[null,17]
[null,18]
[null,19]
[null,20]
[null,21]
[null,22]
[null,23]
[null,24]
[null,25]

{"sheet":"I3 Activités à venir","index":19,"n_rows":52,"n_cols":9,"rows_kept":52,"cut":false,"hidden":false,"merged":[[9,6,11,6],[9,7,11,7],[9,8,11,8],[9,1,11,1],[9,2,11,2],[9,3,11,3],[9,4,11,4],[9,5,11,5],[1,2,1,8],[3,2,3,8],[5,2,5,8],[6,2,6,8],[7,2,7,8]]}
[null,null,"v.202305"]
[null,null,"Créer, connaître et partager : Organismes autochtones (organismes de services ou de soutien)"]
[]
[null,null,"Services, activités de soutien, événements publics et programmation connexe - pour le prochain cycle de financement (les années visées par cette demande de subvention)"]
[]
[null,null,"Fournissez une liste représentative de vos services, activités de soutien, événements publics ou programmation connexe."]
[null,null,"Exemples d'activités à inclure : résidence, vitrine, recherche, atelier pour artistes professionnels, conférence, etc."]
[null,null,"Au besoin, regroupez les programmes ou activités similaires. "]
[]
[null,null,"Mois/année ou Période de temps","Nom de l'événement\n(le cas échéant)","Type d'activité","Contributeur clé ou Responsable de l'activité","Autres collaborateurs clés","Principaux bénéficiaires","Détails/Commentaires"]
[]
[]
[null,1]
[null,2]
[null,3]
[null,4]
[null,5]
[null,6]
[null,7]
[null,8]
[null,9]
[null,10]
[null,11]
[null,12]
[null,13]
[null,14]
[null,15]
[null,16]
[null,17]
[null,18]
[null,19]
[null,20]
[null,21]
[null,22]
[null,23]
[null,24]
[null,25]
[null,26]
[null,27]
[null,28]
[null,29]
[null,30]
[null,31]
[null,32]
[null,33]
[null,34]
[null,35]
[null,36]
[null,37]
[null,38]
[null,39]
[null,40]

{"sheet":"J Instructions - éditeurs","index":20,"n_rows":58,"n_cols":3,"rows_kept":58,"cut":false,"hidden":false,"merged":[[9,1,9,15],[12,1,12,15],[13,1,13,15],[1,1,1,15],[3,1,3,15],[4,1,4,15],[5,1,5,15],[6,1,6,15],[2,1,2,15],[57,1,58,15],[52,1,52,15],[53,1,54,15],[55,1,56,15],[25,1,25,15],[26,2,27,15],[37,1,39,15],[40,1,41,15],[42,2,44,15],[45,2,46,15],[30,2,31,15],[28,2,29,15]]}
[null,"v.202305"]
[null,"Créer, connaître et partager : Organismes autochtones (Éditeurs)"]
[null,"Instructions pour remplir le document « Sommaire Financier »"]
[null,"Les éditeurs doivent consulter les onglets J à Q."]
[null,"Les organismes artistiques ou culturels qui créent ou produisent des œuvres doivent consulter l'onglet A."]
[null,"Les organismes qui présentent une programmation, les festivals et les diffuseurs doivent consulter l'onglet E."]
[null,"Les organismes de services et de soutien doivent consulter l'onglet H."]
[]
[]
[null,"Les éditeurs"]
[]
[null,"Veuillez noter qu'au bas de la page se trouvent plusieurs onglets : « J Instructions - éditeurs »,"]
[null,"« K Budget revues électroniques », « L Budget revues imprimées », « M Budget éditeurs livres »  et « N Instructions éditeurs livres »."]
[null,"Si votre demande est retenue, vous utiliserez « O Rapport revues électroniques », « P Rapport revues imprimées », ou « Q Rapport éditeurs livres » pour soumettre vos mises à jour ou vos rapports finaux."]
[]
[]
[]
[]
[null,"À la suite de ces instructions, chaque onglet contient une feuille distincte que vous devez compléter."]
[null,"Lorsque vous cliquez sur « Sauvegarder », tous les onglets sont sauvegardés en même temps."]
[null,"Lorsque vous téléversez le document à votre formulaire de demande, tous les onglets y sont transférés ensemble. "]
[]
[]
[null,"1. Après avoir téléchargé le formulaire, sauvegardez-le sur votre ordinateur. Vous pouvez le sauvegarder sous un nom différent."]
[]
[null,"2. Complétez les onglets  « K Budget revues électroniques », « L Budget revues imprimées », ou « M Budget Éditeurs livres », selon vos activités."]
[null,null," - Veuillez inscrire les renseignements financiers qui correspondent à vos états financiers pour l’année en cours, les 2 dernières années,et les exercices financiers visés par votre demande de subvention."]
[]
[null,null," Pour plus de renseignements, consultez la rubrique « Comment harmoniser votre exercice financier avec l'exercice financier visé par la demande »."]
[]
[null,null," - Les éditeurs de revues électroniques ou de revues imprimées doivent consulter les définitions des termes qui se trouvent plus bas sur leur formulaire financier. Les éditeurs de livres doivent consulter l'onglet « N Instructions éditeurs livres »."]
[]
[]
[null,"3. N’oubliez pas de sauvegarder à nouveau le document sur votre ordinateur."]
[null,"4. Retournez au portail et téléversez le document complet à votre demande."]
[]
[]
[null,"Si votre Profil de candidat approuvé dans le portail inclu l'auto-identification comme étant un organisme axé sur la pratique des artistes handicapés et sourds, vous pouvez soumettre une demande distincte au Soutien à l'accès aux services, lequel se trouve dans la section Fonds stratégiques de vos programmes disponibles."]
[]
[]
[null,"Si vous recevez un appui du Soutien à l’accès aux services pour ce projet, vous inscrirez dans vos rapports (l'onglet O, P ou Q) le montant qui vous a été accordé et les coûts couverts :"]
[]
[null,null," - Veuillez inscrire à la ligne 60 de l'onglet « O Rapport revues électroniques », à la ligne 57 de l'onglet « P Rapport revues imprimées », ou à la ligne 43 de l'onglet « Q Rapport éditeurs livres », les coûts liés aux mesures de soutien et aux services nécessaires aux écrivains  sourds ou handicapés qui participent aux activités. "]
[]
[]
[null,null," - Veuillez inscrire à la ligne 17 de l'onglet « O Rapport revues électroniques », à la ligne 19 de l'onglet « P Rapport revues imprimées », ou à la ligne 15 de l'onglet « Q Rapport éditeurs livres », le montant du Soutien à l'accès aux services."]
[]
[]
[]
[null,"Lorsque votre exercise financier sera terminé, vous soumettrez votre Rapport final, y compris l'onglet pertinent complété (O, P ou Q)."]
[]
[]
[null,"Comment harmoniser votre exercice financier avec l'exercice financier visé par la demande"]
[null,"« Données projetées pour les 4 exercices financiers de la demande » : portent sur les activités qui ont lieu lors des exercices financiers de votre organisme pour lesquels vous demandez un appui. "]
[]
[null,"« Données projetées pour l'exercice financier en cours » : porte sur les activités qui ont lieu au cours de l'exercice financier de votre organisme qui précède l'exercice financier visé par la demande. Habituellement, ceci coïncide avec l'année où vous présentez votre demande. "]
[]
[null,"« Données réelles du dernier exercice financier » et « Données réelles de l'avant-dernier exercice financier » : portent sur les 2 dernières années complétées qui précèdent l'année en cours."]

{"sheet":"K Budget revues électroniques","index":21,"n_rows":156,"n_cols":16,"rows_kept":156,"cut":false,"hidden":false,"merged":[[6,1,8,1],[3,2,4,3],[5,2,5,3],[7,2,7,3],[7,6,7,7],[3,8,4,9],[5,8,5,9],[7,8,7,9],[3,10,4,11],[5,10,5,11],[3,4,4,5],[5,4,5,5],[7,4,7,5],[6,2,6,3],[6,4,6,5],[8,2,8,3],[8,4,8,5],[9,2,9,3],[9,4,9,5],[139,10,139,11],[137,2,137,3],[137,4,137,5],[137,6,137,7],[137,8,137,9],[137,10,137,11],[136,2,136,3],[136,4,136,5],[136,6,136,7],[136,8,136,9],[136,10,136,11],[138,2,138,3],[138,4,138,5],[138,6,138,7],[138,8,138,9],[9,6,9,7],[9,8,9,9],[9,10,9,11],[8,6,8,7],[8,8,8,9],[8,10,8,11],[154,2,154,9],[155,2,155,9],[147,2,147,9],[148,2,148,9],[149,2,149,9],[150,2,150,9],[151,2,151,9],[152,2,152,9],[139,2,139,3],[139,4,139,5],[139,6,139,7],[139,8,139,9],[153,2,153,9],[146,2,146,9],[141,1,141,9],[142,1,142,9],[143,2,143,9],[144,2,144,9],[145,2,145,9],[3,12,4,13],[5,12,5,13],[6,12,6,13],[7,12,7,13],[8,12,8,13],[7,10,7,11],[6,6,6,7],[6,8,6,9],[6,10,6,11],[3,6,4,7],[5,6,5,7],[137,12,137,13],[138,12,138,13],[48,1,48,15],[64,1,64,15],[65,1,65,15],[66,1,66,15],[72,1,72,15],[81,1,81,15],[90,1,90,15],[95,1,95,15],[111,1,111,15],[118,1,118,15],[125,1,125,15],[138,10,138,11],[135,2,135,3],[135,4,135,5],[135,6,135,7],[135,8,135,9],[135,10,135,11],[134,1,134,15],[1,1,1,15],[10,1,10,15],[17,1,17,15],[22,1,22,15],[30,1,30,15],[139,12,139,13],[3,14,4,15],[5,14,5,15],[6,14,6,15],[7,14,7,15],[8,14,8,15],[9,14,9,15],[135,14,135,15],[136,14,136,15],[137,14,137,15],[138,14,138,15],[139,14,139,15],[31,1,31,15],[32,1,32,15],[33,1,33,15],[41,1,41,15],[9,12,9,13],[135,12,135,13],[136,12,136,13]]}
[null,"v.202305"]
[null,"Créer, connaître et partager : Organismes autochtones - Revues électroniques"]
[]
[null,"Date : ","Avant-dernier exercice financier\nDonnées réelles",null,"Dernier exercice financier\nDonnées réelles",null,"Exercice financier \nen cours\nDonnées projetées",null,"1er exercice financier de la demande\nDonnées projetées",null,"2e exercice financier de la demande\nDonnées projetées",null,"3e exercice financier de la demande\nDonnées projetées",null,"4e exercice financier de la demande\nDonnées projetées"]
[null,"(Voir la définition des termes au bas du formulaire de demande, ainsi que les instructions au bas de cette page avant de remplir ce formulaire.)"]
[null,null,"de",null,"de",null,"de",null,"de",null,"de",null,"de",null,"de"]
[null,"(Remarque : Les renseignements inscrits dans les deux premières colonnes devraient correspondre aux chiffres indiqués dans les états financiers joints à cette demande.)","Date : ",null,"Date : ",null,"Date : ",null,"Date : ",null,"Date : ",null,"Date : ",null,"Date : "]
[null,null,"à",null,"à",null,"à",null,"à",null,"à",null,"à",null,"à"]
[null,null,"Date : ",null,"Date : ",null,"Date : ",null,"Date : ",null,"Date : ",null,"Date : ",null,"Date : "]
[]
[null,"Données sur le tirage et la publication - revues électroniques"]
[null,"% du contenu en langue anglaise"]
[null,"% du contenu en langue française"]
[null,"% du contenu en d’autres langues"]
[null,"Précisez les langues :"]
[null,"% d'auteurs canadiens"]
[null,"% d'auteurs étrangers"]
[]
[null,"Nombre de numéros publiés"]
[null,"Nombre de pages (en format HTML, .asp, PDF ou autre) pour l’exercice"]
[null,"Prix de l’abonnement annuel pour les particuliers"]
[null,"Prix de l’abonnement annuel pour les organismes"]
[]
[null,"Nombre d’abonnés payants par numéro (à la fin de l’exercice)"]
[null,"Nombre d’inscrits sur la liste de distribution (courriels)"]
[null,"Nombre de visites"]
[null,"Précisez par numéro ou par mois :"]
[null,"Nombre annuel de visites"]
[null,"Nombre annuel de pages consultées"]
[null,"Taux de rebond"]
[]
[null,"Données financières - revues électroniques"]
[null,"Revenus "]
[null,"Revenus gagnés"]
[1,"Ventes d’abonnements aux particuliers",null,{"$f":"IFERROR(C35/C$63,0)","v":0},null,{"$f":"IFERROR(E35/E$63,0)","v":0},null,{"$f":"IFERROR(G35/G$63,0)","v":0},null,{"$f":"IFERROR(I35/I$63,0)","v":0},null,{"$f":"IFERROR(K35/K$63,0)","v":0},null,{"$f":"IFERROR(M35/M$63,0)","v":0},null,{"$f":"IFERROR(O35/O$63,0)","v":0}]
[{"$f":"A35+1","v":2},"Ventes d’abonnements aux organismes",null,0,null,0,null,0,null,0,null,0,null,0,null,0]
[3,"Ventes de numéros à l’unité ",null,0,null,0,null,0,null,0,null,0,null,0,null,0]
[4,"Ventes de publicité",null,0,null,0,null,0,null,0,null,0,null,0,null,0]
[5,"Redevances, droits de licence et droits de franchise",null,0,null,0,null,0,null,0,null,0,null,0,null,0]
[6,"Autres revenus gagnés (précisez — voir ligne 90)",null,0,null,0,null,0,null,0,null,0,null,0,null,0]
[7,"Total des revenus gagnés",{"$f":"SUM(C35:C40)","v":0},0,{"$f":"SUM(E35:E40)","v":0},0,{"$f":"SUM(G35:G40)","v":0},0,{"$f":"SUM(I35:I40)","v":0},0,{"$f":"SUM(K35:K40)","v":0},0,{"$f":"SUM(M35:M40)","v":0},0,{"$f":"SUM(O35:O40)","v":0},0]
[8,"Revenus du secteur privé"]
[9,"Dons de particuliers",null,{"$f":"IFERROR(C43/C$63,0)","v":0},null,{"$f":"IFERROR(E43/E$63,0)","v":0},null,{"$f":"IFERROR(G43/G$63,0)","v":0},null,{"$f":"IFERROR(I43/I$63,0)","v":0},null,{"$f":"IFERROR(K43/K$63,0)","v":0},null,{"$f":"IFERROR(M43/M$63,0)","v":0},null,{"$f":"IFERROR(O43/O$63,0)","v":0}]
[10,"Dons d’entreprises",null,0,null,0,null,0,null,0,null,0,null,0,null,0]
[11,"Revenus de collectes de fonds (bruts)",null,0,null,0,null,0,null,0,null,0,null,0,null,0]
[12,"Travail bénévole",null,0,null,0,null,0,null,0,null,0,null,0,null,0]
[13,"Autres revenus du secteur privé (précisez — voir ligne 91). Voir instructions ci-dessous.",null,0,null,0,null,0,null,0,null,0,null,0,null,0]
[14,"Total des revenus du secteur privé",{"$f":"SUM(C43:C47)","v":0},0,{"$f":"SUM(E43:E47)","v":0},0,{"$f":"SUM(G43:G47)","v":0},0,{"$f":"SUM(I43:I47)","v":0},0,{"$f":"SUM(K43:K47)","v":0},0,{"$f":"SUM(M43:M47)","v":0},0,{"$f":"SUM(O43:O47)","v":0},0]
[15,"Revenus du secteur public (voir instructions ci-dessous)"]
[16,"Subvention pour cette demande",null,{"$f":"IFERROR(C50/C$63,0)","v":0},null,{"$f":"IFERROR(E50/E$63,0)","v":0},null,{"$f":"IFERROR(G50/G$63,0)","v":0},null,{"$f":"IFERROR(I50/I$63,0)","v":0},null,{"$f":"IFERROR(K50/K$63,0)","v":0},null,{"$f":"IFERROR(M50/M$63,0)","v":0},null,{"$f":"IFERROR(O50/O$63,0)","v":0}]
[17,"Autres subventions du Conseil des arts du Canada ",null,0,null,0,null,0,null,0,null,0,null,0,null,0]
[18,"Aide à l’édition savante du CRSHC ",null,0,null,0,null,0,null,0,null,0,null,0,null,0]
[19,"Fonds du Canada pour les périodiques ",null,0,null,0,null,0,null,0,null,0,null,0,null,0]
[20,"Autres subventions fédérales",null,0,null,0,null,0,null,0,null,0,null,0,null,0]
[21,"Subventions provinciales ou territoriales",null,0,null,0,null,0,null,0,null,0,null,0,null,0]
[22,"Subventions municipales ou regionales",null,0,null,0,null,0,null,0,null,0,null,0,null,0]
[23,"Subventions de programmes d’emploi",null,0,null,0,null,0,null,0,null,0,null,0,null,0]
[24,"Autres revenus du secteur public (précisez — voir ligne 92)",null,0,null,0,null,0,null,0,null,0,null,0,null,0]
[25,"Total des revenus du secteur public",{"$f":"SUM(C50:C58)","v":0},0,{"$f":"SUM(E50:E58)","v":0},0,{"$f":"SUM(G50:G58)","v":0},0,{"$f":"SUM(I50:I58)","v":0},0,{"$f":"SUM(K50:K58)","v":0},0,{"$f":"SUM(M50:M58)","v":0},0,{"$f":"SUM(O50:O58)","v":0},0]
[]
[{"$f":"A59+1","v":26},"Autres revenus (précisez — voir ligne 93)\nVoir instructions ci-dessous.",null,{"$f":"IFERROR(C61/C$63,0)","v":0},null,{"$f":"IFERROR(E61/E$63,0)","v":0},null,{"$f":"IFERROR(G61/G$63,0)","v":0},null,{"$f":"IFERROR(I61/I$63,0)","v":0},null,{"$f":"IFERROR(K61/K$63,0)","v":0},null,{"$f":"IFERROR(M61/M$63,0)","v":0},null,{"$f":"IFERROR(O61/O$63,0)","v":0}]
[]
[{"$f":"A61+1","v":27},"Total des revenus",{"$f":"C41+C48+C59+C61","v":0},{"$f":"IFERROR(C63/C$63,0)","v":0},{"$f":"E41+E48+E59+E61","v":0},{"$f":"IFERROR(E63/E$63,0)","v":0},{"$f":"G41+G48+G59+G61","v":0},{"$f":"IFERROR(G63/G$63,0)","v":0},{"$f":"I41+I48+I59+I61","v":0},{"$f":"IFERROR(I63/I$63,0)","v":0},{"$f":"K41+K48+K59+K61","v":0},{"$f":"IFERROR(K63/K$63,0)","v":0},{"$f":"M41+M48+M59+M61","v":0},{"$f":"IFERROR(M63/M$63,0)","v":0},{"$f":"O41+O48+O59+O61","v":0},{"$f":"IFERROR(O63/O$63,0)","v":0}]
[]
[{"$f":"A63+1","v":28},"Dépenses"]
[{"$f":"A65+1","v":29},"Coûts des ventes"]
[30,"Rédaction"]
[31,"Dépenses et salaires liés à la rédaction",null,{"$f":"IFERROR(C68/C$110,0)","v":0},null,{"$f":"IFERROR(E68/E$110,0)","v":0},null,{"$f":"IFERROR(G68/G$110,0)","v":0},null,{"$f":"IFERROR(I68/I$110,0)","v":0},null,{"$f":"IFERROR(K68/K$110,0)","v":0},null,{"$f":"IFERROR(M68/M$110,0)","v":0},null,{"$f":"IFERROR(O68/O$110,0)","v":0}]
[32,"Cachets aux auteurs",null,{"$f":"IFERROR(C69/C$110,0)","v":0},null,{"$f":"IFERROR(E69/E$110,0)","v":0},null,{"$f":"IFERROR(G69/G$110,0)","v":0},null,{"$f":"IFERROR(I69/I$110,0)","v":0},null,{"$f":"IFERROR(K69/K$110,0)","v":0},null,{"$f":"IFERROR(M69/M$110,0)","v":0},null,{"$f":"IFERROR(O69/O$110,0)","v":0}]
[33,"Cachets aux collaborateurs",null,{"$f":"IFERROR(C70/C$110,0)","v":0},null,{"$f":"IFERROR(E70/E$110,0)","v":0},null,{"$f":"IFERROR(G70/G$110,0)","v":0},null,{"$f":"IFERROR(I70/I$110,0)","v":0},null,{"$f":"IFERROR(K70/K$110,0)","v":0},null,{"$f":"IFERROR(M70/M$110,0)","v":0},null,{"$f":"IFERROR(O70/O$110,0)","v":0}]
[34,"Illustrations et photos, droits de reproduction",null,{"$f":"IFERROR(C71/C$110,0)","v":0},null,{"$f":"IFERROR(E71/E$110,0)","v":0},null,{"$f":"IFERROR(G71/G$110,0)","v":0},null,{"$f":"IFERROR(I71/I$110,0)","v":0},null,{"$f":"IFERROR(K71/K$110,0)","v":0},null,{"$f":"IFERROR(M71/M$110,0)","v":0},null,{"$f":"IFERROR(O71/O$110,0)","v":0}]
[35,"Total des coûts de rédaction",{"$f":"SUM(C68:C71)","v":0},{"$f":"IFERROR(C72/C$110,0)","v":0},{"$f":"SUM(E68:E71)","v":0},{"$f":"IFERROR(E72/E$110,0)","v":0},{"$f":"SUM(G68:G71)","v":0},{"$f":"IFERROR(G72/G$110,0)","v":0},{"$f":"SUM(I68:I71)","v":0},{"$f":"IFERROR(I72/I$110,0)","v":0},{"$f":"SUM(K68:K71)","v":0},{"$f":"IFERROR(K72/K$110,0)","v":0},{"$f":"SUM(M68:M71)","v":0},{"$f":"IFERROR(M72/M$110,0)","v":0},{"$f":"SUM(O68:O71)","v":0},{"$f":"IFERROR(O72/O$110,0)","v":0}]
[36,"Production"]
[37,"Composition",null,{"$f":"IFERROR(C74/C$110,0)","v":0},null,{"$f":"IFERROR(E74/E$110,0)","v":0},null,{"$f":"IFERROR(G74/G$110,0)","v":0},null,{"$f":"IFERROR(I74/I$110,0)","v":0},null,{"$f":"IFERROR(K74/K$110,0)","v":0},null,{"$f":"IFERROR(M74/M$110,0)","v":0},null,{"$f":"IFERROR(O74/O$110,0)","v":0}]
[38,"Mise en page et conception d’un site",null,0,null,0,null,0,null,0,null,0,null,0,null,0]
[39,"Web et maquette",null,0,null,0,null,0,null,0,null,0,null,0,null,0]
[40,"Web et commerce électronique",null,0,null,0,null,0,null,0,null,0,null,0,null,0]
[41,"Programmation",null,0,null,0,null,0,null,0,null,0,null,0,null,0]
[42,"Conversion des images et des graphiques",null,0,null,0,null,0,null,0,null,0,null,0,null,0]
[43,"Éléments interactifs de multimédia",null,0,null,0,null,0,null,0,null,0,null,0,null,0]
[44,"Total des coûts de production",{"$f":"SUM(C74:C80)","v":0},0,{"$f":"SUM(E74:E80)","v":0},0,{"$f":"SUM(G74:G80)","v":0},0,{"$f":"SUM(I74:I80)","v":0},0,{"$f":"SUM(K74:K80)","v":0},0,{"$f":"SUM(M74:M80)","v":0},0,{"$f":"SUM(O74:O80)","v":0},0]
[45,"Diffusion"]
[46,"Enregistrement du nom de domaine",null,{"$f":"IFERROR(C83/C$110,0)","v":0},null,{"$f":"IFERROR(E83/E$110,0)","v":0},null,{"$f":"IFERROR(G83/G$110,0)","v":0},null,{"$f":"IFERROR(I83/I$110,0)","v":0},null,{"$f":"IFERROR(K83/K$110,0)","v":0},null,{"$f":"IFERROR(M83/M$110,0)","v":0},null,{"$f":"IFERROR(O83/O$110,0)","v":0}]
[47,"Sécurité ou certificats relatifs aux transactions en ligne",null,{"$f":"IFERROR(C84/C$110,0)","v":0},null,{"$f":"IFERROR(E84/E$110,0)","v":0},null,{"$f":"IFERROR(G84/G$110,0)","v":0},null,{"$f":"IFERROR(I84/I$110,0)","v":0},null,{"$f":"IFERROR(K84/K$110,0)","v":0},null,{"$f":"IFERROR(M84/M$110,0)","v":0},null,{"$f":"IFERROR(O84/O$110,0)","v":0}]
[48,"Serveur — frais du service d’accès Internet",null,{"$f":"IFERROR(C85/C$110,0)","v":0},null,{"$f":"IFERROR(E85/E$110,0)","v":0},null,{"$f":"IFERROR(G85/G$110,0)","v":0},null,{"$f":"IFERROR(I85/I$110,0)","v":0},null,{"$f":"IFERROR(K85/K$110,0)","v":0},null,{"$f":"IFERROR(M85/M$110,0)","v":0},null,{"$f":"IFERROR(O85/O$110,0)","v":0}]
[49,"Frais de transactions",null,{"$f":"IFERROR(C86/C$110,0)","v":0},null,{"$f":"IFERROR(E86/E$110,0)","v":0},null,{"$f":"IFERROR(G86/G$110,0)","v":0},null,{"$f":"IFERROR(I86/I$110,0)","v":0},null,{"$f":"IFERROR(K86/K$110,0)","v":0},null,{"$f":"IFERROR(M86/M$110,0)","v":0},null,{"$f":"IFERROR(O86/O$110,0)","v":0}]
[50,"Total des coûts de diffusion",{"$f":"SUM(C83:C86)","v":0},{"$f":"IFERROR(C87/C$110,0)","v":0},{"$f":"SUM(E83:E86)","v":0},{"$f":"IFERROR(E87/E$110,0)","v":0},{"$f":"SUM(G83:G86)","v":0},{"$f":"IFERROR(G87/G$110,0)","v":0},{"$f":"SUM(I83:I86)","v":0},{"$f":"IFERROR(I87/I$110,0)","v":0},{"$f":"SUM(K83:K86)","v":0},{"$f":"IFERROR(K87/K$110,0)","v":0},{"$f":"SUM(M83:M86)","v":0},{"$f":"IFERROR(M87/M$110,0)","v":0},{"$f":"SUM(O83:O86)","v":0},{"$f":"IFERROR(O87/O$110,0)","v":0}]
[]
[{"$f":"A87+1","v":51},"Total des coûts des ventes",{"$f":"SUM(C87+C81+C72)","v":0},{"$f":"IFERROR(C89/C$110,0)","v":0},{"$f":"SUM(E87+E81+E72)","v":0},{"$f":"IFERROR(E89/E$110,0)","v":0},{"$f":"SUM(G87+G81+G72)","v":0},{"$f":"IFERROR(G89/G$110,0)","v":0},{"$f":"SUM(I87+I81+I72)","v":0},{"$f":"IFERROR(I89/I$110,0)","v":0},{"$f":"SUM(K87+K81+K72)","v":0},{"$f":"IFERROR(K89/K$110,0)","v":0},{"$f":"SUM(M87+M81+M72)","v":0},{"$f":"IFERROR(M89/M$110,0)","v":0},{"$f":"SUM(O87+O81+O72)","v":0},{"$f":"IFERROR(O89/O$110,0)","v":0}]
[]
[{"$f":"A89+1","v":52},"Promotion et publicité"]
[{"$f":"A91+1","v":53},"Frais de publicité",null,{"$f":"IFERROR(C92/C$110,0)","v":0},null,{"$f":"IFERROR(E92/E$110,0)","v":0},null,{"$f":"IFERROR(G92/G$110,0)","v":0},null,{"$f":"IFERROR(I92/I$110,0)","v":0},null,{"$f":"IFERROR(K92/K$110,0)","v":0},null,{"$f":"IFERROR(M92/M$110,0)","v":0},null,{"$f":"IFERROR(O92/O$110,0)","v":0}]
[54,"Échange de publicité ",null,{"$f":"IFERROR(C93/C$110,0)","v":0},null,{"$f":"IFERROR(E93/E$110,0)","v":0},null,{"$f":"IFERROR(G93/G$110,0)","v":0},null,{"$f":"IFERROR(I93/I$110,0)","v":0},null,{"$f":"IFERROR(K93/K$110,0)","v":0},null,{"$f":"IFERROR(M93/M$110,0)","v":0},null,{"$f":"IFERROR(O93/O$110,0)","v":0}]
[55,"Droit d’adhésion et d’inscription, et promotion des numéros",null,{"$f":"IFERROR(C94/C$110,0)","v":0},null,{"$f":"IFERROR(E94/E$110,0)","v":0},null,{"$f":"IFERROR(G94/G$110,0)","v":0},null,{"$f":"IFERROR(I94/I$110,0)","v":0},null,{"$f":"IFERROR(K94/K$110,0)","v":0},null,{"$f":"IFERROR(M94/M$110,0)","v":0},null,{"$f":"IFERROR(O94/O$110,0)","v":0}]
[56,"Total des frais de promotion et de publicité",{"$f":"SUM(C92:C94)","v":0},{"$f":"IFERROR(C95/C$110,0)","v":0},{"$f":"SUM(E92:E94)","v":0},{"$f":"IFERROR(E95/E$110,0)","v":0},{"$f":"SUM(G92:G94)","v":0},{"$f":"IFERROR(G95/G$110,0)","v":0},{"$f":"SUM(I92:I94)","v":0},{"$f":"IFERROR(I95/I$110,0)","v":0},{"$f":"SUM(K92:K94)","v":0},{"$f":"IFERROR(K95/K$110,0)","v":0},{"$f":"SUM(M92:M94)","v":0},{"$f":"IFERROR(M95/M$110,0)","v":0},{"$f":"SUM(O92:O94)","v":0},{"$f":"IFERROR(O95/O$110,0)","v":0}]
[57,"Frais généraux"]
[58,"Salaires du personnel et contrats",null,{"$f":"IFERROR(C97/C$110,0)","v":0},null,{"$f":"IFERROR(E97/E$110,0)","v":0},null,{"$f":"IFERROR(G97/G$110,0)","v":0},null,{"$f":"IFERROR(I97/I$110,0)","v":0},null,{"$f":"IFERROR(K97/K$110,0)","v":0},null,{"$f":"IFERROR(M97/M$110,0)","v":0},null,{"$f":"IFERROR(O97/O$110,0)","v":0}]
[59,"Avantages sociaux",null,0,null,0,null,0,null,0,null,0,null,0,null,0]
[60,"Coût d'accès: coûts reliés aux mesures de soutien et services pour écrivains sourds ou handicapés impliqués dans les activités",null,0,null,0,null,0,null,0,null,0,null,0,null,0]
[61,"Valeur du travail bénévole",null,0,null,0,null,0,null,0,null,0,null,0,null,0]
[62,"Perfectionnement professionnel du personnel",null,0,null,0,null,0,null,0,null,0,null,0,null,0]
[63,"Dépenses de collecte de fonds (brutes)",null,0,null,0,null,0,null,0,null,0,null,0,null,0]
[64,"Coûts d’occupation (loyer, hypothèque)",null,0,null,0,null,0,null,0,null,0,null,0,null,0]
[65,"Fournitures de bureau et petits appareils",null,0,null,0,null,0,null,0,null,0,null,0,null,0]
[66,"Télécommunications",null,0,null,0,null,0,null,0,null,0,null,0,null,0]
[67,"Amortissement",null,0,null,0,null,0,null,0,null,0,null,0,null,0]
[68,"Autres frais généraux ",null,0,null,0,null,0,null,0,null,0,null,0,null,0]
[69,"Total des frais généraux",{"$f":"SUM(C97:C107)","v":0},0,{"$f":"SUM(E97:E107)","v":0},0,{"$f":"SUM(G97:G107)","v":0},0,{"$f":"SUM(I97:I107)","v":0},0,{"$f":"SUM(K97:K107)","v":0},0,{"$f":"SUM(M97:M107)","v":0},0,{"$f":"SUM(O97:O107)","v":0},0]
[]
[{"$f":"A108+1","v":70},"Total des dépénses",{"$f":"C89+C95+C108","v":0},{"$f":"IFERROR(C110/C$110,0)","v":0},{"$f":"E89+E95+E108","v":0},{"$f":"IFERROR(E110/E$110,0)","v":0},{"$f":"G89+G95+G108","v":0},{"$f":"IFERROR(G110/G$110,0)","v":0},{"$f":"I89+I95+I108","v":0},{"$f":"IFERROR(I110/I$110,0)","v":0},{"$f":"K89+K95+K108","v":0},{"$f":"IFERROR(K110/K$110,0)","v":0},{"$f":"M89+M95+M108","v":0},{"$f":"IFERROR(M110/M$110,0)","v":0},{"$f":"O89+O95+O108","v":0},{"$f":"IFERROR(O110/O$110,0)","v":0}]
[]
[{"$f":"A110+1","v":71},"Excédent (Déficit) de l'exercice"]
[{"$f":"A112+1","v":72},"Excédent (déficit) = revenus – dépenses",{"$f":"C63-C110","v":0},{"$f":"IFERROR(C113/C$117,0)","v":0},{"$f":"E63-E110","v":0},{"$f":"IFERROR(E113/E$117,0)","v":0},{"$f":"G63-G110","v":0},{"$f":"IFERROR(G113/G$117,0)","v":0},{"$f":"I63-I110","v":0},{"$f":"IFERROR(I113/I$117,0)","v":0},{"$f":"K63-K110","v":0},{"$f":"IFERROR(K113/K$117,0)","v":0},{"$f":"M63-M110","v":0},{"$f":"IFERROR(M113/M$117,0)","v":0},{"$f":"O63-O110","v":0},{"$f":"IFERROR(O113/O$117,0)","v":0}]
[{"$f":"A113+1","v":73},"Déduction de l’excédent (perte) avant impôt sur l’excédent et postes extraordinaires (saisir une valeur négative, le cas échéant). \nVoir instructions ci-dessous.",null,{"$f":"IFERROR(C114/C$117,0)","v":0},null,{"$f":"IFERROR(E114/E$117,0)","v":0},null,{"$f":"IFERROR(G114/G$117,0)","v":0},null,{"$f":"IFERROR(I114/I$117,0)","v":0},null,{"$f":"IFERROR(K114/K$117,0)","v":0},null,{"$f":"IFERROR(M114/M$117,0)","v":0},null,{"$f":"IFERROR(O114/O$117,0)","v":0}]
[{"$f":"A114+1","v":74},"Impôt sur l’excédent",null,{"$f":"IFERROR(C115/C$117,0)","v":0},null,{"$f":"IFERROR(E115/E$117,0)","v":0},null,{"$f":"IFERROR(G115/G$117,0)","v":0},null,{"$f":"IFERROR(I115/I$117,0)","v":0},null,{"$f":"IFERROR(K115/K$117,0)","v":0},null,{"$f":"IFERROR(M115/M$117,0)","v":0},null,{"$f":"IFERROR(O115/O$117,0)","v":0}]
[{"$f":"A115+1","v":75},"Postes extraordinaires (précisez — voir ligne 94)",null,{"$f":"IFERROR(C116/C$117,0)","v":0},null,{"$f":"IFERROR(E116/E$117,0)","v":0},null,{"$f":"IFERROR(G116/G$117,0)","v":0},null,{"$f":"IFERROR(I116/I$117,0)","v":0},null,{"$f":"IFERROR(K116/K$117,0)","v":0},null,{"$f":"IFERROR(M116/M$117,0)","v":0},null,{"$f":"IFERROR(O116/O$117,0)","v":0}]
[{"$f":"A116+1","v":76},"Excédent (Déficit) de l'exercice",{"$f":"SUM(C113:C116)","v":0},{"$f":"IFERROR(C117/C$117,0)","v":0},{"$f":"SUM(E113:E116)","v":0},{"$f":"IFERROR(E117/E$117,0)","v":0},{"$f":"SUM(G113:G116)","v":0},{"$f":"IFERROR(G117/G$117,0)","v":0},{"$f":"SUM(I113:I116)","v":0},{"$f":"IFERROR(I117/I$117,0)","v":0},{"$f":"SUM(K113:K116)","v":0},{"$f":"IFERROR(K117/K$117,0)","v":0},{"$f":"SUM(M113:M116)","v":0},{"$f":"IFERROR(M117/M$117,0)","v":0},{"$f":"SUM(O113:O116)","v":0},{"$f":"IFERROR(O117/O$117,0)","v":0}]
[]
[{"$f":"A117+1","v":77},"Excédent (Déficit) accumulé à la fin de l'exercice"]
[{"$f":"A119+1","v":78},"Excédent (déficit) accumulé en début d’exercice",null,null,{"$f":"+C124","v":0},null,{"$f":"+E124","v":0},null,{"$f":"+G124","v":0},null,{"$f":"+I124","v":0},null,{"$f":"+K124","v":0},null,{"$f":"+M124","v":0}]
[{"$f":"A120+1","v":79},"Excédent (déficit) de l’exercice — obtenu à la ligne 76",{"$f":"C117","v":0},null,{"$f":"E117","v":0},null,{"$f":"G117","v":0},null,{"$f":"I117","v":0},null,{"$f":"K117","v":0},null,{"$f":"M117","v":0},null,{"$f":"O117","v":0}]
[{"$f":"A121+1","v":80},"Dividendes déclarés et retraits (saisir un nombre absolu négatif (–) le cas échéant)"]
[{"$f":"A122+1","v":81},"Rajustements des exercices antérieurs (saisir une valeur négative, le cas échéant). Voir instructions ci-dessous."]
[{"$f":"A123+1","v":82},"Excédent (Déficit) accumulé à la fin de l'exercice",{"$f":"SUM(C120:C123)","v":0},null,{"$f":"SUM(E120:E123)","v":0},null,{"$f":"SUM(G120:G123)","v":0},null,{"$f":"SUM(I120:I123)","v":0},null,{"$f":"SUM(K120:K123)","v":0},null,{"$f":"SUM(M120:M123)","v":0},null,{"$f":"SUM(O120:O123)","v":0}]
[]
[{"$f":"A124+1","v":83},"Bilan (Information tirée des états financiers — données réelles seulement)\nLa section bilan doit être remplie pour refléter la situation financière de l’ensemble de votre organisme même si les sections revenus et dépenses se rapportent uniquement à votre périodique. Voir instructions ci-dessous."]
[{"$f":"A126+1","v":84},"Total des actifs courants"]
[{"$f":"A127+1","v":85},"Total de l’actif"]
[{"$f":"A128+1","v":86},"Total des passifs courants"]
[{"$f":"A129+1","v":87},"Total du passif"]
[{"$f":"A130+1","v":88},"Total des actifs nets, ou capitaux propres"]
[]
[{"$f":"A131+1","v":89},"Filiales et sociétés apparentées "]
[]
[null,"Détails, le cas échéant"]
[{"$f":"A133+1","v":90},"Autres revenus gagnés (ligne 6)"]
[{"$f":"A136+1","v":91},"Autres revenus du secteur privé (ligne 13)"]
[{"$f":"A137+1","v":92},"Autres revenus du secteur public (ligne 24)"]
[{"$f":"A138+1","v":93},"Autres revenus (ligne 26)"]
[{"$f":"A139+1","v":94},"Postes extraordinaires (ligne 75)"]
[]
[null,"Instructions"]
["* ","Les pourcentages des composantes de la catégorie revenus sont calculés en fonction du montant total des revenus.\nLes pourcentages des composantes de la catégorie dépenses sont calculés en fonction du montant total des dépenses."]
[{"$f":"A47","v":13},"Autres revenus du secteur privé","Indiquez les subventions reçues de fondations privées ainsi que les commandites en biens et services si elles sont constatées dans les états financiers."]
[{"$f":"A49","v":15},"Revenus du secteur public","Dans la présente demande, il faut déclarer toute aide financière gouvernementale — notamment fédérale, provinciale et municipale — à titre de revenus. Si des subventions et des contributions figurent dans vos états financiers pour compenser des coûts des ventes ou des frais d’exploitation, vous devez les transférer dans la présente section de votre demande et faire les rajustements pertinents correspondants. De même, tous les crédits d’impôt doivent être inscrits dans cette section à titre de revenus."]
[{"$f":"A61","v":26},"Autres revenus","Indiquez tous les autres revenus, incluant les contributions de l’organisme lié ou apparenté, et les subventions de stabilisation. "]
[{"$f":"A114","v":73},"Déduction de l’excédent (perte) avant impôts sur l’excédent et postes extraordinaires","Déduisez les éléments suivants de l’excédent (perte) : moins-value, remise de dette, gain (perte) sur devises étrangères et sur investissements, et vente de biens en capital, etc."]
[{"$f":"A123","v":81},"Rajustements des exercices antérieurs (inscrire un nombre absolu comme valeur négative (-), le cas échéant)","Indiquez les retraitements comptables ayant une incidence directe sur votre excédent (déficit) d’exercice. "]
[{"$f":"A126","v":83},"Bilan","Ne remplissez que les colonnes des exercices financiers pour lesquels des états financiers ont été joints. N’inscrivez rien pour les exercices courant et prévisionnel. La section bilan doit être remplie pour refléter la situation financière de l’ensemble de votre organisme même si les sections revenus et dépenses se rapportent uniquement à votre périodique."]
[84,"Total des actifs courants","Incluez le total des actifs normalement réalisables au cours d’un exercice, répartis généralement dans les grandes catégories suivantes : espèces, comptes clients, valeurs mobilières, dépôts, subventions et contributions à recevoir, stock, coûts reportés de prépublication, y compris les ouvrages en cours, les droits d’auteur prépayés et les avances, par exemple."]
[85,"Total de l’actif","Incluez le total des actifs courants, des immobilisations et des autres actifs (investissements ou actifs incorporels, par exemple)."]
[86,"Total des passifs courants","Incluez le total des passifs normalement à payer au cours d’un exercice, habituellement répartis dans les principales catégories suivantes : comptes à payer, charges à payer, revenus et subventions reportés, parties à court terme de la dette à long terme et passifs d’impôts futurs dus au cours du prochain exercice."]
[87,"Total du passif","Incluez le total des passifs à court terme et à long terme (montant à payer aux actionnaires et dettes à long terme, par exemple)."]
[88,"Total des actifs nets, ou capitaux propres","Incluez les actifs nets, c’est-à-dire le capital-actions émis et payé, les surplus d’apports et les excédents non répartis."]
[null,"Remarque :","Actif = Passif + Actifs nets, ou Capitaux propres"]
[{"$f":"A133","v":89},"Filiales et sociétés apparentées","Fournissez des détails sur tout investissement, intérêts ou avances versées à des filiales ou à des sociétés apparentées."]

{"sheet":"L Budget revues imprimées","index":22,"n_rows":164,"n_cols":16,"rows_kept":164,"cut":false,"hidden":false,"merged":[[6,10,6,11],[7,2,7,3],[7,4,7,5],[7,6,7,7],[7,8,7,9],[36,11,41,11],[5,1,7,1],[6,6,6,7],[6,8,6,9],[5,4,5,5],[5,6,5,7],[5,2,5,3],[7,10,7,11],[8,2,8,3],[8,4,8,5],[146,12,146,13],[44,1,44,15],[54,1,54,15],[61,1,61,15],[77,1,77,15],[78,1,78,15],[79,1,79,15],[85,1,85,15],[91,1,91,15],[98,1,98,15],[103,1,103,15],[119,1,119,15],[144,2,144,3],[144,4,144,5],[144,6,144,7],[144,8,144,9],[144,10,144,11],[143,2,143,3],[143,4,143,5],[143,6,143,7],[143,8,143,9],[143,10,143,11],[126,1,126,15],[133,1,133,15],[145,2,145,3],[145,4,145,5],[145,6,145,7],[145,8,145,9],[145,10,145,11],[3,12,4,13],[5,12,5,13],[6,12,6,13],[7,12,7,13],[8,12,8,13],[145,12,145,13],[8,6,8,7],[8,8,8,9],[8,10,8,11],[6,2,6,3],[6,4,6,5],[3,2,4,3],[3,4,4,5],[3,6,4,7],[3,8,4,9],[3,10,4,11],[5,8,5,9],[5,10,5,11],[142,1,142,15],[161,2,161,10],[162,2,162,10],[163,2,163,10],[155,2,155,10],[156,2,156,10],[157,2,157,10],[158,2,158,10],[159,2,159,10],[160,2,160,10],[153,2,153,10],[154,2,154,10],[146,2,146,3],[146,4,146,5],[146,6,146,7],[146,8,146,9],[146,10,146,11],[147,2,147,3],[147,4,147,5],[147,6,147,7],[151,2,151,10],[152,2,152,10],[147,8,147,9],[147,10,147,11],[149,1,149,10],[150,1,150,10],[1,1,1,15],[9,1,9,15],[16,1,16,15],[23,1,23,15],[27,1,27,15],[147,12,147,13],[3,14,4,15],[5,14,5,15],[6,14,6,15],[7,14,7,15],[8,14,8,15],[36,15,41,15],[143,14,143,15],[144,14,144,15],[145,14,145,15],[146,14,146,15],[147,14,147,15],[31,1,31,15],[35,1,35,15],[42,1,42,15],[43,1,43,15],[36,13,41,13],[143,12,143,13],[144,12,144,13]]}
[null,"v.202305"]
[null,"Créer, connaître et partager : Organismes autochtones - Revues imprimées"]
[]
[null,"Date : ","Avant-dernier exercice financier\nDonnées réelles",null,"Dernier exercice financier\nDonnées réelles",null,"Exercice financier \nen cours\nDonnées projetées",null,"1er exercice financier de la demande\nDonnées projetées",null,"2e exercice financier de la demande\nDonnées projetées",null,"3e exercice financier de la demande\nDonnées projetées",null,"4e exercice financier de la demande\nDonnées projetées"]
[null,"(Voir la définition des termes au bas du formulaire de demande, ainsi que les instructions au bas de cette page avant de remplir ce formulaire.)"]
[null,"(Remarque : Les renseignements inscrits dans les deux premières colonnes devraient correspondre aux chiffres indiqués dans les états financiers joints à cette demande.)","de",null,"de",null,"de",null,"de",null,"de",null,"de",null,"de"]
[null,null,"Date : ",null,"Date : ",null,"Date : ",null,"Date : ",null,"Date : ",null,"Date : ",null,"Date : "]
[null,null,"à",null,"à",null,"à",null,"à",null,"à",null,"à",null,"à"]
[null,null,"Date : ",null,"Date : ",null,"Date : ",null,"Date : ",null,"Date : ",null,"Date : ",null,"Date : "]
[null,"Données sur le tirage et la publication - revues imprimées"]
[null,"% du contenu en langue anglaise"]
[null,"% du contenu en langue française"]
[null,"% du contenu en d’autres langues"]
[null,"Précisez les langues :","   "]
[null,"% d'auteurs canadiens"]
[null,"% d'auteurs étrangers"]
[]
[null,"Nombre de numéros publiés par exercice"]
[null,"Nombre total de pages publiées pendant l’exercice (y compris la couverture)"]
[null,"Nombre total de pages publicitaires vendues pendant l’exercice"]
[null,"Prix du numéro"]
[null,"Prix de l’abonnement annuel pour les particuliers"]
[null,"Prix de l’abonnement annuel pour les organismes"]
[null,"Diffusion payante"]
[null,"Nombre d’abonnés payants par numéro (à la fin de l’exercice)"]
[null,"Nombre de ventes par numéro (moyenne par numéro)"]
[null,"Total de la diffusion payante (moyenne par numéro)",{"$f":"C25+C26","v":0},null,{"$f":"E25+E26","v":0},null,{"$f":"G25+G26","v":0},null,{"$f":"I25+I26","v":0},null,{"$f":"K25+K26","v":0},null,{"$f":"M25+M26","v":0},null,{"$f":"O25+O26","v":0}]
[null,"Diffusion électronique (par Zinio et iTunes, par exemple). N’incluez pas les abonnements offerts gratuitement."]
[null,"Nombre d’abonnés par numéro, version électronique (moyenne par numéro)"]
[null,"Nombre de ventes par numéro, version électronique (moyenne par numéro) "]
[null,"Total de la diffusion électronique (moyenne par numéro)",{"$f":"C29+C30","v":0},null,{"$f":"E29+E30","v":0},null,{"$f":"G29+G30","v":0},null,{"$f":"I29+I30","v":0},null,{"$f":"K29+K30","v":0},null,{"$f":"M29+M30","v":0},null,{"$f":"O29+O30","v":0}]
[null,"Diffusion non payante"]
[null,"Diffusion contrôlée (moyenne par numéro)"]
[null,"Exemplaires gratuits (moyenne par numéro)"]
[null,"Total de la diffusion non payante (moyenne par numéro)",{"$f":"C33+C34","v":0},null,{"$f":"E33+E34","v":0},null,{"$f":"G33+G34","v":0},null,{"$f":"I33+I34","v":0},null,{"$f":"K33+K34","v":0},null,{"$f":"M33+M34","v":0},null,{"$f":"O33+O34","v":0}]
[null,"Exemplaires non distribués"]
[null,"Retours (moyenne par numéro)"]
[null,"Exemplaires endommagés (moyenne par numéro)"]
[null,"Copies d’archives (moyenne par numéro)"]
[null,"Total des exemplaires non distribués (moyenne par numéro)",{"$f":"SUM(C37:C39)","v":0},null,{"$f":"SUM(E37:E39)","v":0},null,{"$f":"SUM(G37:G39)","v":0},null,{"$f":"SUM(I37:I39)","v":0},null,{"$f":"SUM(K37:K39)","v":0},null,{"$f":"SUM(M37:M39)","v":0},null,{"$f":"SUM(O37:O39)","v":0}]
[null,"Tirage (moyenne par numéro)",{"$f":"C40+C35+C27","v":0},null,{"$f":"E40+E35+E27","v":0},null,{"$f":"G40+G35+G27","v":0},null,{"$f":"I40+I35+I27","v":0},null,{"$f":"K40+K35+K27","v":0},null,{"$f":"M40+M35+M27","v":0},null,{"$f":"O40+O35+O27","v":0}]
[null,"Pourcentage du tirage vendu",{"$f":"IFERROR(C27/C41,0)","v":0},null,{"$f":"IFERROR(E27/E41,0)","v":0},null,{"$f":"IFERROR(G27/G41,0)","v":0},null,{"$f":"IFERROR(I27/I41,0)","v":0},null,{"$f":"IFERROR(K27/K41,0)","v":0},null,{"$f":"IFERROR(M27/M41,0)","v":0},null,{"$f":"IFERROR(O27/O41,0)","v":0}]
[null,"Données financières - revues imprimées  "]
[null,"Revenus"]
[null,"Revenus gagnés"]
[1,"Ventes d’abonnements aux particuliers",null,{"$f":"IFERROR(C46/C$76,0)","v":0},null,{"$f":"IFERROR(E46/E$76,0)","v":0},null,{"$f":"IFERROR(G46/G$76,0)","v":0},null,{"$f":"IFERROR(I46/I$76,0)","v":0},null,{"$f":"IFERROR(K46/K$76,0)","v":0},null,{"$f":"IFERROR(M46/M$76,0)","v":0},null,{"$f":"IFERROR(O46/O$76,0)","v":0}]
[{"$f":"A46+1","v":2},"Ventes d’abonnements aux organismes",null,0,null,0,null,0,null,0,null,0,null,0,null,0]
[3,"Ventes de numéros à l’unité (en kiosque ou non)",null,0,null,0,null,0,null,0,null,0,null,0,null,0]
[4,"Ventes d’abonnements électroniques ",null,0,null,0,null,0,null,0,null,0,null,0,null,0]
[5,"Ventes de numéros, version électronique",null,0,null,0,null,0,null,0,null,0,null,0,null,0]
[6,"Ventes de publicité",null,0,null,0,null,0,null,0,null,0,null,0,null,0]
[7,"Droits d’auteur, de reproduction et redevances",null,0,null,0,null,0,null,0,null,0,null,0,null,0]
[8,"Autres revenus gagnés (précisez — voir ligne 87)",null,0,null,0,null,0,null,0,null,0,null,0,null,0]
[9,"Total des revenus gagnés",{"$f":"SUM(C46:C53)","v":0},0,{"$f":"SUM(E46:E53)","v":0},0,{"$f":"SUM(G46:G53)","v":0},0,{"$f":"SUM(I46:I53)","v":0},0,{"$f":"SUM(K46:K53)","v":0},0,{"$f":"SUM(M46:M53)","v":0},0,{"$f":"SUM(O46:O53)","v":0},0]
[10,"Revenus du secteur privé"]
[11,"Dons de particuliers",null,{"$f":"IFERROR(C56/C$76,0)","v":0},null,{"$f":"IFERROR(E56/E$76,0)","v":0},null,{"$f":"IFERROR(G56/G$76,0)","v":0},null,{"$f":"IFERROR(I56/I$76,0)","v":0},null,{"$f":"IFERROR(K56/K$76,0)","v":0},null,{"$f":"IFERROR(M56/M$76,0)","v":0},null,{"$f":"IFERROR(O56/O$76,0)","v":0}]
[12,"Dons d’entreprises",null,0,null,0,null,0,null,0,null,0,null,0,null,0]
[13,"Revenus de collecte de fonds (bruts)",null,0,null,0,null,0,null,0,null,0,null,0,null,0]
[14,"Travail bénévole",null,0,null,0,null,0,null,0,null,0,null,0,null,0]
[15,"Autres revenus du secteur privé (précisez — voir ligne 88). Voir instructions ci-dessous.",null,0,null,0,null,0,null,0,null,0,null,0,null,0]
[16,"Total des revenus du secteur privé",{"$f":"SUM(C56:C60)","v":0},0,{"$f":"SUM(E56:E60)","v":0},0,{"$f":"SUM(G56:G60)","v":0},0,{"$f":"SUM(I56:I60)","v":0},0,{"$f":"SUM(K56:K60)","v":0},0,{"$f":"SUM(M56:M60)","v":0},0,{"$f":"SUM(O56:O60)","v":0},0]
[17,"Revenus du secteur public (voir instructions ci-dessous)"]
[18,"Subvention pour cette demande",null,{"$f":"IFERROR(C63/C$76,0)","v":0},null,{"$f":"IFERROR(E63/E$76,0)","v":0},null,{"$f":"IFERROR(G63/G$76,0)","v":0},null,{"$f":"IFERROR(I63/I$76,0)","v":0},null,{"$f":"IFERROR(K63/K$76,0)","v":0},null,{"$f":"IFERROR(M63/M$76,0)","v":0},null,{"$f":"IFERROR(O63/O$76,0)","v":0}]
[19,"Autres subventions du Conseil des arts du Canada ",null,0,null,0,null,0,null,0,null,0,null,0,null,0]
[20,"Aide à l’édition savante du CRSHC ",null,0,null,0,null,0,null,0,null,0,null,0,null,0]
[21,"Fonds du Canada pour les périodiques ",null,0,null,0,null,0,null,0,null,0,null,0,null,0]
[22,"Autres subventions fédérales",null,0,null,0,null,0,null,0,null,0,null,0,null,0]
[23,"Subventions provinciales ou territoriales",null,0,null,0,null,0,null,0,null,0,null,0,null,0]
[24,"Subventions municipales ou regionales",null,0,null,0,null,0,null,0,null,0,null,0,null,0]
[25,"Subventions de programmes d’emploi",null,0,null,0,null,0,null,0,null,0,null,0,null,0]
[26,"Autres revenus du secteur public (précisez — voir ligne 89)",null,0,null,0,null,0,null,0,null,0,null,0,null,0]
[27,"Total des revenus du secteur public",{"$f":"SUM(C63:C71)","v":0},0,{"$f":"SUM(E63:E71)","v":0},0,{"$f":"SUM(G63:G71)","v":0},0,{"$f":"SUM(I63:I71)","v":0},0,{"$f":"SUM(K63:K71)","v":0},0,{"$f":"SUM(M63:M71)","v":0},0,{"$f":"SUM(O63:O71)","v":0},0]
[]
[{"$f":"A72+1","v":28},"Autres revenus (précisez — voir ligne 90)\nVoir instructions ci-dessous.",null,{"$f":"IFERROR(C74/C$76,0)","v":0},null,{"$f":"IFERROR(E74/E$76,0)","v":0},null,{"$f":"IFERROR(G74/G$76,0)","v":0},null,{"$f":"IFERROR(I74/I$76,0)","v":0},null,{"$f":"IFERROR(K74/K$76,0)","v":0},null,{"$f":"IFERROR(M74/M$76,0)","v":0},null,{"$f":"IFERROR(O74/O$76,0)","v":0}]
[]
[{"$f":"A74+1","v":29},"Total des revenus",{"$f":"C54+C61+C72+C74","v":0},{"$f":"IFERROR(C76/C$76,0)","v":0},{"$f":"E54+E61+E72+E74","v":0},0,0,0,0,0,0,0,{"$f":"M54+M61+M72+M74","v":0},0,{"$f":"O54+O61+O72+O74","v":0},0]
[]
[{"$f":"A76+1","v":30},"Dépenses"]
[{"$f":"A78+1","v":31},"Coûts des ventes"]
[32,"Rédaction"]
[33,"Dépenses et salaires liés à la rédaction",null,{"$f":"IFERROR(C81/C$118,0)","v":0},null,{"$f":"IFERROR(E81/E$118,0)","v":0},null,{"$f":"IFERROR(G81/G$118,0)","v":0},null,{"$f":"IFERROR(I81/I$118,0)","v":0},null,{"$f":"IFERROR(K81/K$118,0)","v":0},null,{"$f":"IFERROR(M81/M$118,0)","v":0},null,{"$f":"IFERROR(O81/O$118,0)","v":0}]
[34,"Cachets aux auteurs",null,{"$f":"IFERROR(C82/C$118,0)","v":0},null,{"$f":"IFERROR(E82/E$118,0)","v":0},null,{"$f":"IFERROR(G82/G$118,0)","v":0},null,{"$f":"IFERROR(I82/I$118,0)","v":0},null,{"$f":"IFERROR(K82/K$118,0)","v":0},null,{"$f":"IFERROR(M82/M$118,0)","v":0},null,{"$f":"IFERROR(O82/O$118,0)","v":0}]
[35,"Cachets aux collaborateurs",null,{"$f":"IFERROR(C83/C$118,0)","v":0},null,{"$f":"IFERROR(E83/E$118,0)","v":0},null,{"$f":"IFERROR(G83/G$118,0)","v":0},null,{"$f":"IFERROR(I83/I$118,0)","v":0},null,{"$f":"IFERROR(K83/K$118,0)","v":0},null,{"$f":"IFERROR(M83/M$118,0)","v":0},null,{"$f":"IFERROR(O83/O$118,0)","v":0}]
[36,"Illustrations et photos, droits de reproduction",null,{"$f":"IFERROR(C84/C$118,0)","v":0},null,{"$f":"IFERROR(E84/E$118,0)","v":0},null,{"$f":"IFERROR(G84/G$118,0)","v":0},null,{"$f":"IFERROR(I84/I$118,0)","v":0},null,{"$f":"IFERROR(K84/K$118,0)","v":0},null,{"$f":"IFERROR(M84/M$118,0)","v":0},null,{"$f":"IFERROR(O84/O$118,0)","v":0}]
[37,"Total des coûts de rédaction",{"$f":"SUM(C81:C84)","v":0},{"$f":"IFERROR(C85/C$118,0)","v":0},{"$f":"SUM(E81:E84)","v":0},{"$f":"IFERROR(E85/E$118,0)","v":0},{"$f":"SUM(G81:G84)","v":0},{"$f":"IFERROR(G85/G$118,0)","v":0},{"$f":"SUM(I81:I84)","v":0},{"$f":"IFERROR(I85/I$118,0)","v":0},{"$f":"SUM(K81:K84)","v":0},{"$f":"IFERROR(K85/K$118,0)","v":0},{"$f":"SUM(M81:M84)","v":0},{"$f":"IFERROR(M85/M$118,0)","v":0},{"$f":"SUM(O81:O84)","v":0},{"$f":"IFERROR(O85/O$118,0)","v":0}]
[38,"Production"]
[39,"Préimpression",null,{"$f":"IFERROR(C87/C$118,0)","v":0},null,{"$f":"IFERROR(E87/E$118,0)","v":0},null,{"$f":"IFERROR(G87/G$118,0)","v":0},null,{"$f":"IFERROR(I87/I$118,0)","v":0},null,{"$f":"IFERROR(K87/K$118,0)","v":0},null,{"$f":"IFERROR(M87/M$118,0)","v":0},null,{"$f":"IFERROR(O87/O$118,0)","v":0}]
[40,"Impression et reliure",null,{"$f":"IFERROR(C88/C$118,0)","v":0},null,{"$f":"IFERROR(E88/E$118,0)","v":0},null,{"$f":"IFERROR(G88/G$118,0)","v":0},null,{"$f":"IFERROR(I88/I$118,0)","v":0},null,{"$f":"IFERROR(K88/K$118,0)","v":0},null,{"$f":"IFERROR(M88/M$118,0)","v":0},null,{"$f":"IFERROR(O88/O$118,0)","v":0}]
[41,"Coûts de production liés à la version numérique",null,{"$f":"IFERROR(C89/C$118,0)","v":0},null,{"$f":"IFERROR(E89/E$118,0)","v":0},null,{"$f":"IFERROR(G89/G$118,0)","v":0},null,{"$f":"IFERROR(I89/I$118,0)","v":0},null,{"$f":"IFERROR(K89/K$118,0)","v":0},null,{"$f":"IFERROR(M89/M$118,0)","v":0},null,{"$f":"IFERROR(O89/O$118,0)","v":0}]
[42,"Web et commerce électronique",null,{"$f":"IFERROR(C90/C$118,0)","v":0},null,{"$f":"IFERROR(E90/E$118,0)","v":0},null,{"$f":"IFERROR(G90/G$118,0)","v":0},null,{"$f":"IFERROR(I90/I$118,0)","v":0},null,{"$f":"IFERROR(K90/K$118,0)","v":0},null,{"$f":"IFERROR(M90/M$118,0)","v":0},null,{"$f":"IFERROR(O90/O$118,0)","v":0}]
[43,"Total des coûts de production",{"$f":"SUM(C87:C90)","v":0},{"$f":"IFERROR(C91/C$118,0)","v":0},{"$f":"SUM(E87:E90)","v":0},{"$f":"IFERROR(E91/E$118,0)","v":0},{"$f":"SUM(G87:G90)","v":0},{"$f":"IFERROR(G91/G$118,0)","v":0},{"$f":"SUM(I87:I90)","v":0},{"$f":"IFERROR(I91/I$118,0)","v":0},{"$f":"SUM(K87:K90)","v":0},{"$f":"IFERROR(K91/K$118,0)","v":0},{"$f":"SUM(M87:M90)","v":0},{"$f":"IFERROR(M91/M$118,0)","v":0},{"$f":"SUM(O87:O90)","v":0},{"$f":"IFERROR(O91/O$118,0)","v":0}]
[44,"Diffusion"]
[45,"Affranchissement",null,{"$f":"IFERROR(C93/C$118,0)","v":0},null,{"$f":"IFERROR(E93/E$118,0)","v":0},null,{"$f":"IFERROR(G93/G$118,0)","v":0},null,{"$f":"IFERROR(I93/I$118,0)","v":0},null,{"$f":"IFERROR(K93/K$118,0)","v":0},null,{"$f":"IFERROR(M93/M$118,0)","v":0},null,{"$f":"IFERROR(O93/O$118,0)","v":0}]
[46,"Envoi et manutention",null,{"$f":"IFERROR(C94/C$118,0)","v":0},null,{"$f":"IFERROR(E94/E$118,0)","v":0},null,{"$f":"IFERROR(G94/G$118,0)","v":0},null,{"$f":"IFERROR(I94/I$118,0)","v":0},null,{"$f":"IFERROR(K94/K$118,0)","v":0},null,{"$f":"IFERROR(M94/M$118,0)","v":0},null,{"$f":"IFERROR(O94/O$118,0)","v":0}]
[47,"Total des coûts de diffusion",{"$f":"SUM(C93:C94)","v":0},{"$f":"IFERROR(C95/C$118,0)","v":0},{"$f":"SUM(E93:E94)","v":0},{"$f":"IFERROR(E95/E$118,0)","v":0},{"$f":"SUM(G93:G94)","v":0},{"$f":"IFERROR(G95/G$118,0)","v":0},{"$f":"SUM(I93:I94)","v":0},{"$f":"IFERROR(I95/I$118,0)","v":0},{"$f":"SUM(K93:K94)","v":0},{"$f":"IFERROR(K95/K$118,0)","v":0},{"$f":"SUM(M93:M94)","v":0},{"$f":"IFERROR(M95/M$118,0)","v":0},{"$f":"SUM(O93:O94)","v":0},{"$f":"IFERROR(O95/O$118,0)","v":0}]
[]
[{"$f":"A95+1","v":48},"Total des coûts des ventes",{"$f":"SUM(C95+C91+C85)","v":0},{"$f":"IFERROR(C97/C$118,0)","v":0},{"$f":"SUM(E95+E91+E85)","v":0},{"$f":"IFERROR(E97/E$118,0)","v":0},{"$f":"SUM(G95+G91+G85)","v":0},{"$f":"IFERROR(G97/G$118,0)","v":0},{"$f":"SUM(I95+I91+I85)","v":0},{"$f":"IFERROR(I97/I$118,0)","v":0},{"$f":"SUM(K95+K91+K85)","v":0},{"$f":"IFERROR(K97/K$118,0)","v":0},{"$f":"SUM(M95+M91+M85)","v":0},{"$f":"IFERROR(M97/M$118,0)","v":0},{"$f":"SUM(O95+O91+O85)","v":0},{"$f":"IFERROR(O97/O$118,0)","v":0}]
[]
[{"$f":"A97+1","v":49},"Promotion et publicité"]
[{"$f":"A99+1","v":50},"Frais de publicité",null,{"$f":"IFERROR(C100/C$118,0)","v":0},null,{"$f":"IFERROR(E100/E$118,0)","v":0},null,{"$f":"IFERROR(G100/G$118,0)","v":0},null,{"$f":"IFERROR(I100/I$118,0)","v":0},null,{"$f":"IFERROR(K100/K$118,0)","v":0},null,{"$f":"IFERROR(M100/M$118,0)","v":0},null,{"$f":"IFERROR(O100/O$118,0)","v":0}]
[51,"Échange de publicité ",null,{"$f":"IFERROR(C101/C$118,0)","v":0},null,{"$f":"IFERROR(E101/E$118,0)","v":0},null,{"$f":"IFERROR(G101/G$118,0)","v":0},null,{"$f":"IFERROR(I101/I$118,0)","v":0},null,{"$f":"IFERROR(K101/K$118,0)","v":0},null,{"$f":"IFERROR(M101/M$118,0)","v":0},null,{"$f":"IFERROR(O101/O$118,0)","v":0}]
[52,"Droit d’adhésion et d’inscription, et promotion des numéros",null,{"$f":"IFERROR(C102/C$118,0)","v":0},null,{"$f":"IFERROR(E102/E$118,0)","v":0},null,{"$f":"IFERROR(G102/G$118,0)","v":0},null,{"$f":"IFERROR(I102/I$118,0)","v":0},null,{"$f":"IFERROR(K102/K$118,0)","v":0},null,{"$f":"IFERROR(M102/M$118,0)","v":0},null,{"$f":"IFERROR(O102/O$118,0)","v":0}]
[53,"Total des frais de promotion et de publicité",{"$f":"SUM(C100:C102)","v":0},{"$f":"IFERROR(C103/C$118,0)","v":0},{"$f":"SUM(E100:E102)","v":0},{"$f":"IFERROR(E103/E$118,0)","v":0},{"$f":"SUM(G100:G102)","v":0},{"$f":"IFERROR(G103/G$118,0)","v":0},{"$f":"SUM(I100:I102)","v":0},{"$f":"IFERROR(I103/I$118,0)","v":0},{"$f":"SUM(K100:K102)","v":0},{"$f":"IFERROR(K103/K$118,0)","v":0},{"$f":"SUM(M100:M102)","v":0},{"$f":"IFERROR(M103/M$118,0)","v":0},{"$f":"SUM(O100:O102)","v":0},{"$f":"IFERROR(O103/O$118,0)","v":0}]
[54,"Frais généraux"]
[55,"Salaires du personnel et contrats",null,{"$f":"IFERROR(C105/C$118,0)","v":0},null,{"$f":"IFERROR(E105/E$118,0)","v":0},null,{"$f":"IFERROR(G105/G$118,0)","v":0},null,{"$f":"IFERROR(I105/I$118,0)","v":0},null,{"$f":"IFERROR(K105/K$118,0)","v":0},null,{"$f":"IFERROR(M105/M$118,0)","v":0},null,{"$f":"IFERROR(O105/O$118,0)","v":0}]
[56,"Avantages sociaux",null,0,null,0,null,0,null,0,null,0,null,0,null,0]
[57,"Coût d'accès: coûts reliés aux mesures de soutien et services pour écrivains sourds ou handicapés impliqués dans les activités",null,0,null,0,null,0,null,0,null,0,null,0,null,0]
[58,"Valeur du travail bénévole",null,0,null,0,null,0,null,0,null,0,null,0,null,0]
[59,"Perfectionnement professionnel du personnel",null,0,null,0,null,0,null,0,null,0,null,0,null,0]
[60,"Dépenses de collecte de fonds (brutes)",null,0,null,0,null,0,null,0,null,0,null,0,null,0]
[61,"Coûts d’occupation (loyer, hypothèque)",null,0,null,0,null,0,null,0,null,0,null,0,null,0]
[62,"Fournitures de bureau et petits appareils",null,0,null,0,null,0,null,0,null,0,null,0,null,0]
[63,"Télécommunications",null,0,null,0,null,0,null,0,null,0,null,0,null,0]
[64,"Amortissement",null,0,null,0,null,0,null,0,null,0,null,0,null,0]
[65,"Autres frais généraux ",null,0,null,0,null,0,null,0,null,0,null,0,null,0]
[66,"Total des frais généraux",{"$f":"SUM(C105:C115)","v":0},0,{"$f":"SUM(E105:E115)","v":0},0,{"$f":"SUM(G105:G115)","v":0},0,{"$f":"SUM(I105:I115)","v":0},0,{"$f":"SUM(K105:K115)","v":0},0,{"$f":"SUM(M105:M115)","v":0},0,{"$f":"SUM(O105:O115)","v":0},0]
[]
[{"$f":"A116+1","v":67},"Total des dépenses",{"$f":"C97+C103+C116","v":0},{"$f":"IFERROR(C118/C$118,0)","v":0},{"$f":"E97+E103+E116","v":0},{"$f":"IFERROR(E118/E$118,0)","v":0},{"$f":"G97+G103+G116","v":0},{"$f":"IFERROR(G118/G$118,0)","v":0},{"$f":"I97+I103+I116","v":0},{"$f":"IFERROR(I118/I$118,0)","v":0},{"$f":"K97+K103+K116","v":0},{"$f":"IFERROR(K118/K$118,0)","v":0},{"$f":"M97+M103+M116","v":0},{"$f":"IFERROR(M118/M$118,0)","v":0},{"$f":"O97+O103+O116","v":0},{"$f":"IFERROR(O118/O$118,0)","v":0}]
[]
[{"$f":"A118+1","v":68},"Excédent (Déficit) de l'exercice"]
[{"$f":"A120+1","v":69},"Excédent (déficit) = revenus – dépenses",{"$f":"C76-C118","v":0},{"$f":"IFERROR(C121/C$125,0)","v":0},{"$f":"E76-E118","v":0},{"$f":"IFERROR(E121/E$125,0)","v":0},{"$f":"G76-G118","v":0},{"$f":"IFERROR(G121/G$125,0)","v":0},{"$f":"I76-I118","v":0},{"$f":"IFERROR(I121/I$125,0)","v":0},{"$f":"K76-K118","v":0},{"$f":"IFERROR(K121/K$125,0)","v":0},{"$f":"M76-M118","v":0},{"$f":"IFERROR(M121/M$125,0)","v":0},{"$f":"O76-O118","v":0},{"$f":"IFERROR(O121/O$125,0)","v":0}]
[{"$f":"A121+1","v":70},"Déduction de l’excédent (perte) avant impôt sur l’excédent et postes extraordinaires (saisir une valeur négative, le cas échéant). \nVoir instructions ci-dessous.",null,{"$f":"IFERROR(C122/C$125,0)","v":0},null,{"$f":"IFERROR(E122/E$125,0)","v":0},null,{"$f":"IFERROR(G122/G$125,0)","v":0},null,{"$f":"IFERROR(I122/I$125,0)","v":0},null,{"$f":"IFERROR(K122/K$125,0)","v":0},null,{"$f":"IFERROR(M122/M$125,0)","v":0},null,{"$f":"IFERROR(O122/O$125,0)","v":0}]
[{"$f":"A122+1","v":71},"Impôt sur l’excédent",null,{"$f":"IFERROR(C123/C$125,0)","v":0},null,{"$f":"IFERROR(E123/E$125,0)","v":0},null,{"$f":"IFERROR(G123/G$125,0)","v":0},null,{"$f":"IFERROR(I123/I$125,0)","v":0},null,{"$f":"IFERROR(K123/K$125,0)","v":0},null,{"$f":"IFERROR(M123/M$125,0)","v":0},null,{"$f":"IFERROR(O123/O$125,0)","v":0}]
[{"$f":"A123+1","v":72},"Postes extraordinaires (précisez — voir ligne 91)",null,{"$f":"IFERROR(C124/C$125,0)","v":0},null,{"$f":"IFERROR(E124/E$125,0)","v":0},null,{"$f":"IFERROR(G124/G$125,0)","v":0},null,{"$f":"IFERROR(I124/I$125,0)","v":0},null,{"$f":"IFERROR(K124/K$125,0)","v":0},null,{"$f":"IFERROR(M124/M$125,0)","v":0},null,{"$f":"IFERROR(O124/O$125,0)","v":0}]
[{"$f":"A124+1","v":73},"Excédent (Déficit) de l'exercice",{"$f":"SUM(C121:C124)","v":0},{"$f":"IFERROR(C125/C$125,0)","v":0},{"$f":"SUM(E121:E124)","v":0},{"$f":"IFERROR(E125/E$125,0)","v":0},{"$f":"SUM(G121:G124)","v":0},{"$f":"IFERROR(G125/G$125,0)","v":0},{"$f":"SUM(I121:I124)","v":0},{"$f":"IFERROR(I125/I$125,0)","v":0},{"$f":"SUM(K121:K124)","v":0},{"$f":"IFERROR(K125/K$125,0)","v":0},{"$f":"SUM(M121:M124)","v":0},{"$f":"IFERROR(M125/M$125,0)","v":0},{"$f":"SUM(O121:O124)","v":0},{"$f":"IFERROR(O125/O$125,0)","v":0}]
[]
[{"$f":"A125+1","v":74},"Excédent (Déficit) accumulé à la fin de l'exercice"]
[{"$f":"A127+1","v":75},"Excédent (déficit) accumulé en début d’exercice",null,null,{"$f":"C132","v":0},null,{"$f":"E132","v":0},null,{"$f":"G132","v":0},null,{"$f":"+I132","v":0},null,{"$f":"+K132","v":0},null,{"$f":"+M132","v":0}]
[{"$f":"A128+1","v":76},"Excédent (déficit) de l’exercice — obtenu à la ligne 73",{"$f":"C125","v":0},null,{"$f":"E125","v":0},null,{"$f":"G125","v":0},null,{"$f":"I125","v":0},null,{"$f":"K125","v":0},null,{"$f":"M125","v":0},null,{"$f":"O125","v":0}]
[{"$f":"A129+1","v":77},"Dividendes déclarés et retraits (saisir un nombre absolu négatif (–) le cas échéant)"]
[{"$f":"A130+1","v":78},"Rajustements des exercices antérieurs (saisir une valeur négative, le cas échéant). Voir instructions ci-dessous."]
[{"$f":"A131+1","v":79},"Excédent (Déficit) accumulé à la fin de l'exercice",{"$f":"SUM(C128:C131)","v":0},null,{"$f":"SUM(E128:E131)","v":0},null,{"$f":"SUM(G128:G131)","v":0},null,{"$f":"SUM(I128:I131)","v":0},null,{"$f":"SUM(K128:K131)","v":0},null,{"$f":"SUM(M128:M131)","v":0},null,{"$f":"SUM(O128:O131)","v":0}]
[]
[{"$f":"A132+1","v":80},"Bilan (Information tirée des états financiers — données réelles seulement)\nLa section bilan doit être remplie pour refléter la situation financière de l’ensemble de votre organisme même si les sections revenus et dépenses se rapportent uniquement à votre périodique. Voir instructions ci-dessous."]
[{"$f":"A134+1","v":81},"Total des actifs courants"]
[{"$f":"A135+1","v":82},"Total de l’actif"]
[{"$f":"A136+1","v":83},"Total des passifs courants"]
[{"$f":"A137+1","v":84},"Total du passif"]
[{"$f":"A138+1","v":85},"Total des actifs nets, ou capitaux propres"]
[]
[{"$f":"A139+1","v":86},"Filiales et sociétés apparentées "]
[]
[null,"Détails, le cas échéant"]
[{"$f":"A141+1","v":87},"Autres revenus gagnés (ligne 8)"]
[{"$f":"A144+1","v":88},"Autres revenus du secteur privé (ligne 15)"]
[{"$f":"A145+1","v":89},"Autres revenus du secteur public (ligne 26)"]
[{"$f":"A146+1","v":90},"Autres revenus (ligne 28)"]
[{"$f":"A147+1","v":91},"Postes extraordinaires (ligne 72)"]
[]
[null,"Instructions"]
["* ","Les pourcentages des composantes de la catégorie revenus sont calculés en fonction du montant total des revenus.\nLes pourcentages des composantes de la catégorie dépenses sont calculés en fonction du montant total des dépenses."]
[{"$f":"A60","v":15},"Autres revenus du secteur privé","Indiquez les subventions reçues de fondations privées ainsi que les commandites en biens et services si elles sont constatées dans les états financiers."]
[{"$f":"A62","v":17},"Revenus du secteur public","Dans la présente demande, il faut déclarer toute aide financière gouvernementale — notamment fédérale, provinciale et municipale — à titre de revenus. Si des subventions et des contributions figurent dans vos états financiers pour compenser des coûts des ventes ou des frais d’exploitation, vous devez les transférer dans la présente section de votre demande et faire les rajustements pertinents correspondants. De même, tous les crédits d’impôt doivent être inscrits dans cette section à titre de revenus."]
[{"$f":"A74","v":28},"Autres revenus","Indiquez tous les autres revenus, incluant les contributions de l’organisme lié ou apparenté, et les subventions de stabilisation. "]
[{"$f":"A122","v":70},"Déduction de l’excédent (perte) avant impôts sur l’excédent et postes extraordinaires","Déduisez les éléments suivants de l’excédent (perte) : moins-value, remise de dette, gain (perte) sur devises étrangères et sur investissements, vente de biens en capital, etc."]
[{"$f":"A131","v":78},"Rajustements des exercices antérieurs (inscrire un nombre absolu comme valeur négative (-), le cas échéant)","Indiquez les retraitements comptables ayant une incidence directe sur votre excédent (déficit) d’exercice. "]
[{"$f":"A134","v":80},"Bilan","Ne remplissez que les colonnes des exercices financiers pour lesquels des états financiers ont été joints. N’inscrivez rien pour les exercices courant et prévisionnel. La section bilan doit être remplie pour refléter la situation financière de l’ensemble de votre organisme même si les sections revenus et dépenses se rapportent uniquement à votre périodique."]
[81,"Total des actifs courants","Incluez le total des actifs normalement réalisables au cours d’un exercice, répartis généralement dans les grandes catégories suivantes : espèces, comptes clients, valeurs mobilières, dépôts, subventions et contributions à recevoir, stock, coûts reportés de prépublication, y compris les ouvrages en cours, les droits d’auteur prépayés et les avances, par exemple."]
[82,"Total de l’actif","Incluez le total des actifs courants, des immobilisations et des autres actifs (investissements ou actifs incorporels, par exemple)."]
[83,"Total des passifs courants","Incluez le total des passifs normalement à payer au cours d’un exercice, habituellement répartis dans les principales catégories suivantes : comptes à payer, charges à payer, revenus et subventions reportés, parties à court terme de la dette à long terme et passifs d’impôts futurs dus au cours du prochain exercice."]
[84,"Total du passif","Incluez le total des passifs à court terme et à long terme (montant à payer aux actionnaires et dettes à long terme, par exemple)."]
[85,"Total des actifs nets, ou capitaux propres","Incluez les actifs nets, c’est-à-dire le capital-actions émis et payé, les surplus d’apports et les excédents non répartis."]
[null,"Remarque :","Actif = Passif + Actifs nets, ou Capitaux propres"]
[{"$f":"A141","v":86},"Filiales et sociétés apparentées","Fournissez des détails sur tout investissement, intérêts ou avances versées à des filiales ou à des sociétés apparentées."]

{"sheet":"M Budget éditeurs livres","index":23,"n_rows":95,"n_cols":16,"rows_kept":95,"cut":false,"hidden":false,"merged":[[10,2,10,3],[9,10,9,11],[7,10,7,11],[9,8,9,9],[7,8,7,9],[9,6,9,7],[7,6,7,7],[9,4,9,5],[7,4,7,5],[8,10,8,11],[8,8,8,9],[8,6,8,7],[8,4,8,5],[3,1,3,15],[1,1,1,15],[7,2,7,3],[8,2,8,3],[9,2,9,3],[5,2,6,3],[5,4,6,5],[5,6,6,7],[5,8,6,9],[5,10,6,11],[4,1,4,8],[10,10,10,11],[10,8,10,9],[10,6,10,7],[10,4,10,5],[91,8,91,9],[90,8,90,9],[89,8,89,9],[88,8,88,9],[87,8,87,9],[91,10,91,11],[90,10,90,11],[89,10,89,11],[88,10,88,11],[87,10,87,11],[90,6,90,7],[89,6,89,7],[88,6,88,7],[87,6,87,7],[86,6,86,7],[91,4,91,5],[90,4,90,5],[89,4,89,5],[88,4,88,5],[87,4,87,5],[91,6,91,7],[91,2,91,3],[90,2,90,3],[89,2,89,3],[88,2,88,3],[87,2,87,3],[89,12,89,13],[90,12,90,13],[5,12,6,13],[7,12,7,13],[8,12,8,13],[9,12,9,13],[10,12,10,13],[41,1,41,15],[69,1,69,15],[86,12,86,13],[87,12,87,13],[88,12,88,13],[86,4,86,5],[86,2,86,3],[86,10,86,11],[86,8,86,9],[76,1,76,15],[85,1,85,15],[91,12,91,13],[5,14,6,15],[7,14,7,15],[8,14,8,15],[9,14,9,15],[10,14,10,15],[86,14,86,15],[87,14,87,15],[88,14,88,15],[89,14,89,15],[90,14,90,15],[91,14,91,15],[11,1,11,15],[24,1,24,15]]}
[null,"v.202305"]
[null,"Créer, connaître et partager : Organismes autochtones - Éditeurs de livres"]
[]
[null,"SOMMAIRE FINANCIER                                                                                                                                                                    "]
[null,"Inscrire « 0 » si c’est la valeur prévue du champ"]
[null,"Date : ","Avant-dernier exercice financier\nDonnées réelles",null,"Dernier exercice financier\nDonnées réelles",null,"Exercice financier \nen cours\nDonnées projetées",null,"1er exercice financier de la demande\nDonnées projetées",null,"2e exercice financier de la demande\nDonnées projetées",null,"3e exercice financier de la demande\nDonnées projetées",null,"4e exercice financier de la demande\nDonnées projetées"]
[]
[null," Consulter l'onglet « N Instructions éditeurs livres »","de ",null,"de ",null,"de ",null,"de ",null,"de ",null,"de ",null,"de "]
[null,null,"Date : ",null,"Date : ",null,"Date : ",null,"Date : ",null,"Date : ",null,"Date : ",null,"Date : "]
[null,null,"à",null,"à",null,"à",null,"à",null,"à",null,"à",null,"à"]
["Ligne",null,"Date : ",null,"Date : ",null,"Date : ",null,"Date : ",null,"Date : ",null,"Date : ",null,"Date : "]
[1,"Revenus d’exploitation"]
[2,"Revenus bruts et ventes de vos propres ouvrages",null,{"$f":"IFERROR(C13/C$40,0)","v":0},null,{"$f":"IFERROR(E13/E$40,0)","v":0},null,{"$f":"IFERROR(G13/G$40,0)","v":0},null,{"$f":"IFERROR(I13/I$40,0)","v":0},null,{"$f":"IFERROR(K13/K$40,0)","v":0},null,{"$f":"IFERROR(M13/M$40,0)","v":0},null,{"$f":"IFERROR(O13/O$40,0)","v":0}]
[3,"Retours",null,{"$f":"IFERROR(C14/C$40,0)","v":0},null,{"$f":"IFERROR(E14/E$40,0)","v":0},null,{"$f":"IFERROR(G14/G$40,0)","v":0},null,{"$f":"IFERROR(I14/I$40,0)","v":0},null,{"$f":"IFERROR(K14/K$40,0)","v":0},null,0,null,{"$f":"IFERROR(O14/O$40,0)","v":0}]
[4,"Ventes nettes de vos propres ouvrages \nVeuillez fournir les détails pour ce montant dans les lignes 6 à 9. \nRemarque : Les détails fournis dans ces lignes ne sont pas comptés en double à la ligne 12.",{"$f":"C13-C14","v":0},0,{"$f":"E13-E14","v":0},0,{"$f":"G13-G14","v":0},0,{"$f":"I13-I14","v":0},0,{"$f":"K13-K14","v":0},0,{"$f":"M13-M14","v":0},0,{"$f":"O13-O14","v":0},{"$f":"IFERROR(O15/O$40,0)","v":0}]
[5,"Ventes nettes de vos propres ouvrages (détails)"]
[{"$f":"A16+1","v":6},"* Ventes nettes de titres admissibles aux programmes du Conseil des arts, livres imprimés",null,{"$f":"IFERROR(C17/C$40,0)","v":0},null,0,null,0,null,0,null,0,null,0,null,{"$f":"IFERROR(O17/O$40,0)","v":0}]
[7,"* Ventes nettes de titres admissibles aux programmes du Conseil des arts, livres électroniques",null,{"$f":"IFERROR(C18/C$40,0)","v":0},null,0,null,0,null,0,null,0,null,0,null,{"$f":"IFERROR(O18/O$40,0)","v":0}]
[8,"* Ventes nettes d’autres titres d’auteurs canadiens, livres imprimés",null,0,null,0,null,0,null,0,null,0,null,0,null,{"$f":"IFERROR(O19/O$40,0)","v":0}]
[9," *  Ventes nettes d’autres titres d’auteurs canadiens, livres électroniques",null,0,null,0,null,0,null,0,null,0,null,0,null,{"$f":"IFERROR(O20/O$40,0)","v":0}]
[10,"Autres revenus nets de publication (précisez — voir ligne 65)",null,0,null,0,null,0,null,0,null,0,null,0,null,{"$f":"IFERROR(O21/O$40,0)","v":0}]
[11,"Autres revenus nets (précisez — voir ligne 66)",null,0,null,0,null,0,null,0,null,0,null,0,null,{"$f":"IFERROR(O22/O$40,0)","v":0}]
[12,"Total des revenus d’exploitation nets",{"$f":"C15+C21+C22","v":0},0,{"$f":"E15+E21+E22","v":0},0,{"$f":"G15+G21+G22","v":0},0,{"$f":"I15+I21+I22","v":0},0,{"$f":"K15+K21+K22","v":0},0,{"$f":"M15+M21+M22","v":0},0,{"$f":"O15+O21+O22","v":0},{"$f":"IFERROR(O23/O$40,0)","v":0}]
[]
[{"$f":"A23+1","v":13},"Subventions et autres contributions non remboursables obtenues des sources suivantes :"]
[{"$f":"A25+1","v":14},"Subvention pour cette demande",null,{"$f":"IFERROR(C26/C$40,0)","v":0},null,{"$f":"IFERROR(E26/E$40,0)","v":0},null,{"$f":"IFERROR(G26/G$40,0)","v":0},null,{"$f":"IFERROR(I26/I$40,0)","v":0},null,{"$f":"IFERROR(K26/K$40,0)","v":0},null,{"$f":"IFERROR(M26/M$40,0)","v":0},null,{"$f":"IFERROR(O26/O$40,0)","v":0}]
[15,"Autres subventions du Conseil des arts du Canada",null,{"$f":"IFERROR(C27/C$40,0)","v":0},null,{"$f":"IFERROR(E27/E$40,0)","v":0},null,{"$f":"IFERROR(G27/G$40,0)","v":0},null,{"$f":"IFERROR(I27/I$40,0)","v":0},null,{"$f":"IFERROR(K27/K$40,0)","v":0},null,0,null,{"$f":"IFERROR(O27/O$40,0)","v":0}]
[16,"Ministère du Patrimoine canadien (Fonds du livre du Canada)",null,0,null,0,null,0,null,0,null,0,null,0,null,{"$f":"IFERROR(O28/O$40,0)","v":0}]
[17,"Livres Canada Books",null,0,null,0,null,0,null,0,null,0,null,0,null,{"$f":"IFERROR(O29/O$40,0)","v":0}]
[18,"Fédération canadienne des sciences humaines (PAES)",null,0,null,0,null,0,null,0,null,0,null,0,null,{"$f":"IFERROR(O30/O$40,0)","v":0}]
[19,"Autres sources fédérales (précisez — voir ligne 67)",null,0,null,0,null,0,null,0,null,0,null,0,null,{"$f":"IFERROR(O31/O$40,0)","v":0}]
[20,"Conseil des arts provincial ou territorial — subventions globales",null,0,null,0,null,0,null,0,null,0,null,0,null,{"$f":"IFERROR(O32/O$40,0)","v":0}]
[21,"Conseil des arts provincial ou territorial — autres programmes",null,0,null,0,null,0,null,0,null,0,null,0,null,{"$f":"IFERROR(O33/O$40,0)","v":0}]
[22,"Organismes provinciaux ou territoriaux — programmes de crédits d’impôt",null,0,null,0,null,0,null,0,null,0,null,0,null,{"$f":"IFERROR(O34/O$40,0)","v":0}]
[23,"Autres sources provinciales ou territoriales (précisez — voir ligne 68)",null,0,null,0,null,0,null,0,null,0,null,0,null,{"$f":"IFERROR(O35/O$40,0)","v":0}]
[24,"Autres organismes gouvernementaux et administrations municipales, par exemple",null,0,null,0,null,0,null,0,null,0,null,0,null,{"$f":"IFERROR(O36/O$40,0)","v":0}]
[25,"Autres sources (précisez — voir ligne 69)",null,0,null,0,null,0,null,0,null,0,null,0,null,{"$f":"IFERROR(O37/O$40,0)","v":0}]
[26,"Total des subventions et des contributions",{"$f":"SUM(C26:C37)","v":0},0,{"$f":"SUM(E26:E37)","v":0},0,{"$f":"SUM(G26:G37)","v":0},0,{"$f":"SUM(I26:I37)","v":0},0,{"$f":"SUM(K26:K37)","v":0},0,{"$f":"SUM(M26:M37)","v":0},0,{"$f":"SUM(O26:O37)","v":0},{"$f":"IFERROR(O38/O$40,0)","v":0}]
[]
[{"$f":"A38+1","v":27},"Total des revenus nets",{"$f":"C23+C38","v":0},0,{"$f":"E23+E38","v":0},0,{"$f":"G23+G38","v":0},0,{"$f":"I23+I38","v":0},0,{"$f":"K23+K38","v":0},0,{"$f":"M23+M38","v":0},0,{"$f":"O23+O38","v":0},{"$f":"IFERROR(O40/O$40,0)","v":0}]
[]
[{"$f":"A40+1","v":28},"Coûts des ventes"]
[{"$f":"A42+1","v":29},"Stock d’ouverture",null,{"$f":"IFERROR(C43/C$62,0)","v":0},null,{"$f":"IFERROR(E43/E$62,0)","v":0},null,{"$f":"IFERROR(G43/G$62,0)","v":0},null,{"$f":"IFERROR(I43/I$62,0)","v":0},null,{"$f":"IFERROR(K43/K$62,0)","v":0},null,{"$f":"IFERROR(M43/M$62,0)","v":0},null,{"$f":"IFERROR(O43/O$62,0)","v":0}]
[30,"Coûts directs",null,{"$f":"IFERROR(C44/C$62,0)","v":0},null,{"$f":"IFERROR(E44/E$62,0)","v":0},null,{"$f":"IFERROR(G44/G$62,0)","v":0},null,{"$f":"IFERROR(I44/I$62,0)","v":0},null,{"$f":"IFERROR(K44/K$62,0)","v":0},null,0,null,{"$f":"IFERROR(O44/O$62,0)","v":0}]
[31,"Stock de fermeture",null,0,null,0,null,0,null,0,null,0,null,0,null,{"$f":"IFERROR(O45/O$62,0)","v":0}]
[32,"Droits d’auteur sur tous les titres",null,0,null,0,null,0,null,0,null,0,null,0,null,{"$f":"IFERROR(O46/O$62,0)","v":0}]
[33,"Coûts de distribution",null,0,null,0,null,0,null,0,null,0,null,0,null,{"$f":"IFERROR(O47/O$62,0)","v":0}]
[34,"Coûts d’autres produits",null,0,null,0,null,0,null,0,null,0,null,0,null,{"$f":"IFERROR(O48/O$62,0)","v":0}]
[35,"Total des coûts des ventes",{"$f":"C43+C44-C45+C46+C47+C48","v":0},0,{"$f":"E43+E44-E45+E46+E47+E48","v":0},0,{"$f":"G43+G44-G45+G46+G47+G48","v":0},0,{"$f":"I43+I44-I45+I46+I47+I48","v":0},0,{"$f":"K43+K44-K45+K46+K47+K48","v":0},0,{"$f":"M43+M44-M45+M46+M47+M48","v":0},0,{"$f":"O43+O44-O45+O46+O47+O48","v":0},{"$f":"IFERROR(O49/O$62,0)","v":0}]
[]
[{"$f":"A49+1","v":36},"Excédent brut (revenus nets moins total des coûts des ventes)",{"$f":"C40-C49","v":0},0,{"$f":"E40-E49","v":0},0,{"$f":"G40-G49","v":0},0,{"$f":"I40-I49","v":0},0,{"$f":"K40-K49","v":0},0,{"$f":"M40-M49","v":0},0,{"$f":"O40-O49","v":0},{"$f":"IFERROR(O51/O$62,0)","v":0}]
[]
[{"$f":"A51+1","v":37},"Frais d’exploitation"]
[{"$f":"A53+1","v":38},"Salaires et avantages sociaux"]
[{"$f":"A54+1","v":39},"Artistes et éditeurs",null,0,null,0,null,0,null,0,null,0,null,0,null,{"$f":"IFERROR(O55/O$62,0)","v":0}]
[{"$f":"+A55+1","v":40},"Marketing et promotion",null,0,null,0,null,0,null,0,null,0,null,0,null,{"$f":"IFERROR(O56/O$62,0)","v":0}]
[{"$f":"+A56+1","v":41},"Autres",null,0,null,0,null,0,null,0,null,0,null,0,null,{"$f":"IFERROR(O57/O$62,0)","v":0}]
[{"$f":"A57+1","v":42},"Total des salaires et des avantages sociaux",{"$f":"SUM(C55:C57)","v":0},0,{"$f":"SUM(E55:E57)","v":0},0,{"$f":"SUM(G55:G57)","v":0},0,{"$f":"SUM(I55:I57)","v":0},0,{"$f":"SUM(K55:K57)","v":0},0,{"$f":"SUM(M55:M57)","v":0},0,{"$f":"SUM(O55:O57)","v":0},{"$f":"IFERROR(O58/O$62,0)","v":0}]
[{"$f":"A58+1","v":43},"Coût d'accès: coûts reliés aux mesures de soutien et services pour écrivains sourds ou handicapés impliqués dans les activités"]
[{"$f":"A59+1","v":44},"Frais de marketing et de promotion",null,0,null,0,null,0,null,0,null,0,null,0,null,{"$f":"IFERROR(O60/O$62,0)","v":0}]
[{"$f":"A60+1","v":45},"Autres frais d’exploitation",null,0,null,0,null,0,null,0,null,0,null,0,null,{"$f":"IFERROR(O61/O$62,0)","v":0}]
[{"$f":"A61+1","v":46},"Total des frais d’exploitation",{"$f":"SUM(C58:C61)","v":0},0,{"$f":"SUM(E58:E61)","v":0},0,{"$f":"SUM(G58:G61)","v":0},0,{"$f":"SUM(I58:I61)","v":0},0,{"$f":"SUM(K58:K61)","v":0},0,{"$f":"SUM(M58:M61)","v":0},0,{"$f":"SUM(O58:O61)","v":0},{"$f":"IFERROR(O62/O$62,0)","v":0}]
[]
[{"$f":"A62+1","v":47},"Excédent (perte) (excédent brut moins total des frais d’exploitation)",{"$f":"C51-C62","v":0},{"$f":"IFERROR(C64/C$62,0)","v":0},{"$f":"E51-E62","v":0},{"$f":"IFERROR(E64/E$62,0)","v":0},{"$f":"G51-G62","v":0},{"$f":"IFERROR(G64/G$62,0)","v":0},{"$f":"I51-I62","v":0},{"$f":"IFERROR(I64/I$62,0)","v":0},{"$f":"K51-K62","v":0},{"$f":"IFERROR(K64/K$62,0)","v":0},{"$f":"M51-M62","v":0},{"$f":"IFERROR(M64/M$62,0)","v":0},{"$f":"O51-O62","v":0},{"$f":"IFERROR(O64/O$62,0)","v":0}]
[{"$f":"A64+1","v":48},"Déduction de l’excédent net (de la perte nette) avant impôt sur l’excédent et postes extraordinaires",null,{"$f":"IFERROR(C65/C$62,0)","v":0},null,{"$f":"IFERROR(E65/E$62,0)","v":0},null,{"$f":"IFERROR(G65/G$62,0)","v":0},null,{"$f":"IFERROR(I65/I$62,0)","v":0},null,{"$f":"IFERROR(K65/K$62,0)","v":0},null,0,null,{"$f":"IFERROR(O65/O$62,0)","v":0}]
[{"$f":"A65+1","v":49},"Impôt sur l’excédent",null,0,null,0,null,0,null,0,null,0,null,0,null,{"$f":"IFERROR(O66/O$62,0)","v":0}]
[{"$f":"A66+1","v":50},"Postes extraordinaires (précisez — voir ligne 70)",null,0,null,0,null,0,null,0,null,0,null,0,null,{"$f":"IFERROR(O67/O$62,0)","v":0}]
[{"$f":"A67+1","v":51},"Excédent net (perte nette)",{"$f":"C64-C65-C66-C67","v":0},0,{"$f":"E64-E65-E66-E67","v":0},0,{"$f":"G64-G65-G66-G67","v":0},0,{"$f":"I64-I65-I66-I67","v":0},0,{"$f":"K64-K65-K66-K67","v":0},0,{"$f":"M64-M65-M66-M67","v":0},0,{"$f":"O64-O65-O66-O67","v":0},{"$f":"IFERROR(O68/O$62,0)","v":0}]
[]
[{"$f":"A68+1","v":52},"Excédents non répartis"]
[{"$f":"A70+1","v":53},"Excédents non répartis en début d’exercice",null,null,{"$f":"+C75","v":0},null,{"$f":"+E75","v":0},null,{"$f":"+G75","v":0},null,{"$f":"+I75","v":0},null,{"$f":"+K75","v":0},null,{"$f":"+M75","v":0}]
[{"$f":"A71+1","v":54},"Excédent net (perte nette) de l’exercice (valeur négative en cas de perte) — obtenu(e) à la ligne 51",{"$f":"C68","v":0},null,{"$f":"E68","v":0},null,{"$f":"G68","v":0},null,{"$f":"I68","v":0},null,{"$f":"K68","v":0},null,{"$f":"M68","v":0},null,{"$f":"O68","v":0}]
[{"$f":"A72+1","v":55},"Dividendes déclarés et retraits (saisir une valeur absolue négative (-))"]
[{"$f":"A73+1","v":56},"Rajustements des exercices antérieurs (saisir une valeur négative, le cas échéant)"]
[{"$f":"A74+1","v":57},"Excédents non répartis en fin d’exercice OU excédent (déficit) accumulé",{"$f":"C71+C72+C73+C74","v":0},null,{"$f":"E71+E72+E73+E74","v":0},null,{"$f":"G71+G72+G73+G74","v":0},null,{"$f":"I71+I72+I73+I74","v":0},null,{"$f":"K71+K72+K73+K74","v":0},null,{"$f":"M71+M72+M73+M74","v":0},null,{"$f":"O71+O72+O73+O74","v":0}]
[]
[{"$f":"A75+1","v":58},"Bilan (Données des états financiers - résultats seulement)"]
[{"$f":"A77+1","v":59},"Total des actifs courants"]
[{"$f":"A78+1","v":60},"Total de l’actif"]
[{"$f":"A79+1","v":61},"Total des passifs courants"]
[{"$f":"A80+1","v":62},"Total du passif"]
[{"$f":"A81+1","v":63},"Total des capitaux propres"]
[]
[{"$f":"A82+1","v":64},"Filiales et sociétés apparentées"]
[]
[null,"Détails, le cas échéant"]
[{"$f":"A84+1","v":65},"Autres revenus nets de publication"]
[{"$f":"A87+1","v":66},"Autres revenus nets"]
[{"$f":"A88+1","v":67},"Autres sources fédérales"]
[{"$f":"A89+1","v":68},"Autres sources provinciales ou territoriales"]
[{"$f":"A90+1","v":69},"Autres sources"]
[{"$f":"A91+1","v":70},"Postes extraordinaires"]
[]
[{"$f":"A92+1","v":71},"Ratio du fonds de roulement (actifs courants – passifs courants)",{"$f":"C78-C80","v":0},null,{"$f":"E78-E80","v":0},null,{"$f":"G78-G80","v":0},null,{"$f":"I78-I80","v":0},null,{"$f":"K78-K80","v":0},null,{"$f":"M78-M80","v":0},null,{"$f":"O78-O80","v":0}]
[{"$f":"A94+1","v":72},"Ratio de marge (excédent ou perte avant impôt sur l’excédent et postes extraordinaires (ligne 47) / total des revenus nets (ligne 27)",{"$f":"IFERROR(C64/C40,0)","v":0},null,{"$f":"IFERROR(E64/E40,0)","v":0},null,{"$f":"IFERROR(G64/G40,0)","v":0},null,{"$f":"IFERROR(I64/I40,0)","v":0},null,{"$f":"IFERROR(K64/K40,0)","v":0},null,{"$f":"IFERROR(M64/M40,0)","v":0},null,{"$f":"IFERROR(O64/O40,0)","v":0}]

{"sheet":"N Instructions éditeurs livres","index":24,"n_rows":81,"n_cols":3,"rows_kept":81,"cut":false,"hidden":false,"merged":[[1,1,1,2],[3,1,3,2],[4,1,4,2],[37,1,37,2],[65,1,65,2],[7,1,7,2],[20,1,20,2],[21,2,31,2]]}
[null,"v.202305"]
[null,"Créer, connaître et partager : Organismes autochtones - Éditeurs de livres (Instructions)"]
[]
[null,"Vos états financiers doivent appuyer les données historiques (réelles) indiquées dans le présent formulaire financier.                                                                "]
[null,"Vous devrez présenter des données financières pour l’exercice en cours et le suivant, en fonction de la fin de votre exercice financier."]
[null,null,"Inscrire « 0 » si c’est la valeur prévue du champ"]
["Ligne",null,"Instructions"]
[1,"Revenus d’exploitation"]
[2," Revenus bruts et ventes de vos propres ouvrages ","Indiquez le total des ventes."]
[3," Retours ","Indiquez tous les coûts liés aux retours (y compris les remises, les crédits et les déductions pour retours, si ces coûts n’ont pas été inscrits à la ligne 33)."]
[4,"Ventes nettes de vos propres ouvrages \nVeuillez fournir les détails pour ce montant dans les lignes 6 à 9. \nRemarque : Les détails fournis dans ces lignes ne sont pas comptés en double à la ligne 12.","= ligne 2 - ligne 3"]
[5,"Ventes nettes de vos propres ouvrages (détails)"]
[6,"* Ventes nettes de titres admissibles aux programmes du Conseil des arts, livres imprimés","Indiquez les ventes de livres imprimés en excluant les rabais aux détaillants, les crédits pour les retours, et les provisions pour les retours."]
[7,"* Ventes nettes de titres admissibles aux programmes du Conseil des arts, livres électroniques","Indiquez les ventes de livres électroniques en excluant les rabais aux détaillants, les crédits pour les retours, et les provisions pour les retours."]
[8,"* Ventes nettes d’autres titres d’auteurs canadiens, livres imprimés","Indiquez les ventes de livres imprimés en excluant les rabais aux détaillants, les crédits pour les retours, et les provisions pour les retours."]
[9," *  Ventes nettes d’autres titres d’auteurs canadiens, livres électroniques","Indiquez les ventes de livres électroniques en excluant les rabais aux détaillants, les crédits pour les retours, et les provisions pour les retours."]
[10,"Autres revenus nets de publication","Veuillez inclure tous les autres revenus de ventes de livres au détail, de services de marketing et de distribution (y compris les titres d’agences), d’impression de livres, d'autres revenus liés aux livres, les intérêts, les frais de gestion, etc. Veuillez partager les montants entre les lignes 10 et 11 selon les activités de votre organisme et de ses états financiers."]
[11,"Autres revenus nets"]
[12,"Total des revenus d’exploitation nets","= ligne 4 + ligne 10 + ligne 11"]
[]
[13,"Subventions et autres contributions non remboursables obtenues des sources suivantes :"]
[14,"Subvention pour cette demande","Dans la présente demande, il faut déclarer toute aide financière gouvernementale — notamment fédérale, provinciale et municipale — à titre de revenus. Si des subventions et des contributions figurent dans vos états financiers pour compenser des coûts de ventes ou des frais d’exploitation, vous devez les transférer dans la présente section de votre demande et faire les rajustements pertinents correspondants. De même, tous les crédits d’impôt doivent être inscrits dans cette section à titre de revenus."]
[15,"Autres subventions du Conseil des arts du Canada"]
[16,"Ministère du Patrimoine canadien (Fonds du livre du Canada)"]
[17,"Livres Canada Books"]
[18,"Fédération canadienne des sciences humaines (PAES)"]
[19,"Autres sources fédérales"]
[20,"Conseil des arts provincial ou territorial — subventions globales"]
[21,"Conseil des arts provincial ou territorial — autres programmes"]
[22,"Organismes provinciaux ou territoriaux — programmes de crédits d’impôt"]
[23,"Autres sources provinciales ou territoriales (précisez — voir ligne 68 ci-dessous)"]
[24,"Autres organismes gouvernementaux et administrations municipales, par exemple"]
[25,"Autres sources","Incluez toute autre aide financière publique et non remboursable reçue et constatée dans vos états financiers."]
[26,"Total des subventions et des contributions","= ligne 14 + ligne 15 + … + ligne 25"]
[]
[27,"Total des revenus nets","= ligne 12 + ligne 26"]
[]
[28,"Coûts des ventes"]
[29,"Stock d’ouverture","Stock d’ouverture (y compris les ouvrages en cours)"]
[30,"Coûts directs","Coûts directs (design, papier, production, impression, reliure)"]
[31,"Stock de fermeture","Stock de fermeture (y compris ouvrages en cours) "]
[32,"Droits d’auteur sur tous les titres","Veuillez inclure toutes les dépenses en droits d'auteur découlant de ventes de titres."]
[33,"Coûts de distribution","Veuillez inclure toutes les dépenses liées à la distribution : les frais payés aux distributeurs, les remises aux libraires, aux diffuseurs, etc. (si ces dépenses sont comprises dans les retours à la ligne 3, ne pas les indiquer dans ce poste)."]
[34,"Coûts d’autres produits","Le cas échéant"]
[35,"Total des coûts des ventes","= ligne 29 + ligne 30 - ligne 31 + ligne 32 + ligne 33 + ligne 34"]
[]
[36,"Excédent brut (revenus nets moins total des coûts des ventes)","= ligne 27 - ligne 35"]
[]
[37,"Frais d’exploitation"]
[38,"Salaires et avantages sociaux"]
[39,"Artistes et éditeurs"]
[40,"Marketing et promotion"]
[41,"Autres"]
[42,"Total des salaires et des avantages sociaux","= ligne 39 + ligne 40 + ligne 41"]
[43,"Soutien à l'accès aux services : coûts des mesures de soutien et des services pour auteurs sourds ou handicapés"]
[44,"Frais de marketing et de promotion","Veuillez inclure les coûts liés aux activités de marketing (honoraires professionnels, frais de production pour publicités et autres outils de marketing, dépenses publicitaires — achats de publicité à l’échelle locale, nationale et internationale, et coûts de promotion dans les nouveaux médias sociaux, par exemple)."]
[45,"Autres frais d’exploitation","Veuillez inclure les coûts liés à l’entretien des installations et aux tâches administratives (dépenses d’entretien, honoraires professionnels, location et hypothèque, contrats de service, frais juridiques et comptables, matériel, mobilier et fournitures de bureau et taxes, par exemple)."]
[46,"Total des frais d’exploitation","= ligne 42 + ligne 43 + ligne 44 + ligne 45"]
[]
[47,"Excédent (perte) (excédent brut moins total des frais d’exploitation)","= ligne 36 - ligne 46"]
[48,"Déduction de l’excédent (de la perte) avant impôt sur l’excédent et postes extraordinaires","Déduisez les éléments suivants de l’excédent (perte) : dépréciation et amortissement, intérêts, remise de dette, gain (perte) sur devises étrangères et sur investissements ou vente de biens en capital, etc."]
[49,"Impôt sur l’excédent"]
[50,"Postes extraordinaires"]
[51,"Excédent net (perte nette)","= ligne 47 - ligne 48 -  ligne 49 - ligne 50"]
[]
[52,"Excédents non répartis"]
[53,"Excédents non répartis en début d’exercice","Veuillez inclure les excédents non répartis à la fin de votre exercice PRÉCÉDENT."]
[54,"Excédent net (perte nette) de l’exercice (valeur négative en cas de perte) — obtenu(e) à la ligne 51","= ligne 51   "]
[55,"Dividendes déclarés et retraits (saisir un nombre absolu négatif (-))","Veuillez inclure un nombre absolu et négatif (-)."]
[56,"Rajustements des exercices antérieurs (saisir une valeur négative, le cas échéant)","Incluez les retraitements comptables ayant une incidence directe sur votre excédent (déficit) de l’exercice. "]
[57,"Excédents non répartis en fin d’exercice OU excédent (déficit) accumulé","= ligne 53 + ligne 54 + ligne 55 + ligne 56"]
[]
[58,"Bilan (Données des états financiers — résultats seulement)","Remplissez seulement les colonnes des exercices financiers pour lesquels les états financiers ont été joints. Ne rien inscrire pour les exercices courant et prévisionnel."]
[59,"Total des actifs courants","Veuillez inclure le total des actifs normalement réalisables au cours d’un exercice, répartis généralement dans les grandes catégories suivantes : espèces, comptes clients, valeurs mobilières, dépôts, subventions et contributions à recevoir, stock, coûts reportés de prépublication, y compris les ouvrages en cours, les droits d’auteur prépayés et les avances, par exemple."]
[60,"Total de l’actif","Veuillez inclure le total des actifs courants, des immobilisations et des autres actifs (investissements ou actifs incorporels, par exemple)."]
[61,"Total des passifs courants","Veuillez inclure le total des passifs normalement à payer au cours d’un exercice, habituellement répartis dans les principales catégories suivantes : comptes à payer, charges à payer, revenus et subventions reportés, parties à court terme de la dette à long terme et passifs d’impôts futurs dus au cours du prochain exercice."]
[62,"Total du passif","Veuillez inclure le total des passifs à court terme et à long terme (montant à payer aux actionnaires et dettes à long terme, par exemple)."]
[63,"Total des capitaux propres","Veuillez inclure le capital-actions émis et payé, les surplus d’apports et les excédents non répartis."]
[null,"Remarque :","Actif = Passif + Capitaux propres"]
[]
[64,"Filiales et sociétés apparentées","Fournissez des détails sur tout investissement, intérêts ou avances versées à des filiales ou à des sociétés apparentées."]

{"sheet":"O Rapport revues electroniques","index":25,"n_rows":156,"n_cols":16,"rows_kept":156,"cut":false,"hidden":false,"merged":[[1,1,1,15],[3,6,4,7],[5,6,5,7],[3,8,4,9],[5,8,5,9],[3,10,4,11],[5,10,5,11],[3,2,4,3],[5,2,5,3],[3,4,4,5],[3,12,4,13],[5,12,5,13],[9,4,9,5],[9,6,9,7],[9,8,9,9],[9,10,9,11],[5,4,5,5],[6,2,6,3],[6,4,6,5],[6,6,6,7],[6,8,6,9],[6,10,6,11],[6,1,8,1],[7,2,7,3],[7,4,7,5],[7,6,7,7],[7,8,7,9],[7,10,7,11],[8,2,8,3],[8,4,8,5],[8,6,8,7],[8,8,8,9],[8,10,8,11],[139,8,139,9],[141,1,141,9],[142,1,142,9],[143,2,143,9],[136,10,136,11],[138,10,138,11],[137,2,137,3],[137,4,137,5],[137,6,137,7],[137,8,137,9],[137,10,137,11],[138,2,138,3],[138,4,138,5],[138,6,138,7],[138,8,138,9],[139,10,139,11],[6,12,6,13],[7,12,7,13],[8,12,8,13],[155,2,155,9],[147,2,147,9],[148,2,148,9],[149,2,149,9],[150,2,150,9],[151,2,151,9],[152,2,152,9],[154,2,154,9],[153,2,153,9],[144,2,144,9],[145,2,145,9],[146,2,146,9],[136,2,136,3],[136,4,136,5],[136,6,136,7],[136,8,136,9],[139,2,139,3],[139,4,139,5],[139,6,139,7],[137,12,137,13],[138,12,138,13],[135,8,135,9],[135,10,135,11],[81,1,81,15],[111,1,111,15],[118,1,118,15],[125,1,125,15],[134,1,134,15],[31,1,31,15],[32,1,32,15],[33,1,33,15],[41,1,41,15],[48,1,48,15],[64,1,64,15],[65,1,65,15],[66,1,66,15],[72,1,72,15],[139,12,139,13],[3,14,4,15],[5,14,5,15],[6,14,6,15],[7,14,7,15],[8,14,8,15],[9,14,9,15],[135,14,135,15],[136,14,136,15],[137,14,137,15],[138,14,138,15],[139,14,139,15],[10,1,10,15],[17,1,17,15],[22,1,22,15],[30,1,30,15],[9,12,9,13],[135,12,135,13],[136,12,136,13],[95,1,95,15],[90,1,90,15],[135,2,135,3],[135,4,135,5],[135,6,135,7]]}
[null,"v.202305"]
[null,"Créer, connaître et partager : Organismes autochtones - Revues électroniques (Rapport)"]
[]
[null,"Date : ","Avant-dernier exercice financier\nDonnées réelles",null,"Dernier exercice financier\nDonnées réelles",null,"Exercice financier \nen cours\nMise à jour / Données réelles",null,"1er exercice financier de la demande\nMise à jour / Données réelles",null,"2e exercice financier de la demande\nMise à jour / Données réelles",null,"3e exercice financier de la demande\nMise à jour / Données réelles",null,"4e exercice financier de la demande\nMise à jour / Données réelles"]
[null,"(Voir la définition des termes au bas du formulaire de demande, ainsi que les instructions au bas de cette page avant de remplir ce formulaire.)"]
[null,null,"de",null,"de",null,"de",null,"de",null,"de",null,"de",null,"de"]
[null,"(Remarque : Les renseignements inscrits dans les deux premières colonnes devraient correspondre aux chiffres indiqués dans les états financiers.)","Date : ",null,"Date : ",null,"Date : ",null,"Date : ",null,"Date : ",null,"Date : ",null,"Date : "]
[null,null,"à",null,"à",null,"à",null,"à",null,"à",null,"à",null,"à"]
[null,null,"Date : ",null,"Date : ",null,"Date : ",null,"Date : ",null,"Date : ",null,"Date : ",null,"Date : "]
[]
[null,"Données sur le tirage et la publication - revues électroniques"]
[null,"% du contenu en langue anglaise"]
[null,"% du contenu en langue française"]
[null,"% du contenu en d’autres langues"]
[null,"Précisez les langues :"]
[null,"% d'auteurs canadiens"]
[null,"% d'auteurs étrangers"]
[]
[null,"Nombre de numéros publiés"]
[null,"Nombre de pages (en format HTML, .asp, PDF ou autre) pour l’exercice"]
[null,"Prix de l’abonnement annuel pour les particuliers"]
[null,"Prix de l’abonnement annuel pour les organismes"]
[]
[null,"Nombre d’abonnés payants par numéro (à la fin de l’exercice)"]
[null,"Nombre d’inscrits sur la liste de distribution (courriels)"]
[null,"Nombre de visites"]
[null,"Précisez par numéro ou par mois :"]
[null,"Nombre annuel de visites"]
[null,"Nombre annuel de pages consultées"]
[null,"Taux de rebond"]
[]
[null,"Données financières - revues électroniques"]
[null,"Revenus "]
[null,"Revenus gagnés"]
[1,"Ventes d’abonnements aux particuliers",null,{"$f":"IFERROR(C35/C$63,0)","v":0},null,{"$f":"IFERROR(E35/E$63,0)","v":0},null,{"$f":"IFERROR(G35/G$63,0)","v":0},null,{"$f":"IFERROR(I35/I$63,0)","v":0},null,{"$f":"IFERROR(K35/K$63,0)","v":0},null,{"$f":"IFERROR(M35/M$63,0)","v":0},null,{"$f":"IFERROR(O35/O$63,0)","v":0}]
[{"$f":"A35+1","v":2},"Ventes d’abonnements aux organismes",null,0,null,0,null,0,null,0,null,0,null,0,null,0]
[3,"Ventes de numéros à l’unité ",null,0,null,0,null,0,null,0,null,0,null,0,null,0]
[4,"Ventes de publicité",null,0,null,0,null,0,null,0,null,0,null,0,null,0]
[5,"Redevances, droits de licence et droits de franchise",null,0,null,0,null,0,null,0,null,0,null,0,null,0]
[6,"Autres revenus gagnés (précisez — voir ligne 90)",null,0,null,0,null,0,null,0,null,0,null,0,null,0]
[7,"Total des revenus gagnés",{"$f":"SUM(C35:C40)","v":0},0,{"$f":"SUM(E35:E40)","v":0},0,{"$f":"SUM(G35:G40)","v":0},0,{"$f":"SUM(I35:I40)","v":0},0,{"$f":"SUM(K35:K40)","v":0},0,{"$f":"SUM(M35:M40)","v":0},0,{"$f":"SUM(O35:O40)","v":0},0]
[8,"Revenus du secteur privé"]
[9,"Dons de particuliers",null,{"$f":"IFERROR(C43/C$63,0)","v":0},null,{"$f":"IFERROR(E43/E$63,0)","v":0},null,{"$f":"IFERROR(G43/G$63,0)","v":0},null,{"$f":"IFERROR(I43/I$63,0)","v":0},null,{"$f":"IFERROR(K43/K$63,0)","v":0},null,{"$f":"IFERROR(M43/M$63,0)","v":0},null,{"$f":"IFERROR(O43/O$63,0)","v":0}]
[10,"Dons d’entreprises",null,0,null,0,null,0,null,0,null,0,null,0,null,0]
[11,"Revenus de collectes de fonds (bruts)",null,0,null,0,null,0,null,0,null,0,null,0,null,0]
[12,"Travail bénévole",null,0,null,0,null,0,null,0,null,0,null,0,null,0]
[13,"Autres revenus du secteur privé (précisez — voir ligne 91). Voir instructions ci-dessous.",null,0,null,0,null,0,null,0,null,0,null,0,null,0]
[14,"Total des revenus du secteur privé",{"$f":"SUM(C43:C47)","v":0},0,{"$f":"SUM(E43:E47)","v":0},0,{"$f":"SUM(G43:G47)","v":0},0,{"$f":"SUM(I43:I47)","v":0},0,{"$f":"SUM(K43:K47)","v":0},0,{"$f":"SUM(M43:M47)","v":0},0,{"$f":"SUM(O43:O47)","v":0},0]
[15,"Revenus du secteur public (voir instructions ci-dessous)"]
[16,"Subvention pour cette demande",null,{"$f":"IFERROR(C50/C$63,0)","v":0},null,{"$f":"IFERROR(E50/E$63,0)","v":0},null,{"$f":"IFERROR(G50/G$63,0)","v":0},null,{"$f":"IFERROR(I50/I$63,0)","v":0},null,{"$f":"IFERROR(K50/K$63,0)","v":0},null,{"$f":"IFERROR(M50/M$63,0)","v":0},null,{"$f":"IFERROR(O50/O$63,0)","v":0}]
[17,"Autres subventions du Conseil des arts du Canada ",null,0,null,0,null,0,null,0,null,0,null,0,null,0]
[18,"Aide à l’édition savante du CRSHC ",null,0,null,0,null,0,null,0,null,0,null,0,null,0]
[19,"Fonds du Canada pour les périodiques ",null,0,null,0,null,0,null,0,null,0,null,0,null,0]
[20,"Autres subventions fédérales",null,0,null,0,null,0,null,0,null,0,null,0,null,0]
[21,"Subventions provinciales ou territoriales",null,0,null,0,null,0,null,0,null,0,null,0,null,0]
[22,"Subventions municipales ou regionales",null,0,null,0,null,0,null,0,null,0,null,0,null,0]
[23,"Subventions de programmes d’emploi",null,0,null,0,null,0,null,0,null,0,null,0,null,0]
[24,"Autres revenus du secteur public (précisez — voir ligne 92)",null,0,null,0,null,0,null,0,null,0,null,0,null,0]
[25,"Total des revenus du secteur public",{"$f":"SUM(C50:C58)","v":0},0,{"$f":"SUM(E50:E58)","v":0},0,{"$f":"SUM(G50:G58)","v":0},0,{"$f":"SUM(I50:I58)","v":0},0,{"$f":"SUM(K50:K58)","v":0},0,{"$f":"SUM(M50:M58)","v":0},0,{"$f":"SUM(O50:O58)","v":0},0]
[]
[{"$f":"A59+1","v":26},"Autres revenus (précisez — voir ligne 93)\nVoir instructions ci-dessous.",null,{"$f":"IFERROR(C61/C$63,0)","v":0},null,{"$f":"IFERROR(E61/E$63,0)","v":0},null,{"$f":"IFERROR(G61/G$63,0)","v":0},null,{"$f":"IFERROR(I61/I$63,0)","v":0},null,{"$f":"IFERROR(K61/K$63,0)","v":0},null,{"$f":"IFERROR(M61/M$63,0)","v":0},null,{"$f":"IFERROR(O61/O$63,0)","v":0}]
[]
[{"$f":"A61+1","v":27},"Total des revenus",{"$f":"C41+C48+C59+C61","v":0},{"$f":"IFERROR(C63/C$63,0)","v":0},{"$f":"E41+E48+E59+E61","v":0},{"$f":"IFERROR(E63/E$63,0)","v":0},{"$f":"G41+G48+G59+G61","v":0},{"$f":"IFERROR(G63/G$63,0)","v":0},{"$f":"I41+I48+I59+I61","v":0},{"$f":"IFERROR(I63/I$63,0)","v":0},{"$f":"K41+K48+K59+K61","v":0},{"$f":"IFERROR(K63/K$63,0)","v":0},{"$f":"M41+M48+M59+M61","v":0},{"$f":"IFERROR(M63/M$63,0)","v":0},{"$f":"O41+O48+O59+O61","v":0},{"$f":"IFERROR(O63/O$63,0)","v":0}]
[]
[{"$f":"A63+1","v":28},"Dépenses"]
[{"$f":"A65+1","v":29},"Coûts des ventes"]
[30,"Rédaction"]
[31,"Dépenses et salaires liés à la rédaction",null,{"$f":"IFERROR(C68/C$110,0)","v":0},null,{"$f":"IFERROR(E68/E$110,0)","v":0},null,{"$f":"IFERROR(G68/G$110,0)","v":0},null,{"$f":"IFERROR(I68/I$110,0)","v":0},null,{"$f":"IFERROR(K68/K$110,0)","v":0},null,{"$f":"IFERROR(M68/M$110,0)","v":0},null,{"$f":"IFERROR(O68/O$110,0)","v":0}]
[32,"Cachets aux auteurs",null,{"$f":"IFERROR(C69/C$110,0)","v":0},null,{"$f":"IFERROR(E69/E$110,0)","v":0},null,{"$f":"IFERROR(G69/G$110,0)","v":0},null,{"$f":"IFERROR(I69/I$110,0)","v":0},null,{"$f":"IFERROR(K69/K$110,0)","v":0},null,{"$f":"IFERROR(M69/M$110,0)","v":0},null,{"$f":"IFERROR(O69/O$110,0)","v":0}]
[33,"Cachets aux collaborateurs",null,{"$f":"IFERROR(C70/C$110,0)","v":0},null,{"$f":"IFERROR(E70/E$110,0)","v":0},null,{"$f":"IFERROR(G70/G$110,0)","v":0},null,{"$f":"IFERROR(I70/I$110,0)","v":0},null,{"$f":"IFERROR(K70/K$110,0)","v":0},null,{"$f":"IFERROR(M70/M$110,0)","v":0},null,{"$f":"IFERROR(O70/O$110,0)","v":0}]
[34,"Illustrations et photos, droits de reproduction",null,{"$f":"IFERROR(C71/C$110,0)","v":0},null,{"$f":"IFERROR(E71/E$110,0)","v":0},null,{"$f":"IFERROR(G71/G$110,0)","v":0},null,{"$f":"IFERROR(I71/I$110,0)","v":0},null,{"$f":"IFERROR(K71/K$110,0)","v":0},null,{"$f":"IFERROR(M71/M$110,0)","v":0},null,{"$f":"IFERROR(O71/O$110,0)","v":0}]
[35,"Total des coûts de rédaction",{"$f":"SUM(C68:C71)","v":0},{"$f":"IFERROR(C72/C$110,0)","v":0},{"$f":"SUM(E68:E71)","v":0},{"$f":"IFERROR(E72/E$110,0)","v":0},{"$f":"SUM(G68:G71)","v":0},{"$f":"IFERROR(G72/G$110,0)","v":0},{"$f":"SUM(I68:I71)","v":0},{"$f":"IFERROR(I72/I$110,0)","v":0},{"$f":"SUM(K68:K71)","v":0},{"$f":"IFERROR(K72/K$110,0)","v":0},{"$f":"SUM(M68:M71)","v":0},{"$f":"IFERROR(M72/M$110,0)","v":0},{"$f":"SUM(O68:O71)","v":0},{"$f":"IFERROR(O72/O$110,0)","v":0}]
[36,"Production"]
[37,"Composition",null,{"$f":"IFERROR(C74/C$110,0)","v":0},null,{"$f":"IFERROR(E74/E$110,0)","v":0},null,{"$f":"IFERROR(G74/G$110,0)","v":0},null,{"$f":"IFERROR(I74/I$110,0)","v":0},null,{"$f":"IFERROR(K74/K$110,0)","v":0},null,{"$f":"IFERROR(M74/M$110,0)","v":0},null,{"$f":"IFERROR(O74/O$110,0)","v":0}]
[38,"Mise en page et conception d’un site",null,0,null,0,null,0,null,0,null,0,null,0,null,0]
[39,"Web et maquette",null,0,null,0,null,0,null,0,null,0,null,0,null,0]
[40,"Web et commerce électronique",null,0,null,0,null,0,null,0,null,0,null,0,null,0]
[41,"Programmation",null,0,null,0,null,0,null,0,null,0,null,0,null,0]
[42,"Conversion des images et des graphiques",null,0,null,0,null,0,null,0,null,0,null,0,null,0]
[43,"Éléments interactifs de multimédia",null,0,null,0,null,0,null,0,null,0,null,0,null,0]
[44,"Total des coûts de production",{"$f":"SUM(C74:C80)","v":0},0,{"$f":"SUM(E74:E80)","v":0},0,{"$f":"SUM(G74:G80)","v":0},0,{"$f":"SUM(I74:I80)","v":0},0,{"$f":"SUM(K74:K80)","v":0},0,{"$f":"SUM(M74:M80)","v":0},0,{"$f":"SUM(O74:O80)","v":0},0]
[45,"Diffusion"]
[46,"Enregistrement du nom de domaine",null,{"$f":"IFERROR(C83/C$110,0)","v":0},null,{"$f":"IFERROR(E83/E$110,0)","v":0},null,{"$f":"IFERROR(G83/G$110,0)","v":0},null,{"$f":"IFERROR(I83/I$110,0)","v":0},null,{"$f":"IFERROR(K83/K$110,0)","v":0},null,{"$f":"IFERROR(M83/M$110,0)","v":0},null,{"$f":"IFERROR(O83/O$110,0)","v":0}]
[47,"Sécurité ou certificats relatifs aux transactions en ligne",null,{"$f":"IFERROR(C84/C$110,0)","v":0},null,{"$f":"IFERROR(E84/E$110,0)","v":0},null,{"$f":"IFERROR(G84/G$110,0)","v":0},null,{"$f":"IFERROR(I84/I$110,0)","v":0},null,{"$f":"IFERROR(K84/K$110,0)","v":0},null,{"$f":"IFERROR(M84/M$110,0)","v":0},null,{"$f":"IFERROR(O84/O$110,0)","v":0}]
[48,"Serveur — frais du service d’accès Internet",null,{"$f":"IFERROR(C85/C$110,0)","v":0},null,{"$f":"IFERROR(E85/E$110,0)","v":0},null,{"$f":"IFERROR(G85/G$110,0)","v":0},null,{"$f":"IFERROR(I85/I$110,0)","v":0},null,{"$f":"IFERROR(K85/K$110,0)","v":0},null,{"$f":"IFERROR(M85/M$110,0)","v":0},null,{"$f":"IFERROR(O85/O$110,0)","v":0}]
[49,"Frais de transactions",null,{"$f":"IFERROR(C86/C$110,0)","v":0},null,{"$f":"IFERROR(E86/E$110,0)","v":0},null,{"$f":"IFERROR(G86/G$110,0)","v":0},null,{"$f":"IFERROR(I86/I$110,0)","v":0},null,{"$f":"IFERROR(K86/K$110,0)","v":0},null,{"$f":"IFERROR(M86/M$110,0)","v":0},null,{"$f":"IFERROR(O86/O$110,0)","v":0}]
[50,"Total des coûts de diffusion",{"$f":"SUM(C83:C86)","v":0},{"$f":"IFERROR(C87/C$110,0)","v":0},{"$f":"SUM(E83:E86)","v":0},{"$f":"IFERROR(E87/E$110,0)","v":0},{"$f":"SUM(G83:G86)","v":0},{"$f":"IFERROR(G87/G$110,0)","v":0},{"$f":"SUM(I83:I86)","v":0},{"$f":"IFERROR(I87/I$110,0)","v":0},{"$f":"SUM(K83:K86)","v":0},{"$f":"IFERROR(K87/K$110,0)","v":0},{"$f":"SUM(M83:M86)","v":0},{"$f":"IFERROR(M87/M$110,0)","v":0},{"$f":"SUM(O83:O86)","v":0},{"$f":"IFERROR(O87/O$110,0)","v":0}]
[]
[{"$f":"A87+1","v":51},"Total des coûts des ventes",{"$f":"SUM(C87+C81+C72)","v":0},{"$f":"IFERROR(C89/C$110,0)","v":0},{"$f":"SUM(E87+E81+E72)","v":0},{"$f":"IFERROR(E89/E$110,0)","v":0},{"$f":"SUM(G87+G81+G72)","v":0},{"$f":"IFERROR(G89/G$110,0)","v":0},{"$f":"SUM(I87+I81+I72)","v":0},{"$f":"IFERROR(I89/I$110,0)","v":0},{"$f":"SUM(K87+K81+K72)","v":0},{"$f":"IFERROR(K89/K$110,0)","v":0},{"$f":"SUM(M87+M81+M72)","v":0},{"$f":"IFERROR(M89/M$110,0)","v":0},{"$f":"SUM(O87+O81+O72)","v":0},{"$f":"IFERROR(O89/O$110,0)","v":0}]
[]
[{"$f":"A89+1","v":52},"Promotion et publicité"]
[{"$f":"A91+1","v":53},"Frais de publicité",null,{"$f":"IFERROR(C92/C$110,0)","v":0},null,{"$f":"IFERROR(E92/E$110,0)","v":0},null,{"$f":"IFERROR(G92/G$110,0)","v":0},null,{"$f":"IFERROR(I92/I$110,0)","v":0},null,{"$f":"IFERROR(K92/K$110,0)","v":0},null,{"$f":"IFERROR(M92/M$110,0)","v":0},null,{"$f":"IFERROR(O92/O$110,0)","v":0}]
[54,"Échange de publicité ",null,{"$f":"IFERROR(C93/C$110,0)","v":0},null,{"$f":"IFERROR(E93/E$110,0)","v":0},null,{"$f":"IFERROR(G93/G$110,0)","v":0},null,{"$f":"IFERROR(I93/I$110,0)","v":0},null,{"$f":"IFERROR(K93/K$110,0)","v":0},null,{"$f":"IFERROR(M93/M$110,0)","v":0},null,{"$f":"IFERROR(O93/O$110,0)","v":0}]
[55,"Droit d’adhésion et d’inscription, et promotion des numéros",null,{"$f":"IFERROR(C94/C$110,0)","v":0},null,{"$f":"IFERROR(E94/E$110,0)","v":0},null,{"$f":"IFERROR(G94/G$110,0)","v":0},null,{"$f":"IFERROR(I94/I$110,0)","v":0},null,{"$f":"IFERROR(K94/K$110,0)","v":0},null,{"$f":"IFERROR(M94/M$110,0)","v":0},null,{"$f":"IFERROR(O94/O$110,0)","v":0}]
[56,"Total des frais de promotion et de publicité",{"$f":"SUM(C92:C94)","v":0},{"$f":"IFERROR(C95/C$110,0)","v":0},{"$f":"SUM(E92:E94)","v":0},{"$f":"IFERROR(E95/E$110,0)","v":0},{"$f":"SUM(G92:G94)","v":0},{"$f":"IFERROR(G95/G$110,0)","v":0},{"$f":"SUM(I92:I94)","v":0},{"$f":"IFERROR(I95/I$110,0)","v":0},{"$f":"SUM(K92:K94)","v":0},{"$f":"IFERROR(K95/K$110,0)","v":0},{"$f":"SUM(M92:M94)","v":0},{"$f":"IFERROR(M95/M$110,0)","v":0},{"$f":"SUM(O92:O94)","v":0},{"$f":"IFERROR(O95/O$110,0)","v":0}]
[57,"Frais généraux"]
[58,"Salaires du personnel et contrats",null,{"$f":"IFERROR(C97/C$110,0)","v":0},null,{"$f":"IFERROR(E97/E$110,0)","v":0},null,{"$f":"IFERROR(G97/G$110,0)","v":0},null,{"$f":"IFERROR(I97/I$110,0)","v":0},null,{"$f":"IFERROR(K97/K$110,0)","v":0},null,{"$f":"IFERROR(M97/M$110,0)","v":0},null,{"$f":"IFERROR(O97/O$110,0)","v":0}]
[59,"Avantages sociaux",null,0,null,0,null,0,null,0,null,0,null,0,null,0]
[60,"Coût d'accès: coûts reliés aux mesures de soutien et services pour écrivains sourds ou handicapés impliqués dans les activités",null,0,null,0,null,0,null,0,null,0,null,0,null,0]
[61,"Valeur du travail bénévole",null,0,null,0,null,0,null,0,null,0,null,0,null,0]
[62,"Perfectionnement professionnel du personnel",null,0,null,0,null,0,null,0,null,0,null,0,null,0]
[63,"Dépenses de collecte de fonds (brutes)",null,0,null,0,null,0,null,0,null,0,null,0,null,0]
[64,"Coûts d’occupation (loyer, hypothèque)",null,0,null,0,null,0,null,0,null,0,null,0,null,0]
[65,"Fournitures de bureau et petits appareils",null,0,null,0,null,0,null,0,null,0,null,0,null,0]
[66,"Télécommunications",null,0,null,0,null,0,null,0,null,0,null,0,null,0]
[67,"Amortissement",null,0,null,0,null,0,null,0,null,0,null,0,null,0]
[68,"Autres frais généraux ",null,0,null,0,null,0,null,0,null,0,null,0,null,0]
[69,"Total des frais généraux",{"$f":"SUM(C97:C107)","v":0},0,{"$f":"SUM(E97:E107)","v":0},0,{"$f":"SUM(G97:G107)","v":0},0,{"$f":"SUM(I97:I107)","v":0},0,{"$f":"SUM(K97:K107)","v":0},0,{"$f":"SUM(M97:M107)","v":0},0,{"$f":"SUM(O97:O107)","v":0},0]
[]
[{"$f":"A108+1","v":70},"Total des dépénses",{"$f":"C89+C95+C108","v":0},{"$f":"IFERROR(C110/C$110,0)","v":0},{"$f":"E89+E95+E108","v":0},{"$f":"IFERROR(E110/E$110,0)","v":0},{"$f":"G89+G95+G108","v":0},{"$f":"IFERROR(G110/G$110,0)","v":0},{"$f":"I89+I95+I108","v":0},{"$f":"IFERROR(I110/I$110,0)","v":0},{"$f":"K89+K95+K108","v":0},{"$f":"IFERROR(K110/K$110,0)","v":0},{"$f":"M89+M95+M108","v":0},{"$f":"IFERROR(M110/M$110,0)","v":0},{"$f":"O89+O95+O108","v":0},{"$f":"IFERROR(O110/O$110,0)","v":0}]
[]
[{"$f":"A110+1","v":71},"Excédent (Déficit) de l'exercice"]
[{"$f":"A112+1","v":72},"Excédent (déficit) = revenus – dépenses",{"$f":"C63-C110","v":0},{"$f":"IFERROR(C113/C$117,0)","v":0},{"$f":"E63-E110","v":0},{"$f":"IFERROR(E113/E$117,0)","v":0},{"$f":"G63-G110","v":0},{"$f":"IFERROR(G113/G$117,0)","v":0},{"$f":"I63-I110","v":0},{"$f":"IFERROR(I113/I$117,0)","v":0},{"$f":"K63-K110","v":0},{"$f":"IFERROR(K113/K$117,0)","v":0},{"$f":"M63-M110","v":0},{"$f":"IFERROR(M113/M$117,0)","v":0},{"$f":"O63-O110","v":0},{"$f":"IFERROR(O113/O$117,0)","v":0}]
[{"$f":"A113+1","v":73},"Déduction de l’excédent (perte) avant impôt sur l’excédent et postes extraordinaires (saisir une valeur négative, le cas échéant). \nVoir instructions ci-dessous.",null,{"$f":"IFERROR(C114/C$117,0)","v":0},null,{"$f":"IFERROR(E114/E$117,0)","v":0},null,{"$f":"IFERROR(G114/G$117,0)","v":0},null,{"$f":"IFERROR(I114/I$117,0)","v":0},null,{"$f":"IFERROR(K114/K$117,0)","v":0},null,{"$f":"IFERROR(M114/M$117,0)","v":0},null,{"$f":"IFERROR(O114/O$117,0)","v":0}]
[{"$f":"A114+1","v":74},"Impôt sur l’excédent",null,{"$f":"IFERROR(C115/C$117,0)","v":0},null,{"$f":"IFERROR(E115/E$117,0)","v":0},null,{"$f":"IFERROR(G115/G$117,0)","v":0},null,{"$f":"IFERROR(I115/I$117,0)","v":0},null,{"$f":"IFERROR(K115/K$117,0)","v":0},null,{"$f":"IFERROR(M115/M$117,0)","v":0},null,{"$f":"IFERROR(O115/O$117,0)","v":0}]
[{"$f":"A115+1","v":75},"Postes extraordinaires (précisez — voir ligne 94)",null,{"$f":"IFERROR(C116/C$117,0)","v":0},null,{"$f":"IFERROR(E116/E$117,0)","v":0},null,{"$f":"IFERROR(G116/G$117,0)","v":0},null,{"$f":"IFERROR(I116/I$117,0)","v":0},null,{"$f":"IFERROR(K116/K$117,0)","v":0},null,{"$f":"IFERROR(M116/M$117,0)","v":0},null,{"$f":"IFERROR(O116/O$117,0)","v":0}]
[{"$f":"A116+1","v":76},"Excédent (Déficit) de l'exercice",{"$f":"SUM(C113:C116)","v":0},{"$f":"IFERROR(C117/C$117,0)","v":0},{"$f":"SUM(E113:E116)","v":0},{"$f":"IFERROR(E117/E$117,0)","v":0},{"$f":"SUM(G113:G116)","v":0},{"$f":"IFERROR(G117/G$117,0)","v":0},{"$f":"SUM(I113:I116)","v":0},{"$f":"IFERROR(I117/I$117,0)","v":0},{"$f":"SUM(K113:K116)","v":0},{"$f":"IFERROR(K117/K$117,0)","v":0},{"$f":"SUM(M113:M116)","v":0},{"$f":"IFERROR(M117/M$117,0)","v":0},{"$f":"SUM(O113:O116)","v":0},{"$f":"IFERROR(O117/O$117,0)","v":0}]
[]
[{"$f":"A117+1","v":77},"Excédent (Déficit) accumulé à la fin de l'exercice"]
[{"$f":"A119+1","v":78},"Excédent (déficit) accumulé en début d’exercice",null,null,{"$f":"+C124","v":0},null,{"$f":"+E124","v":0},null,{"$f":"+G124","v":0},null,{"$f":"+I124","v":0},null,{"$f":"+K124","v":0},null,{"$f":"+M124","v":0}]
[{"$f":"A120+1","v":79},"Excédent (déficit) de l’exercice — obtenu à la ligne 76",{"$f":"C117","v":0},null,{"$f":"E117","v":0},null,{"$f":"G117","v":0},null,{"$f":"I117","v":0},null,{"$f":"K117","v":0},null,{"$f":"M117","v":0},null,{"$f":"O117","v":0}]
[{"$f":"A121+1","v":80},"Dividendes déclarés et retraits (saisir un nombre absolu négatif (–) le cas échéant)"]
[{"$f":"A122+1","v":81},"Rajustements des exercices antérieurs (saisir une valeur négative, le cas échéant). Voir instructions ci-dessous."]
[{"$f":"A123+1","v":82},"Excédent (Déficit) accumulé à la fin de l'exercice",{"$f":"SUM(C120:C123)","v":0},null,{"$f":"SUM(E120:E123)","v":0},null,{"$f":"SUM(G120:G123)","v":0},null,{"$f":"SUM(I120:I123)","v":0},null,{"$f":"SUM(K120:K123)","v":0},null,{"$f":"SUM(M120:M123)","v":0},null,{"$f":"SUM(O120:O123)","v":0}]
[]
[{"$f":"A124+1","v":83},"Bilan (Information tirée des états financiers — données réelles seulement)\nLa section bilan doit être remplie pour refléter la situation financière de l’ensemble de votre organisme même si les sections revenus et dépenses se rapportent uniquement à votre périodique. Voir instructions ci-dessous."]
[{"$f":"A126+1","v":84},"Total des actifs courants"]
[{"$f":"A127+1","v":85},"Total de l’actif"]
[{"$f":"A128+1","v":86},"Total des passifs courants"]
[{"$f":"A129+1","v":87},"Total du passif"]
[{"$f":"A130+1","v":88},"Total des actifs nets, ou capitaux propres"]
[]
[{"$f":"A131+1","v":89},"Filiales et sociétés apparentées "]
[]
[null,"Détails, le cas échéant"]
[{"$f":"A133+1","v":90},"Autres revenus gagnés (ligne 6)"]
[{"$f":"A136+1","v":91},"Autres revenus du secteur privé (ligne 13)"]
[{"$f":"A137+1","v":92},"Autres revenus du secteur public (ligne 24)"]
[{"$f":"A138+1","v":93},"Autres revenus (ligne 26)"]
[{"$f":"A139+1","v":94},"Postes extraordinaires (ligne 75)"]
[]
[null,"Instructions"]
["* ","Les pourcentages des composantes de la catégorie revenus sont calculés en fonction du montant total des revenus.\nLes pourcentages des composantes de la catégorie dépenses sont calculés en fonction du montant total des dépenses."]
[{"$f":"A47","v":13},"Autres revenus du secteur privé","Indiquez les subventions reçues de fondations privées ainsi que les commandites en biens et services si elles sont constatées dans les états financiers."]
[{"$f":"A49","v":15},"Revenus du secteur public","Dans la présente demande, il faut déclarer toute aide financière gouvernementale — notamment fédérale, provinciale et municipale — à titre de revenus. Si des subventions et des contributions figurent dans vos états financiers pour compenser des coûts des ventes ou des frais d’exploitation, vous devez les transférer dans la présente section de votre demande et faire les rajustements pertinents correspondants. De même, tous les crédits d’impôt doivent être inscrits dans cette section à titre de revenus."]
[{"$f":"A61","v":26},"Autres revenus","Indiquez tous les autres revenus, incluant les contributions de l’organisme lié ou apparenté, et les subventions de stabilisation. "]
[{"$f":"A114","v":73},"Déduction de l’excédent (perte) avant impôts sur l’excédent et postes extraordinaires","Déduisez les éléments suivants de l’excédent (perte) : moins-value, remise de dette, gain (perte) sur devises étrangères et sur investissements, et vente de biens en capital, etc."]
[{"$f":"A123","v":81},"Rajustements des exercices antérieurs (inscrire un nombre absolu comme valeur négative (-), le cas échéant)","Indiquez les retraitements comptables ayant une incidence directe sur votre excédent (déficit) d’exercice. "]
[{"$f":"A126","v":83},"Bilan","Ne remplissez que les colonnes des exercices financiers pour lesquels des états financiers ont été joints. N’inscrivez rien pour les exercices courant et prévisionnel. La section bilan doit être remplie pour refléter la situation financière de l’ensemble de votre organisme même si les sections revenus et dépenses se rapportent uniquement à votre périodique."]
[84,"Total des actifs courants","Incluez le total des actifs normalement réalisables au cours d’un exercice, répartis généralement dans les grandes catégories suivantes : espèces, comptes clients, valeurs mobilières, dépôts, subventions et contributions à recevoir, stock, coûts reportés de prépublication, y compris les ouvrages en cours, les droits d’auteur prépayés et les avances, par exemple."]
[85,"Total de l’actif","Incluez le total des actifs courants, des immobilisations et des autres actifs (investissements ou actifs incorporels, par exemple)."]
[86,"Total des passifs courants","Incluez le total des passifs normalement à payer au cours d’un exercice, habituellement répartis dans les principales catégories suivantes : comptes à payer, charges à payer, revenus et subventions reportés, parties à court terme de la dette à long terme et passifs d’impôts futurs dus au cours du prochain exercice."]
[87,"Total du passif","Incluez le total des passifs à court terme et à long terme (montant à payer aux actionnaires et dettes à long terme, par exemple)."]
[88,"Total des actifs nets, ou capitaux propres","Incluez les actifs nets, c’est-à-dire le capital-actions émis et payé, les surplus d’apports et les excédents non répartis."]
[null,"Remarque :","Actif = Passif + Actifs nets, ou Capitaux propres"]
[{"$f":"A133","v":89},"Filiales et sociétés apparentées","Fournissez des détails sur tout investissement, intérêts ou avances versées à des filiales ou à des sociétés apparentées."]

{"sheet":"P Rapport revues imprimées","index":26,"n_rows":164,"n_cols":16,"rows_kept":164,"cut":false,"hidden":false,"merged":[[5,10,5,11],[5,1,8,1],[3,2,4,3],[3,4,4,5],[3,6,4,7],[3,8,4,9],[3,10,4,11],[5,2,5,3],[8,2,8,3],[6,2,6,3],[7,2,7,3],[36,11,41,11],[6,6,6,7],[6,8,6,9],[5,4,5,5],[5,6,5,7],[7,10,7,11],[8,4,8,5],[8,6,8,7],[8,8,8,9],[8,10,8,11],[6,4,6,5],[5,8,5,9],[6,10,6,11],[7,4,7,5],[7,6,7,7],[7,8,7,9],[143,2,143,3],[143,4,143,5],[143,6,143,7],[143,8,143,9],[143,10,143,11],[144,2,144,3],[144,4,144,5],[144,6,144,7],[144,8,144,9],[144,10,144,11],[145,2,145,3],[145,4,145,5],[145,6,145,7],[145,8,145,9],[145,10,145,11],[153,2,153,10],[154,2,154,10],[146,2,146,3],[146,4,146,5],[146,6,146,7],[146,8,146,9],[146,10,146,11],[147,2,147,3],[147,4,147,5],[147,6,147,7],[147,8,147,9],[147,10,147,11],[149,1,149,10],[150,1,150,10],[151,2,151,10],[152,2,152,10],[161,2,161,10],[162,2,162,10],[163,2,163,10],[155,2,155,10],[156,2,156,10],[157,2,157,10],[158,2,158,10],[159,2,159,10],[160,2,160,10],[143,12,143,13],[144,12,144,13],[145,12,145,13],[146,12,146,13],[3,12,4,13],[5,12,5,13],[6,12,6,13],[7,12,7,13],[8,12,8,13],[1,1,1,15],[9,1,9,15],[133,1,133,15],[147,12,147,13],[3,14,4,15],[5,14,5,15],[6,14,6,15],[7,14,7,15],[8,14,8,15],[36,15,41,15],[143,14,143,15],[144,14,144,15],[145,14,145,15],[146,14,146,15],[147,14,147,15],[36,13,41,13]]}
[null,"v.202305"]
[null,"Créer, connaître et partager : Organismes autochtones - Revues imprimées (Rapport)"]
[]
[null,"Date : ","Avant-dernier exercice financier\nDonnées réelles",null,"Dernier exercice financier\nDonnées réelles",null,"Exercice financier \nen cours\nMise à jour / Données réelles",null,"1er exercice financier de la demande\nMise à jour / Données réelles",null,"2e exercice financier de la demande\nMise à jour / Données réelles",null,"3e exercice financier de la demande\nMise à jour / Données réelles",null,"4e exercice financier de la demande\nMise à jour / Données réelles"]
[null,"(Voir la définition des termes au bas du formulaire de demande, ainsi que les instructions au bas de cette page avant de remplir ce formulaire.)"]
[null,"(Remarque : Les renseignements inscrits dans les deux premières colonnes devraient correspondre aux chiffres indiqués dans les états financiers joints à cette demande.)","de",null,"de",null,"de",null,"de",null,"de",null,"de",null,"de"]
[null,null,"Date : ",null,"Date : ",null,"Date : ",null,"Date : ",null,"Date : ",null,"Date : ",null,"Date : "]
[null,null,"à",null,"à",null,"à",null,"à",null,"à",null,"à",null,"à"]
[null,null,"Date : ",null,"Date : ",null,"Date : ",null,"Date : ",null,"Date : ",null,"Date : ",null,"Date : "]
[null,"Données sur le tirage et la publication - revues imprimées"]
[null,"% du contenu en langue anglaise"]
[null,"% du contenu en langue française"]
[null,"% du contenu en d’autres langues"]
[null,"Précisez les langues :","   "]
[null,"% d'auteurs canadiens"]
[null,"% d'auteurs étrangers"]
[]
[null,"Nombre de numéros publiés par exercice"]
[null,"Nombre total de pages publiées pendant l’exercice (y compris la couverture)"]
[null,"Nombre total de pages publicitaires vendues pendant l’exercice"]
[null,"Prix du numéro"]
[null,"Prix de l’abonnement annuel pour les particuliers"]
[null,"Prix de l’abonnement annuel pour les organismes"]
[null,"Diffusion payante"]
[null,"Nombre d’abonnés payants par numéro (à la fin de l’exercice)"]
[null,"Nombre de ventes par numéro (moyenne par numéro)"]
[null,"Total de la diffusion payante (moyenne par numéro)",{"$f":"C25+C26","v":0},null,{"$f":"E25+E26","v":0},null,{"$f":"G25+G26","v":0},null,{"$f":"I25+I26","v":0},null,{"$f":"K25+K26","v":0},null,{"$f":"M25+M26","v":0},null,{"$f":"O25+O26","v":0}]
[null,"Diffusion électronique (par Zinio et iTunes, par exemple). N’incluez pas les abonnements offerts gratuitement.        \n"]
[null,"Nombre d’abonnés par numéro, version électronique (moyenne par numéro)"]
[null,"Nombre de ventes par numéro, version électronique (moyenne par numéro) "]
[null,"Total de la diffusion électronique (moyenne par numéro)",{"$f":"C29+C30","v":0},null,{"$f":"E29+E30","v":0},null,{"$f":"G29+G30","v":0},null,{"$f":"I29+I30","v":0},null,{"$f":"K29+K30","v":0},null,{"$f":"M29+M30","v":0},null,{"$f":"O29+O30","v":0}]
[null,"Diffusion non payante"]
[null,"Diffusion contrôlée (moyenne par numéro)"]
[null,"Exemplaires gratuits (moyenne par numéro)"]
[null,"Total de la diffusion non payante (moyenne par numéro)",{"$f":"C33+C34","v":0},null,{"$f":"E33+E34","v":0},null,{"$f":"G33+G34","v":0},null,{"$f":"I33+I34","v":0},null,{"$f":"K33+K34","v":0},null,{"$f":"M33+M34","v":0},null,{"$f":"O33+O34","v":0}]
[null,"Exemplaires non distribués"]
[null,"Retours (moyenne par numéro)"]
[null,"Exemplaires endommagés (moyenne par numéro)"]
[null,"Copies d’archives (moyenne par numéro)"]
[null,"Total des exemplaires non distribués (moyenne par numéro)",{"$f":"SUM(C37:C39)","v":0},null,{"$f":"SUM(E37:E39)","v":0},null,{"$f":"SUM(G37:G39)","v":0},null,{"$f":"SUM(I37:I39)","v":0},null,{"$f":"SUM(K37:K39)","v":0},null,{"$f":"SUM(M37:M39)","v":0},null,{"$f":"SUM(O37:O39)","v":0}]
[null,"Tirage (moyenne par numéro)",{"$f":"C40+C35+C27","v":0},null,{"$f":"E40+E35+E27","v":0},null,{"$f":"G40+G35+G27","v":0},null,{"$f":"I40+I35+I27","v":0},null,{"$f":"K40+K35+K27","v":0},null,{"$f":"M40+M35+M27","v":0},null,{"$f":"O40+O35+O27","v":0}]
[null,"Pourcentage du tirage vendu",{"$f":"IFERROR(C27/C41,0)","v":0},null,{"$f":"IFERROR(E27/E41,0)","v":0},null,{"$f":"IFERROR(G27/G41,0)","v":0},null,{"$f":"IFERROR(I27/I41,0)","v":0},null,{"$f":"IFERROR(K27/K41,0)","v":0},null,{"$f":"IFERROR(M27/M41,0)","v":0},null,{"$f":"IFERROR(O27/O41,0)","v":0}]
[null,"Données financières - revues imprimées  "]
[null,"Revenus"]
[null,"Revenus gagnés"]
[1,"Ventes d’abonnements aux particuliers",null,{"$f":"IFERROR(C46/C$76,0)","v":0},null,{"$f":"IFERROR(E46/E$76,0)","v":0},null,{"$f":"IFERROR(G46/G$76,0)","v":0},null,{"$f":"IFERROR(I46/I$76,0)","v":0},null,{"$f":"IFERROR(K46/K$76,0)","v":0},null,{"$f":"IFERROR(M46/M$76,0)","v":0},null,{"$f":"IFERROR(O46/O$76,0)","v":0}]
[{"$f":"A46+1","v":2},"Ventes d’abonnements aux organismes",null,0,null,0,null,0,null,0,null,0,null,0,null,0]
[3,"Ventes de numéros à l’unité (en kiosque ou non)",null,0,null,0,null,0,null,0,null,0,null,0,null,0]
[4,"Ventes d’abonnements électroniques ",null,0,null,0,null,0,null,0,null,0,null,0,null,0]
[5,"Ventes de numéros, version électronique",null,0,null,0,null,0,null,0,null,0,null,0,null,0]
[6,"Ventes de publicité",null,0,null,0,null,0,null,0,null,0,null,0,null,0]
[7,"Droits d’auteur, de reproduction et redevances",null,0,null,0,null,0,null,0,null,0,null,0,null,0]
[8,"Autres revenus gagnés (précisez — voir ligne 87)",null,0,null,0,null,0,null,0,null,0,null,0,null,0]
[9,"Total des revenus gagnés",{"$f":"SUM(C46:C53)","v":0},0,{"$f":"SUM(E46:E53)","v":0},0,{"$f":"SUM(G46:G53)","v":0},0,{"$f":"SUM(I46:I53)","v":0},0,{"$f":"SUM(K46:K53)","v":0},0,{"$f":"SUM(M46:M53)","v":0},0,{"$f":"SUM(O46:O53)","v":0},0]
[10,"Revenus du secteur privé"]
[11,"Dons de particuliers",null,{"$f":"IFERROR(C56/C$76,0)","v":0},null,{"$f":"IFERROR(E56/E$76,0)","v":0},null,{"$f":"IFERROR(G56/G$76,0)","v":0},null,{"$f":"IFERROR(I56/I$76,0)","v":0},null,{"$f":"IFERROR(K56/K$76,0)","v":0},null,{"$f":"IFERROR(M56/M$76,0)","v":0},null,{"$f":"IFERROR(O56/O$76,0)","v":0}]
[12,"Dons d’entreprises",null,0,null,0,null,0,null,0,null,0,null,0,null,0]
[13,"Revenus de collecte de fonds (bruts)",null,0,null,0,null,0,null,0,null,0,null,0,null,0]
[14,"Travail bénévole",null,0,null,0,null,0,null,0,null,0,null,0,null,0]
[15,"Autres revenus du secteur privé (précisez — voir ligne 88). Voir instructions ci-dessous.",null,0,null,0,null,0,null,0,null,0,null,0,null,0]
[16,"Total des revenus du secteur privé",{"$f":"SUM(C56:C60)","v":0},0,{"$f":"SUM(E56:E60)","v":0},0,{"$f":"SUM(G56:G60)","v":0},0,{"$f":"SUM(I56:I60)","v":0},0,{"$f":"SUM(K56:K60)","v":0},0,{"$f":"SUM(M56:M60)","v":0},0,{"$f":"SUM(O56:O60)","v":0},0]
[17,"Revenus du secteur public (voir instructions ci-dessous)"]
[18,"Subvention pour cette demande",null,{"$f":"IFERROR(C63/C$76,0)","v":0},null,{"$f":"IFERROR(E63/E$76,0)","v":0},null,{"$f":"IFERROR(G63/G$76,0)","v":0},null,{"$f":"IFERROR(I63/I$76,0)","v":0},null,{"$f":"IFERROR(K63/K$76,0)","v":0},null,{"$f":"IFERROR(M63/M$76,0)","v":0},null,{"$f":"IFERROR(O63/O$76,0)","v":0}]
[19,"Autres subventions du Conseil des arts du Canada ",null,0,null,0,null,0,null,0,null,0,null,0,null,0]
[20,"Aide à l’édition savante du CRSHC ",null,0,null,0,null,0,null,0,null,0,null,0,null,0]
[21,"Fonds du Canada pour les périodiques ",null,0,null,0,null,0,null,0,null,0,null,0,null,0]
[22,"Autres subventions fédérales",null,0,null,0,null,0,null,0,null,0,null,0,null,0]
[23,"Subventions provinciales ou territoriales",null,0,null,0,null,0,null,0,null,0,null,0,null,0]
[24,"Subventions municipales ou regionales",null,0,null,0,null,0,null,0,null,0,null,0,null,0]
[25,"Subventions de programmes d’emploi",null,0,null,0,null,0,null,0,null,0,null,0,null,0]
[26,"Autres revenus du secteur public (précisez — voir ligne 89)",null,0,null,0,null,0,null,0,null,0,null,0,null,0]
[27,"Total des revenus du secteur public",{"$f":"SUM(C63:C71)","v":0},0,{"$f":"SUM(E63:E71)","v":0},0,{"$f":"SUM(G63:G71)","v":0},0,{"$f":"SUM(I63:I71)","v":0},0,{"$f":"SUM(K63:K71)","v":0},0,{"$f":"SUM(M63:M71)","v":0},0,{"$f":"SUM(O63:O71)","v":0},0]
[]
[{"$f":"A72+1","v":28},"Autres revenus (précisez — voir ligne 90)\nVoir instructions ci-dessous.",null,{"$f":"IFERROR(C74/C$76,0)","v":0},null,{"$f":"IFERROR(E74/E$76,0)","v":0},null,{"$f":"IFERROR(G74/G$76,0)","v":0},null,{"$f":"IFERROR(I74/I$76,0)","v":0},null,{"$f":"IFERROR(K74/K$76,0)","v":0},null,{"$f":"IFERROR(M74/M$76,0)","v":0},null,{"$f":"IFERROR(O74/O$76,0)","v":0}]
[]
[{"$f":"A74+1","v":29},"Total des revenus",{"$f":"C54+C61+C72+C74","v":0},{"$f":"IFERROR(C76/C$76,0)","v":0},{"$f":"E54+E61+E72+E74","v":0},0,0,0,0,0,0,0,{"$f":"M54+M61+M72+M74","v":0},0,{"$f":"O54+O61+O72+O74","v":0},0]
[]
[{"$f":"A76+1","v":30},"Dépenses"]
[{"$f":"A78+1","v":31},"Coûts des ventes"]
[32,"Rédaction"]
[33,"Dépenses et salaires liés à la rédaction",null,{"$f":"IFERROR(C81/C$118,0)","v":0},null,{"$f":"IFERROR(E81/E$118,0)","v":0},null,{"$f":"IFERROR(G81/G$118,0)","v":0},null,{"$f":"IFERROR(I81/I$118,0)","v":0},null,{"$f":"IFERROR(K81/K$118,0)","v":0},null,{"$f":"IFERROR(M81/M$118,0)","v":0},null,{"$f":"IFERROR(O81/O$118,0)","v":0}]
[34,"Cachets aux auteurs",null,{"$f":"IFERROR(C82/C$118,0)","v":0},null,{"$f":"IFERROR(E82/E$118,0)","v":0},null,{"$f":"IFERROR(G82/G$118,0)","v":0},null,{"$f":"IFERROR(I82/I$118,0)","v":0},null,{"$f":"IFERROR(K82/K$118,0)","v":0},null,{"$f":"IFERROR(M82/M$118,0)","v":0},null,{"$f":"IFERROR(O82/O$118,0)","v":0}]
[35,"Cachets aux collaborateurs",null,{"$f":"IFERROR(C83/C$118,0)","v":0},null,{"$f":"IFERROR(E83/E$118,0)","v":0},null,{"$f":"IFERROR(G83/G$118,0)","v":0},null,{"$f":"IFERROR(I83/I$118,0)","v":0},null,{"$f":"IFERROR(K83/K$118,0)","v":0},null,{"$f":"IFERROR(M83/M$118,0)","v":0},null,{"$f":"IFERROR(O83/O$118,0)","v":0}]
[36,"Illustrations et photos, droits de reproduction",null,{"$f":"IFERROR(C84/C$118,0)","v":0},null,{"$f":"IFERROR(E84/E$118,0)","v":0},null,{"$f":"IFERROR(G84/G$118,0)","v":0},null,{"$f":"IFERROR(I84/I$118,0)","v":0},null,{"$f":"IFERROR(K84/K$118,0)","v":0},null,{"$f":"IFERROR(M84/M$118,0)","v":0},null,{"$f":"IFERROR(O84/O$118,0)","v":0}]
[37,"Total des coûts de rédaction",{"$f":"SUM(C81:C84)","v":0},{"$f":"IFERROR(C85/C$118,0)","v":0},{"$f":"SUM(E81:E84)","v":0},{"$f":"IFERROR(E85/E$118,0)","v":0},{"$f":"SUM(G81:G84)","v":0},{"$f":"IFERROR(G85/G$118,0)","v":0},{"$f":"SUM(I81:I84)","v":0},{"$f":"IFERROR(I85/I$118,0)","v":0},{"$f":"SUM(K81:K84)","v":0},{"$f":"IFERROR(K85/K$118,0)","v":0},{"$f":"SUM(M81:M84)","v":0},{"$f":"IFERROR(M85/M$118,0)","v":0},{"$f":"SUM(O81:O84)","v":0},{"$f":"IFERROR(O85/O$118,0)","v":0}]
[38,"Production"]
[39,"Préimpression",null,{"$f":"IFERROR(C87/C$118,0)","v":0},null,{"$f":"IFERROR(E87/E$118,0)","v":0},null,{"$f":"IFERROR(G87/G$118,0)","v":0},null,{"$f":"IFERROR(I87/I$118,0)","v":0},null,{"$f":"IFERROR(K87/K$118,0)","v":0},null,{"$f":"IFERROR(M87/M$118,0)","v":0},null,{"$f":"IFERROR(O87/O$118,0)","v":0}]
[40,"Impression et reliure",null,{"$f":"IFERROR(C88/C$118,0)","v":0},null,{"$f":"IFERROR(E88/E$118,0)","v":0},null,{"$f":"IFERROR(G88/G$118,0)","v":0},null,{"$f":"IFERROR(I88/I$118,0)","v":0},null,{"$f":"IFERROR(K88/K$118,0)","v":0},null,{"$f":"IFERROR(M88/M$118,0)","v":0},null,{"$f":"IFERROR(O88/O$118,0)","v":0}]
[41,"Coûts de production liés à la version numérique",null,{"$f":"IFERROR(C89/C$118,0)","v":0},null,{"$f":"IFERROR(E89/E$118,0)","v":0},null,{"$f":"IFERROR(G89/G$118,0)","v":0},null,{"$f":"IFERROR(I89/I$118,0)","v":0},null,{"$f":"IFERROR(K89/K$118,0)","v":0},null,{"$f":"IFERROR(M89/M$118,0)","v":0},null,{"$f":"IFERROR(O89/O$118,0)","v":0}]
[42,"Web et commerce électronique",null,{"$f":"IFERROR(C90/C$118,0)","v":0},null,{"$f":"IFERROR(E90/E$118,0)","v":0},null,{"$f":"IFERROR(G90/G$118,0)","v":0},null,{"$f":"IFERROR(I90/I$118,0)","v":0},null,{"$f":"IFERROR(K90/K$118,0)","v":0},null,{"$f":"IFERROR(M90/M$118,0)","v":0},null,{"$f":"IFERROR(O90/O$118,0)","v":0}]
[43,"Total des coûts de production",{"$f":"SUM(C87:C90)","v":0},{"$f":"IFERROR(C91/C$118,0)","v":0},{"$f":"SUM(E87:E90)","v":0},{"$f":"IFERROR(E91/E$118,0)","v":0},{"$f":"SUM(G87:G90)","v":0},{"$f":"IFERROR(G91/G$118,0)","v":0},{"$f":"SUM(I87:I90)","v":0},{"$f":"IFERROR(I91/I$118,0)","v":0},{"$f":"SUM(K87:K90)","v":0},{"$f":"IFERROR(K91/K$118,0)","v":0},{"$f":"SUM(M87:M90)","v":0},{"$f":"IFERROR(M91/M$118,0)","v":0},{"$f":"SUM(O87:O90)","v":0},{"$f":"IFERROR(O91/O$118,0)","v":0}]
[44,"Diffusion"]
[45,"Affranchissement",null,{"$f":"IFERROR(C93/C$118,0)","v":0},null,{"$f":"IFERROR(E93/E$118,0)","v":0},null,{"$f":"IFERROR(G93/G$118,0)","v":0},null,{"$f":"IFERROR(I93/I$118,0)","v":0},null,{"$f":"IFERROR(K93/K$118,0)","v":0},null,{"$f":"IFERROR(M93/M$118,0)","v":0},null,{"$f":"IFERROR(O93/O$118,0)","v":0}]
[46,"Envoi et manutention",null,{"$f":"IFERROR(C94/C$118,0)","v":0},null,{"$f":"IFERROR(E94/E$118,0)","v":0},null,{"$f":"IFERROR(G94/G$118,0)","v":0},null,{"$f":"IFERROR(I94/I$118,0)","v":0},null,{"$f":"IFERROR(K94/K$118,0)","v":0},null,{"$f":"IFERROR(M94/M$118,0)","v":0},null,{"$f":"IFERROR(O94/O$118,0)","v":0}]
[47,"Total des coûts de diffusion",{"$f":"SUM(C93:C94)","v":0},{"$f":"IFERROR(C95/C$118,0)","v":0},{"$f":"SUM(E93:E94)","v":0},{"$f":"IFERROR(E95/E$118,0)","v":0},{"$f":"SUM(G93:G94)","v":0},{"$f":"IFERROR(G95/G$118,0)","v":0},{"$f":"SUM(I93:I94)","v":0},{"$f":"IFERROR(I95/I$118,0)","v":0},{"$f":"SUM(K93:K94)","v":0},{"$f":"IFERROR(K95/K$118,0)","v":0},{"$f":"SUM(M93:M94)","v":0},{"$f":"IFERROR(M95/M$118,0)","v":0},{"$f":"SUM(O93:O94)","v":0},{"$f":"IFERROR(O95/O$118,0)","v":0}]
[]
[{"$f":"A95+1","v":48},"Total des coûts des ventes",{"$f":"SUM(C95+C91+C85)","v":0},{"$f":"IFERROR(C97/C$118,0)","v":0},{"$f":"SUM(E95+E91+E85)","v":0},{"$f":"IFERROR(E97/E$118,0)","v":0},{"$f":"SUM(G95+G91+G85)","v":0},{"$f":"IFERROR(G97/G$118,0)","v":0},{"$f":"SUM(I95+I91+I85)","v":0},{"$f":"IFERROR(I97/I$118,0)","v":0},{"$f":"SUM(K95+K91+K85)","v":0},{"$f":"IFERROR(K97/K$118,0)","v":0},{"$f":"SUM(M95+M91+M85)","v":0},{"$f":"IFERROR(M97/M$118,0)","v":0},{"$f":"SUM(O95+O91+O85)","v":0},{"$f":"IFERROR(O97/O$118,0)","v":0}]
[]
[{"$f":"A97+1","v":49},"Promotion et publicité"]
[{"$f":"A99+1","v":50},"Frais de publicité",null,{"$f":"IFERROR(C100/C$118,0)","v":0},null,{"$f":"IFERROR(E100/E$118,0)","v":0},null,{"$f":"IFERROR(G100/G$118,0)","v":0},null,{"$f":"IFERROR(I100/I$118,0)","v":0},null,{"$f":"IFERROR(K100/K$118,0)","v":0},null,{"$f":"IFERROR(M100/M$118,0)","v":0},null,{"$f":"IFERROR(O100/O$118,0)","v":0}]
[51,"Échange de publicité ",null,{"$f":"IFERROR(C101/C$118,0)","v":0},null,{"$f":"IFERROR(E101/E$118,0)","v":0},null,{"$f":"IFERROR(G101/G$118,0)","v":0},null,{"$f":"IFERROR(I101/I$118,0)","v":0},null,{"$f":"IFERROR(K101/K$118,0)","v":0},null,{"$f":"IFERROR(M101/M$118,0)","v":0},null,{"$f":"IFERROR(O101/O$118,0)","v":0}]
[52,"Droit d’adhésion et d’inscription, et promotion des numéros",null,{"$f":"IFERROR(C102/C$118,0)","v":0},null,{"$f":"IFERROR(E102/E$118,0)","v":0},null,{"$f":"IFERROR(G102/G$118,0)","v":0},null,{"$f":"IFERROR(I102/I$118,0)","v":0},null,{"$f":"IFERROR(K102/K$118,0)","v":0},null,{"$f":"IFERROR(M102/M$118,0)","v":0},null,{"$f":"IFERROR(O102/O$118,0)","v":0}]
[53,"Total des frais de promotion et de publicité",{"$f":"SUM(C100:C102)","v":0},{"$f":"IFERROR(C103/C$118,0)","v":0},{"$f":"SUM(E100:E102)","v":0},{"$f":"IFERROR(E103/E$118,0)","v":0},{"$f":"SUM(G100:G102)","v":0},{"$f":"IFERROR(G103/G$118,0)","v":0},{"$f":"SUM(I100:I102)","v":0},{"$f":"IFERROR(I103/I$118,0)","v":0},{"$f":"SUM(K100:K102)","v":0},{"$f":"IFERROR(K103/K$118,0)","v":0},{"$f":"SUM(M100:M102)","v":0},{"$f":"IFERROR(M103/M$118,0)","v":0},{"$f":"SUM(O100:O102)","v":0},{"$f":"IFERROR(O103/O$118,0)","v":0}]
[54,"Frais généraux"]
[55,"Salaires du personnel et contrats",null,{"$f":"IFERROR(C105/C$118,0)","v":0},null,{"$f":"IFERROR(E105/E$118,0)","v":0},null,{"$f":"IFERROR(G105/G$118,0)","v":0},null,{"$f":"IFERROR(I105/I$118,0)","v":0},null,{"$f":"IFERROR(K105/K$118,0)","v":0},null,{"$f":"IFERROR(M105/M$118,0)","v":0},null,{"$f":"IFERROR(O105/O$118,0)","v":0}]
[56,"Avantages sociaux",null,0,null,0,null,0,null,0,null,0,null,0,null,0]
[57,"Coût d'accès: coûts reliés aux mesures de soutien et services pour écrivains sourds ou handicapés impliqués dans les activités",null,0,null,0,null,0,null,0,null,0,null,0,null,0]
[58,"Valeur du travail bénévole",null,0,null,0,null,0,null,0,null,0,null,0,null,0]
[59,"Perfectionnement professionnel du personnel",null,0,null,0,null,0,null,0,null,0,null,0,null,0]
[60,"Dépenses de collecte de fonds (brutes)",null,0,null,0,null,0,null,0,null,0,null,0,null,0]
[61,"Coûts d’occupation (loyer, hypothèque)",null,0,null,0,null,0,null,0,null,0,null,0,null,0]
[62,"Fournitures de bureau et petits appareils",null,0,null,0,null,0,null,0,null,0,null,0,null,0]
[63,"Télécommunications",null,0,null,0,null,0,null,0,null,0,null,0,null,0]
[64,"Amortissement",null,0,null,0,null,0,null,0,null,0,null,0,null,0]
[65,"Autres frais généraux ",null,0,null,0,null,0,null,0,null,0,null,0,null,0]
[66,"Total des frais généraux",{"$f":"SUM(C105:C115)","v":0},0,{"$f":"SUM(E105:E115)","v":0},0,{"$f":"SUM(G105:G115)","v":0},0,{"$f":"SUM(I105:I115)","v":0},0,{"$f":"SUM(K105:K115)","v":0},0,{"$f":"SUM(M105:M115)","v":0},0,{"$f":"SUM(O105:O115)","v":0},0]
[]
[{"$f":"A116+1","v":67},"Total des dépenses",{"$f":"C97+C103+C116","v":0},{"$f":"IFERROR(C118/C$118,0)","v":0},{"$f":"E97+E103+E116","v":0},{"$f":"IFERROR(E118/E$118,0)","v":0},{"$f":"G97+G103+G116","v":0},{"$f":"IFERROR(G118/G$118,0)","v":0},{"$f":"I97+I103+I116","v":0},{"$f":"IFERROR(I118/I$118,0)","v":0},{"$f":"K97+K103+K116","v":0},{"$f":"IFERROR(K118/K$118,0)","v":0},{"$f":"M97+M103+M116","v":0},{"$f":"IFERROR(M118/M$118,0)","v":0},{"$f":"O97+O103+O116","v":0},{"$f":"IFERROR(O118/O$118,0)","v":0}]
[]
[{"$f":"A118+1","v":68},"Excédent (Déficit) de l'exercice"]
[{"$f":"A120+1","v":69},"Excédent (déficit) = revenus – dépenses",{"$f":"C76-C118","v":0},{"$f":"IFERROR(C121/C$125,0)","v":0},{"$f":"E76-E118","v":0},{"$f":"IFERROR(E121/E$125,0)","v":0},{"$f":"G76-G118","v":0},{"$f":"IFERROR(G121/G$125,0)","v":0},{"$f":"I76-I118","v":0},{"$f":"IFERROR(I121/I$125,0)","v":0},{"$f":"K76-K118","v":0},{"$f":"IFERROR(K121/K$125,0)","v":0},{"$f":"M76-M118","v":0},{"$f":"IFERROR(M121/M$125,0)","v":0},{"$f":"O76-O118","v":0},{"$f":"IFERROR(O121/O$125,0)","v":0}]
[{"$f":"A121+1","v":70},"Déduction de l’excédent (perte) avant impôt sur l’excédent et postes extraordinaires (saisir une valeur négative, le cas échéant). \nVoir instructions ci-dessous.",null,{"$f":"IFERROR(C122/C$125,0)","v":0},null,{"$f":"IFERROR(E122/E$125,0)","v":0},null,{"$f":"IFERROR(G122/G$125,0)","v":0},null,{"$f":"IFERROR(I122/I$125,0)","v":0},null,{"$f":"IFERROR(K122/K$125,0)","v":0},null,{"$f":"IFERROR(M122/M$125,0)","v":0},null,{"$f":"IFERROR(O122/O$125,0)","v":0}]
[{"$f":"A122+1","v":71},"Impôt sur l’excédent",null,{"$f":"IFERROR(C123/C$125,0)","v":0},null,{"$f":"IFERROR(E123/E$125,0)","v":0},null,{"$f":"IFERROR(G123/G$125,0)","v":0},null,{"$f":"IFERROR(I123/I$125,0)","v":0},null,{"$f":"IFERROR(K123/K$125,0)","v":0},null,{"$f":"IFERROR(M123/M$125,0)","v":0},null,{"$f":"IFERROR(O123/O$125,0)","v":0}]
[{"$f":"A123+1","v":72},"Postes extraordinaires (précisez — voir ligne 91)",null,{"$f":"IFERROR(C124/C$125,0)","v":0},null,{"$f":"IFERROR(E124/E$125,0)","v":0},null,{"$f":"IFERROR(G124/G$125,0)","v":0},null,{"$f":"IFERROR(I124/I$125,0)","v":0},null,{"$f":"IFERROR(K124/K$125,0)","v":0},null,{"$f":"IFERROR(M124/M$125,0)","v":0},null,{"$f":"IFERROR(O124/O$125,0)","v":0}]
[{"$f":"A124+1","v":73},"Excédent (Déficit) de l'exercice",{"$f":"SUM(C121:C124)","v":0},{"$f":"IFERROR(C125/C$125,0)","v":0},{"$f":"SUM(E121:E124)","v":0},{"$f":"IFERROR(E125/E$125,0)","v":0},{"$f":"SUM(G121:G124)","v":0},{"$f":"IFERROR(G125/G$125,0)","v":0},{"$f":"SUM(I121:I124)","v":0},{"$f":"IFERROR(I125/I$125,0)","v":0},{"$f":"SUM(K121:K124)","v":0},{"$f":"IFERROR(K125/K$125,0)","v":0},{"$f":"SUM(M121:M124)","v":0},{"$f":"IFERROR(M125/M$125,0)","v":0},{"$f":"SUM(O121:O124)","v":0},{"$f":"IFERROR(O125/O$125,0)","v":0}]
[]
[{"$f":"A125+1","v":74},"Excédent (Déficit) accumulé à la fin de l'exercice"]
[{"$f":"A127+1","v":75},"Excédent (déficit) accumulé en début d’exercice",null,null,{"$f":"C132","v":0},null,{"$f":"E132","v":0},null,{"$f":"G132","v":0},null,{"$f":"+I132","v":0},null,{"$f":"+K132","v":0},null,{"$f":"+M132","v":0}]
[{"$f":"A128+1","v":76},"Excédent (déficit) de l’exercice — obtenu à la ligne 73",{"$f":"C125","v":0},null,{"$f":"E125","v":0},null,{"$f":"G125","v":0},null,{"$f":"I125","v":0},null,{"$f":"K125","v":0},null,{"$f":"M125","v":0},null,{"$f":"O125","v":0}]
[{"$f":"A129+1","v":77},"Dividendes déclarés et retraits (saisir un nombre absolu négatif (–) le cas échéant)"]
[{"$f":"A130+1","v":78},"Rajustements des exercices antérieurs (saisir une valeur négative, le cas échéant). Voir instructions ci-dessous."]
[{"$f":"A131+1","v":79},"Excédent (Déficit) accumulé à la fin de l'exercice",{"$f":"SUM(C128:C131)","v":0},null,{"$f":"SUM(E128:E131)","v":0},null,{"$f":"SUM(G128:G131)","v":0},null,{"$f":"SUM(I128:I131)","v":0},null,{"$f":"SUM(K128:K131)","v":0},null,{"$f":"SUM(M128:M131)","v":0},null,{"$f":"SUM(O128:O131)","v":0}]
[]
[{"$f":"A132+1","v":80},"Bilan (Information tirée des états financiers — données réelles seulement)\nLa section bilan doit être remplie pour refléter la situation financière de l’ensemble de votre organisme même si les sections revenus et dépenses se rapportent uniquement à votre périodique. Voir instructions ci-dessous."]
[{"$f":"A134+1","v":81},"Total des actifs courants"]
[{"$f":"A135+1","v":82},"Total de l’actif"]
[{"$f":"A136+1","v":83},"Total des passifs courants"]
[{"$f":"A137+1","v":84},"Total du passif"]
[{"$f":"A138+1","v":85},"Total des actifs nets, ou capitaux propres"]
[]
[{"$f":"A139+1","v":86},"Filiales et sociétés apparentées "]
[]
[null,"Détails, le cas échéant"]
[{"$f":"A141+1","v":87},"Autres revenus gagnés (ligne 8)"]
[{"$f":"A144+1","v":88},"Autres revenus du secteur privé (ligne 15)"]
[{"$f":"A145+1","v":89},"Autres revenus du secteur public (ligne 26)"]
[{"$f":"A146+1","v":90},"Autres revenus (ligne 28)"]
[{"$f":"A147+1","v":91},"Postes extraordinaires (ligne 72)"]
[]
[null,"Instructions"]
["* ","Les pourcentages des composantes de la catégorie revenus sont calculés en fonction du montant total des revenus.\nLes pourcentages des composantes de la catégorie dépenses sont calculés en fonction du montant total des dépenses."]
[{"$f":"A60","v":15},"Autres revenus du secteur privé","Indiquez les subventions reçues de fondations privées ainsi que les commandites en biens et services si elles sont constatées dans les états financiers."]
[{"$f":"A62","v":17},"Revenus du secteur public","Dans la présente demande, il faut déclarer toute aide financière gouvernementale — notamment fédérale, provinciale et municipale — à titre de revenus. Si des subventions et des contributions figurent dans vos états financiers pour compenser des coûts des ventes ou des frais d’exploitation, vous devez les transférer dans la présente section de votre demande et faire les rajustements pertinents correspondants. De même, tous les crédits d’impôt doivent être inscrits dans cette section à titre de revenus."]
[{"$f":"A74","v":28},"Autres revenus","Indiquez tous les autres revenus, incluant les contributions de l’organisme lié ou apparenté, et les subventions de stabilisation. "]
[{"$f":"A122","v":70},"Déduction de l’excédent (perte) avant impôts sur l’excédent et postes extraordinaires","Déduisez les éléments suivants de l’excédent (perte) : moins-value, remise de dette, gain (perte) sur devises étrangères et sur investissements, vente de biens en capital, etc."]
[{"$f":"A131","v":78},"Rajustements des exercices antérieurs (inscrire un nombre absolu comme valeur négative (-), le cas échéant)","Indiquez les retraitements comptables ayant une incidence directe sur votre excédent (déficit) d’exercice. "]
[{"$f":"A134","v":80},"Bilan","Ne remplissez que les colonnes des exercices financiers pour lesquels des états financiers ont été joints. N’inscrivez rien pour les exercices courant et prévisionnel. La section bilan doit être remplie pour refléter la situation financière de l’ensemble de votre organisme même si les sections revenus et dépenses se rapportent uniquement à votre périodique."]
[81,"Total des actifs courants","Incluez le total des actifs normalement réalisables au cours d’un exercice, répartis généralement dans les grandes catégories suivantes : espèces, comptes clients, valeurs mobilières, dépôts, subventions et contributions à recevoir, stock, coûts reportés de prépublication, y compris les ouvrages en cours, les droits d’auteur prépayés et les avances, par exemple."]
[82,"Total de l’actif","Incluez le total des actifs courants, des immobilisations et des autres actifs (investissements ou actifs incorporels, par exemple)."]
[83,"Total des passifs courants","Incluez le total des passifs normalement à payer au cours d’un exercice, habituellement répartis dans les principales catégories suivantes : comptes à payer, charges à payer, revenus et subventions reportés, parties à court terme de la dette à long terme et passifs d’impôts futurs dus au cours du prochain exercice."]
[84,"Total du passif","Incluez le total des passifs à court terme et à long terme (montant à payer aux actionnaires et dettes à long terme, par exemple)."]
[85,"Total des actifs nets, ou capitaux propres","Incluez les actifs nets, c’est-à-dire le capital-actions émis et payé, les surplus d’apports et les excédents non répartis."]
[null,"Remarque :","Actif = Passif + Actifs nets, ou Capitaux propres"]
[{"$f":"A141","v":86},"Filiales et sociétés apparentées","Fournissez des détails sur tout investissement, intérêts ou avances versées à des filiales ou à des sociétés apparentées."]

{"sheet":"Q Rapport éditeurs livres","index":27,"n_rows":95,"n_cols":16,"rows_kept":95,"cut":false,"hidden":false,"merged":[[1,1,1,15],[3,1,3,15],[4,1,4,8],[5,2,6,3],[5,4,6,5],[5,6,6,7],[5,8,6,9],[5,10,6,11],[5,12,6,13],[5,14,6,15],[11,1,11,15],[7,14,7,15],[8,2,8,3],[8,4,8,5],[8,6,8,7],[8,8,8,9],[8,10,8,11],[8,12,8,13],[8,14,8,15],[7,2,7,3],[7,4,7,5],[7,6,7,7],[7,8,7,9],[7,10,7,11],[7,12,7,13],[9,14,9,15],[10,2,10,3],[10,4,10,5],[10,6,10,7],[10,8,10,9],[10,10,10,11],[10,12,10,13],[10,14,10,15],[9,2,9,3],[9,4,9,5],[9,6,9,7],[9,8,9,9],[9,10,9,11],[9,12,9,13],[24,1,24,15],[41,1,41,15],[69,1,69,15],[76,1,76,15],[86,14,86,15],[85,1,85,15],[87,12,87,13],[87,14,87,15],[86,2,86,3],[86,4,86,5],[86,6,86,7],[86,8,86,9],[86,10,86,11],[86,12,86,13],[87,2,87,3],[87,4,87,5],[87,6,87,7],[87,8,87,9],[87,10,87,11],[88,14,88,15],[89,2,89,3],[89,4,89,5],[89,6,89,7],[89,8,89,9],[89,10,89,11],[89,12,89,13],[89,14,89,15],[88,2,88,3],[88,4,88,5],[88,6,88,7],[88,8,88,9],[88,10,88,11],[88,12,88,13],[90,14,90,15],[91,2,91,3],[91,4,91,5],[91,6,91,7],[91,8,91,9],[91,10,91,11],[91,12,91,13],[91,14,91,15],[90,2,90,3],[90,4,90,5],[90,6,90,7],[90,8,90,9],[90,10,90,11],[90,12,90,13]]}
[null,"v.202305"]
[null,"Créer, connaître et partager : Organismes autochtones - Éditeurs de livres (Rapport)"]
[]
[null,"SOMMAIRE FINANCIER                                                                                                                                                                    "]
[null,"Inscrire « 0 » si c’est la valeur prévue du champ"]
[null,"Date : ","Avant-dernier exercice financier\nDonnées réelles",null,"Dernier exercice financier\nDonnées réelles",null,"Exercice financier \nen cours\nMise à jour / Données réelles",null,"1er exercice financier de la demande\nMise à jour / Données réelles",null,"2e exercice financier de la demande\nMise à jour / Données réelles",null,"3e exercice financier de la demande\nMise à jour / Données réelles",null,"4e exercice financier de la demande\nMise à jour / Données réelles"]
[]
[null," Consulter l'onglet « N Instructions éditeurs livres »","de ",null,"de ",null,"de ",null,"de ",null,"de ",null,"de ",null,"de "]
[null,null,"Date : ",null,"Date : ",null,"Date : ",null,"Date : ",null,"Date : ",null,"Date : ",null,"Date : "]
[null,null,"à",null,"à",null,"à",null,"à",null,"à",null,"à",null,"à"]
["Ligne",null,"Date : ",null,"Date : ",null,"Date : ",null,"Date : ",null,"Date : ",null,"Date : ",null,"Date : "]
[1,"Revenus d’exploitation"]
[2,"Revenus bruts et ventes de vos propres ouvrages",null,{"$f":"IFERROR(C13/C$40,0)","v":0},null,{"$f":"IFERROR(E13/E$40,0)","v":0},null,{"$f":"IFERROR(G13/G$40,0)","v":0},null,{"$f":"IFERROR(I13/I$40,0)","v":0},null,{"$f":"IFERROR(K13/K$40,0)","v":0},null,{"$f":"IFERROR(M13/M$40,0)","v":0},null,{"$f":"IFERROR(O13/O$40,0)","v":0}]
[3,"Retours",null,{"$f":"IFERROR(C14/C$40,0)","v":0},null,{"$f":"IFERROR(E14/E$40,0)","v":0},null,{"$f":"IFERROR(G14/G$40,0)","v":0},null,{"$f":"IFERROR(I14/I$40,0)","v":0},null,{"$f":"IFERROR(K14/K$40,0)","v":0},null,0,null,{"$f":"IFERROR(O14/O$40,0)","v":0}]
[4,"Ventes nettes de vos propres ouvrages \nVeuillez fournir les détails pour ce montant dans les lignes 6 à 9. \nRemarque : Les détails fournis dans ces lignes ne sont pas comptés en double à la ligne 12.",{"$f":"C13-C14","v":0},0,{"$f":"E13-E14","v":0},0,{"$f":"G13-G14","v":0},0,{"$f":"I13-I14","v":0},0,{"$f":"K13-K14","v":0},0,{"$f":"M13-M14","v":0},0,{"$f":"O13-O14","v":0},0]
[5,"Ventes nettes de vos propres ouvrages (détails)"]
[{"$f":"A16+1","v":6},"* Ventes nettes de titres admissibles aux programmes du Conseil des arts, livres imprimés",null,{"$f":"IFERROR(C17/C$40,0)","v":0},null,0,null,0,null,0,null,0,null,0,null,{"$f":"IFERROR(O17/O$40,0)","v":0}]
[7,"* Ventes nettes de titres admissibles aux programmes du Conseil des arts, livres électroniques",null,{"$f":"IFERROR(C18/C$40,0)","v":0},null,0,null,0,null,0,null,0,null,0,null,0]
[8,"* Ventes nettes d’autres titres d’auteurs canadiens, livres imprimés",null,0,null,0,null,0,null,0,null,0,null,0,null,0]
[9," *  Ventes nettes d’autres titres d’auteurs canadiens, livres électroniques",null,0,null,0,null,0,null,0,null,0,null,0,null,0]
[10,"Autres revenus nets de publication (précisez — voir ligne 65)",null,0,null,0,null,0,null,0,null,0,null,0,null,0]
[11,"Autres revenus nets (précisez — voir ligne 66)",null,0,null,0,null,0,null,0,null,0,null,0,null,0]
[12,"Total des revenus d’exploitation nets",{"$f":"C15+C21+C22","v":0},0,{"$f":"E15+E21+E22","v":0},0,{"$f":"G15+G21+G22","v":0},0,{"$f":"I15+I21+I22","v":0},0,{"$f":"K15+K21+K22","v":0},0,{"$f":"M15+M21+M22","v":0},0,{"$f":"O15+O21+O22","v":0},0]
[]
[{"$f":"A23+1","v":13},"Subventions et autres contributions non remboursables obtenues des sources suivantes :"]
[{"$f":"A25+1","v":14},"Subvention pour cette demande",null,{"$f":"IFERROR(C26/C$40,0)","v":0},null,{"$f":"IFERROR(E26/E$40,0)","v":0},null,{"$f":"IFERROR(G26/G$40,0)","v":0},null,{"$f":"IFERROR(I26/I$40,0)","v":0},null,{"$f":"IFERROR(K26/K$40,0)","v":0},null,{"$f":"IFERROR(M26/M$40,0)","v":0},null,{"$f":"IFERROR(O26/O$40,0)","v":0}]
[15,"Autres subventions du Conseil des arts du Canada",null,{"$f":"IFERROR(C27/C$40,0)","v":0},null,{"$f":"IFERROR(E27/E$40,0)","v":0},null,{"$f":"IFERROR(G27/G$40,0)","v":0},null,{"$f":"IFERROR(I27/I$40,0)","v":0},null,{"$f":"IFERROR(K27/K$40,0)","v":0},null,0,null,{"$f":"IFERROR(O27/O$40,0)","v":0}]
[16,"Ministère du Patrimoine canadien (Fonds du livre du Canada)",null,0,null,0,null,0,null,0,null,0,null,0,null,0]
[17,"Livres Canada Books",null,0,null,0,null,0,null,0,null,0,null,0,null,0]
[18,"Fédération canadienne des sciences humaines (PAES)",null,0,null,0,null,0,null,0,null,0,null,0,null,0]
[19,"Autres sources fédérales (précisez — voir ligne 67)",null,0,null,0,null,0,null,0,null,0,null,0,null,0]
[20,"Conseil des arts provincial ou territorial — subventions globales",null,0,null,0,null,0,null,0,null,0,null,0,null,0]
[21,"Conseil des arts provincial ou territorial — autres programmes",null,0,null,0,null,0,null,0,null,0,null,0,null,0]
[22,"Organismes provinciaux ou territoriaux — programmes de crédits d’impôt",null,0,null,0,null,0,null,0,null,0,null,0,null,0]
[23,"Autres sources provinciales ou territoriales (précisez — voir ligne 68)",null,0,null,0,null,0,null,0,null,0,null,0,null,0]
[24,"Autres organismes gouvernementaux et administrations municipales, par exemple",null,0,null,0,null,0,null,0,null,0,null,0,null,0]
[25,"Autres sources (précisez — voir ligne 69)",null,0,null,0,null,0,null,0,null,0,null,0,null,0]
[26,"Total des subventions et des contributions",{"$f":"SUM(C26:C37)","v":0},0,{"$f":"SUM(E26:E37)","v":0},0,{"$f":"SUM(G26:G37)","v":0},0,{"$f":"SUM(I26:I37)","v":0},0,{"$f":"SUM(K26:K37)","v":0},0,{"$f":"SUM(M26:M37)","v":0},0,{"$f":"SUM(O26:O37)","v":0},0]
[]
[{"$f":"A38+1","v":27},"Total des revenus nets",{"$f":"C23+C38","v":0},0,{"$f":"E23+E38","v":0},0,{"$f":"G23+G38","v":0},0,{"$f":"I23+I38","v":0},0,{"$f":"K23+K38","v":0},0,{"$f":"M23+M38","v":0},0,{"$f":"O23+O38","v":0},{"$f":"IFERROR(O40/O$40,0)","v":0}]
[]
[{"$f":"A40+1","v":28},"Coûts des ventes"]
[{"$f":"A42+1","v":29},"Stock d’ouverture",null,{"$f":"IFERROR(C43/C$62,0)","v":0},null,{"$f":"IFERROR(E43/E$62,0)","v":0},null,{"$f":"IFERROR(G43/G$62,0)","v":0},null,{"$f":"IFERROR(I43/I$62,0)","v":0},null,{"$f":"IFERROR(K43/K$62,0)","v":0},null,{"$f":"IFERROR(M43/M$62,0)","v":0},null,{"$f":"IFERROR(O43/O$62,0)","v":0}]
[30,"Coûts directs",null,{"$f":"IFERROR(C44/C$62,0)","v":0},null,{"$f":"IFERROR(E44/E$62,0)","v":0},null,{"$f":"IFERROR(G44/G$62,0)","v":0},null,{"$f":"IFERROR(I44/I$62,0)","v":0},null,{"$f":"IFERROR(K44/K$62,0)","v":0},null,0,null,{"$f":"IFERROR(O44/O$62,0)","v":0}]
[31,"Stock de fermeture",null,0,null,0,null,0,null,0,null,0,null,0,null,0]
[32,"Droits d’auteur sur tous les titres",null,0,null,0,null,0,null,0,null,0,null,0,null,0]
[33,"Coûts de distribution",null,0,null,0,null,0,null,0,null,0,null,0,null,0]
[34,"Coûts d’autres produits",null,0,null,0,null,0,null,0,null,0,null,0,null,0]
[35,"Total des coûts des ventes",{"$f":"C43+C44-C45+C46+C47+C48","v":0},0,{"$f":"E43+E44-E45+E46+E47+E48","v":0},0,{"$f":"G43+G44-G45+G46+G47+G48","v":0},0,{"$f":"I43+I44-I45+I46+I47+I48","v":0},0,{"$f":"K43+K44-K45+K46+K47+K48","v":0},0,{"$f":"M43+M44-M45+M46+M47+M48","v":0},0,{"$f":"O43+O44-O45+O46+O47+O48","v":0},0]
[]
[{"$f":"A49+1","v":36},"Excédent brut (revenus nets moins total des coûts des ventes)",{"$f":"C40-C49","v":0},0,{"$f":"E40-E49","v":0},0,{"$f":"G40-G49","v":0},0,{"$f":"I40-I49","v":0},0,{"$f":"K40-K49","v":0},0,{"$f":"M40-M49","v":0},0,{"$f":"O40-O49","v":0},{"$f":"IFERROR(O51/O$62,0)","v":0}]
[]
[{"$f":"A51+1","v":37},"Frais d’exploitation"]
[{"$f":"A53+1","v":38},"Salaires et avantages sociaux"]
[{"$f":"A54+1","v":39},"Artistes et éditeurs",null,0,null,0,null,0,null,0,null,0,null,0,null,{"$f":"IFERROR(O55/O$62,0)","v":0}]
[{"$f":"+A55+1","v":40},"Marketing et promotion",null,0,null,0,null,0,null,0,null,0,null,0,null,0]
[{"$f":"+A56+1","v":41},"Autres",null,0,null,0,null,0,null,0,null,0,null,0,null,0]
[{"$f":"A57+1","v":42},"Total des salaires et des avantages sociaux",{"$f":"SUM(C55:C57)","v":0},0,{"$f":"SUM(E55:E57)","v":0},0,{"$f":"SUM(G55:G57)","v":0},0,{"$f":"SUM(I55:I57)","v":0},0,{"$f":"SUM(K55:K57)","v":0},0,{"$f":"SUM(M55:M57)","v":0},0,{"$f":"SUM(O55:O57)","v":0},0]
[{"$f":"A58+1","v":43},"Coût d'accès: coûts reliés aux mesures de soutien et services pour écrivains sourds ou handicapés impliqués dans les activités"]
[{"$f":"A59+1","v":44},"Frais de marketing et de promotion",null,0,null,0,null,0,null,0,null,{"$f":"IFERROR(K60/K$62,0)","v":0},null,0,null,{"$f":"IFERROR(O60/O$62,0)","v":0}]
[{"$f":"A60+1","v":45},"Autres frais d’exploitation",null,0,null,0,null,0,null,0,null,0,null,0,null,0]
[{"$f":"A61+1","v":46},"Total des frais d’exploitation",{"$f":"SUM(C58:C61)","v":0},0,{"$f":"SUM(E58:E61)","v":0},0,{"$f":"SUM(G58:G61)","v":0},0,{"$f":"SUM(I58:I61)","v":0},0,{"$f":"SUM(K58:K61)","v":0},0,{"$f":"SUM(M58:M61)","v":0},0,{"$f":"SUM(O58:O61)","v":0},0]
[]
[{"$f":"A62+1","v":47},"Excédent (perte) (excédent brut moins total des frais d’exploitation)",{"$f":"C51-C62","v":0},{"$f":"IFERROR(C64/C$62,0)","v":0},{"$f":"E51-E62","v":0},{"$f":"IFERROR(E64/E$62,0)","v":0},{"$f":"G51-G62","v":0},{"$f":"IFERROR(G64/G$62,0)","v":0},{"$f":"I51-I62","v":0},{"$f":"IFERROR(I64/I$62,0)","v":0},{"$f":"K51-K62","v":0},{"$f":"IFERROR(K64/K$62,0)","v":0},{"$f":"M51-M62","v":0},{"$f":"IFERROR(M64/M$62,0)","v":0},{"$f":"O51-O62","v":0},{"$f":"IFERROR(O64/O$62,0)","v":0}]
[{"$f":"A64+1","v":48},"Déduction de l’excédent net (de la perte nette) avant impôt sur l’excédent et postes extraordinaires",null,{"$f":"IFERROR(C65/C$62,0)","v":0},null,{"$f":"IFERROR(E65/E$62,0)","v":0},null,{"$f":"IFERROR(G65/G$62,0)","v":0},null,{"$f":"IFERROR(I65/I$62,0)","v":0},null,{"$f":"IFERROR(K65/K$62,0)","v":0},null,0,null,{"$f":"IFERROR(O65/O$62,0)","v":0}]
[{"$f":"A65+1","v":49},"Impôt sur l’excédent",null,0,null,0,null,0,null,0,null,0,null,0,null,0]
[{"$f":"A66+1","v":50},"Postes extraordinaires (précisez — voir ligne 70)",null,0,null,0,null,0,null,0,null,0,null,0,null,0]
[{"$f":"A67+1","v":51},"Excédent net (perte nette)",{"$f":"C64-C65-C66-C67","v":0},0,{"$f":"E64-E65-E66-E67","v":0},0,{"$f":"G64-G65-G66-G67","v":0},0,{"$f":"I64-I65-I66-I67","v":0},0,{"$f":"K64-K65-K66-K67","v":0},0,{"$f":"M64-M65-M66-M67","v":0},0,{"$f":"O64-O65-O66-O67","v":0},0]
[]
[{"$f":"A68+1","v":52},"Excédents non répartis"]
[{"$f":"A70+1","v":53},"Excédents non répartis en début d’exercice",null,null,{"$f":"+C75","v":0},null,{"$f":"+E75","v":0},null,{"$f":"+G75","v":0},null,{"$f":"+I75","v":0},null,{"$f":"+K75","v":0},null,{"$f":"+M75","v":0}]
[{"$f":"A71+1","v":54},"Excédent net (perte nette) de l’exercice (valeur négative en cas de perte) — obtenu(e) à la ligne 51",{"$f":"C68","v":0},null,{"$f":"E68","v":0},null,{"$f":"G68","v":0},null,{"$f":"I68","v":0},null,{"$f":"K68","v":0},null,{"$f":"M68","v":0},null,{"$f":"O68","v":0}]
[{"$f":"A72+1","v":55},"Dividendes déclarés et retraits (saisir une valeur absolue négative (-))"]
[{"$f":"A73+1","v":56},"Rajustements des exercices antérieurs (saisir une valeur négative, le cas échéant)"]
[{"$f":"A74+1","v":57},"Excédents non répartis en fin d’exercice OU excédent (déficit) accumulé",{"$f":"C71+C72+C73+C74","v":0},null,{"$f":"E71+E72+E73+E74","v":0},null,{"$f":"G71+G72+G73+G74","v":0},null,{"$f":"I71+I72+I73+I74","v":0},null,{"$f":"K71+K72+K73+K74","v":0},null,{"$f":"M71+M72+M73+M74","v":0},null,{"$f":"O71+O72+O73+O74","v":0}]
[]
[{"$f":"A75+1","v":58},"Bilan (Données des états financiers - résultats seulement)"]
[{"$f":"A77+1","v":59},"Total des actifs courants"]
[{"$f":"A78+1","v":60},"Total de l’actif"]
[{"$f":"A79+1","v":61},"Total des passifs courants"]
[{"$f":"A80+1","v":62},"Total du passif"]
[{"$f":"A81+1","v":63},"Total des capitaux propres"]
[]
[{"$f":"A82+1","v":64},"Filiales et sociétés apparentées"]
[]
[null,"Détails, le cas échéant"]
[{"$f":"A84+1","v":65},"Autres revenus nets de publication"]
[{"$f":"A87+1","v":66},"Autres revenus nets"]
[{"$f":"A88+1","v":67},"Autres sources fédérales"]
[{"$f":"A89+1","v":68},"Autres sources provinciales ou territoriales"]
[{"$f":"A90+1","v":69},"Autres sources"]
[{"$f":"A91+1","v":70},"Postes extraordinaires"]
[]
[{"$f":"A92+1","v":71},"Ratio du fonds de roulement (actifs courants – passifs courants)",{"$f":"C78-C80","v":0},null,{"$f":"E78-E80","v":0},null,{"$f":"G78-G80","v":0},null,{"$f":"I78-I80","v":0},null,{"$f":"K78-K80","v":0},null,{"$f":"M78-M80","v":0},null,{"$f":"O78-O80","v":0}]
[{"$f":"A94+1","v":72},"Ratio de marge (excédent ou perte avant impôt sur l’excédent et postes extraordinaires (ligne 47) / total des revenus nets (ligne 27)",{"$f":"IFERROR(C64/C40,0)","v":0},null,{"$f":"IFERROR(E64/E40,0)","v":0},null,{"$f":"IFERROR(G64/G40,0)","v":0},null,{"$f":"IFERROR(I64/I40,0)","v":0},null,{"$f":"IFERROR(K64/K40,0)","v":0},null,{"$f":"IFERROR(M64/M40,0)","v":0},null,{"$f":"IFERROR(O64/O40,0)","v":0}]

{"sheet":"Sheet1","index":28,"n_rows":27,"n_cols":8,"rows_kept":27,"cut":false,"hidden":true,"merged":[]}
[null,null,null,null,null,null,null,"v.202305"]
[]
[]
[null,null,null,"activity drop down",null,"translate"]
[null,null,null,"SELECT",null,"SÉLECTIONNEZ"]
[null,null,null,"Collection",null,"Collection "]
[null,null,null,"Equipment (media arts)",null,"Équipement"]
[null,null,null,"Production",null,"Production"]
[null,null,null,"Publication",null,"Publication"]
[null,null,null,"Other",null,"Autres"]
[]
[]
[null,null,null,"media arts drop down",null,"translate"]
[null,null,null,"SELECT",null,{"$f":"F5","v":"SÉLECTIONNEZ"}]
[null,null,null,"For distribution",null,"Pour distribution"]
[null,null,null,"For research, archives",null,"Pour recherche et archives"]
[null,null,null,"For rental",null,"Pour location"]
[null,null,null,"Other",null,"Autre"]
[]
[]
[null,null,null,"visual arts drop down",null,"translate"]
[null,null,null,"SELECT",null,"SÉLECTIONNEZ"]
[null,null,null,"Donated",null,"Donation"]
[null,null,null,"Purchased",null,"Achetée"]
[null,null,null,"Produced in-house",null,"Produite par l'organisme"]
[null,null,null,"Co-Production",null,"Coproduction"]
[null,null,null,"Other",null,"Autre"]

{"sheet":"Sheet2","index":29,"n_rows":10,"n_cols":7,"rows_kept":10,"cut":false,"hidden":true,"merged":[]}
["Programming ",null,null,null,null,null,"v.202305"]
[]
["SELECT",null,"SELECT",null,"SÉLECTIONNEZ"]
["Borrowed",null,"Confirmed",null,"Confirmé"]
["Catalogue",null,"Not Confirmed",null,"Non confirmé"]
["Circulating"]
["Co-Production"]
["Produced In House"]
["Retrospective"]
["Other"]